Workbook

Sheet Parameter
B5: Parameter
B7: Verband: | C7: OSPSV
B9: Anlass: | C9: Jugendtag 2022
B11: Kategorie 1: | C11: Kat. 1 Jugend aufgelegt U10 / U13 / U15
B13: Kategorie 2: | C13: Kat. 2 Jugend liegend frei U15 / U17
B15: Kategorie 3: | C15: Kat. 3 Jugend liegend frei U19 / U21
B17: Kategorie 4: | C17: Kat. 4 Jugend kniend U17
B19: Kategorie 5: | C19: Kat. 5 Jugend 3 Stellung U19/U21
B21: Kategorie 5 eg: | C21: Kat. 5 Jugend 3 Stellung U19 / U21 eg

Sheet Startliste
A2: =Parameter!C9 -> Jugendtag 2022
A3: =Parameter!C7 -> OSPSV
A6: Nr | B6: Abl. | C6: Sch.-Nr | D6: Name | E6: Vorname | F6: JG | G6: Kat | H6: Sektion | I6: P1 | J6: P2 | K6: P3 | L6: P4 | M6: P5 | N6: P6 | O6: IZ | P6: Total
A7: 1 | D7: Aeberli | E7: Lionél | F7: 2010 | G7: 1 | H7: Dettighofen | I7: 65 | J7: 75 | O7: 0 | P7: =SUM(I7:N7) -> 140
A8: 2 | P8: 0
A9: 3 | D9: Ammann | E9: Pirmin | F9: 2007 | G9: 2 | H9: Neckertal | I9: 95 | J9: 97 | O9: 7 | P9: 192
A10: 4 | D10: Ammann | E10: Pirmin | F10: 2007 | G10: 4 | H10: Neckertal | K10: 89 | L10: 86 | O10: 1 | P10: 175
A11: 5 | D11: Auer | E11: Tobias | F11: 2005 | G11: 3 | H11: Sitterdorf | I11: 90 | J11: 88 | O11: 0 | P11: 178
A12: 6 | D12: Balgar | E12: Samuel | F12: 2009 | G12: 2 | H12: Goldach | I12: 88 | J12: 89 | O12: 3 | P12: 177
A13: 7 | D13: Baumgartner | E13: Michael | F13: 2003 | G13: 3 | H13: Munot Schaffhausen | I13: 87 | J13: 93 | O13: 3 | P13: 180
A14: 8 | D14: Beerle | E14: Nina | F14: 2007 | G14: 2 | H14: Goldach | I14: 95 | J14: 92 | O14: 3 | P14: 187
A15: 9 | D15: Berger | E15: Marc | F15: 2013 | G15: 1 | H15: Sitterdorf | I15: 81 | J15: 80 | O15: 1 | P15: 161
A16: 10 | D16: Bernet | E16: Kevin | F16: 2005 | G16: 3 | H16: Kirchberg | I16: 89 | J16: 85 | O16: 2 | P16: 174
A17: 11 | P17: 0
A18: 12 | D18: Blattner | E18: Mia | F18: 2009 | G18: 1 | H18: Goldach | I18: 92 | J18: 88 | O18: 5 | P18: 180
A19: 13 | D19: Bleiker | E19: Beda | F19: 2009 | G19: 1 | H19: Mosnang | I19: 85 | J19: 89 | O19: 1 | P19: 174
A20: 14 | D20: Böhi | E20: Marc | F20: 2009 | G20: 1 | H20: Schönholzerswilen | I20: 90 | J20: 96 | O20: 4 | P20: 186
A21: 15 | D21: Böhi | E21: Sarina | F21: 2009 | G21: 1 | H21: Schönholzerswilen | I21: 93 | J21: 91 | O21: 1 | P21: 184
A22: 16 | D22: Brändli | E22: Joya | F22: 2004 | G22: 3 | H22: Schönholzerswilen | I22: 86 | J22: 92 | O22: 5 | P22: 178
A23: 17 | D23: Broger | E23: Simon | F23: 2006 | G23: 2 | H23: Weissbad | I23: 87 | J23: 90 | O23: 4 | P23: 177
A24: 18 | D24: Broger | E24: Simon | F24: 2006 | G24: 4 | H24: Weissbad | K24: 85 | L24: 84 | P24: 169
A25: 19 | D25: Brühlmann | E25: David | F25: 2004 | G25: 3 | H25: Munot Schaffhausen | I25: 85 | J25: 87 | O25: 1 | P25: 172
A26: 20 | D26: Correia | E26: Jannic | F26: 2009 | G26: 1 | H26: Schönholzerswilen | I26: 92 | J26: 94 | O26: 6 | P26: 186
A27: 21 | D27: Correia | E27: Sandro | F27: 2006 | G27: 2 | H27: Schönholzerswilen | I27: 90 | J27: 90 | O27: 1 | P27: 180
A28: 22 | D28: Deubelbeiss | E28: Jano | F28: 2010 | G28: 1 | H28: Goldach | I28: 88 | J28: 95 | O28: 2 | P28: 183
A29: 23 | D29: Dornbierer | E29: Timon | F29: 2007 | G29: 2 | H29: Goldach | I29: 87 | J29: 87 | O29: 2 | P29: 174
A30: 24 | D30: Eggenberger | E30: Raffael | F30: 2007 | G30: 2 | H30: Grabs | I30: 80 | J30: 84 | O30: 2 | P30: 164
A31: 25 | D31: Fässler | E31: Ryan | F31: 2011 | G31: 1 | H31: Goldach | I31: 90 | J31: 82 | O31: 3 | P31: 172
A32: 26 | D32: Fries | E32: Eliano | F32: 2010 | G32: 1 | H32: Goldach | I32: 87 | J32: 90 | O32: 2 | P32: 177
A33: 27 | D33: Fritsche | E33: Maurus | F33: 2002 | G33: 3 | H33: Weissbad | I33: 91 | J33: 94 | O33: 6 | P33: 185
A34: 28 | D34: Fritsche | E34: Maurus | F34: 2002 | G34: 4 | H34: Weissbad | K34: 90 | L34: 83 | O34: 4 | P34: 173
A35: 29 | D35: Fromm | E35: Valentin | F35: 2008 | G35: 2 | H35: Sargans | I35: 94 | J35: 88 | O35: 3 | P35: 182
A36: 30 | D36: Früh | E36: Janis | F36: 2004 | G36: 3 | H36: Kirchberg | I36: 94 | J36: 97 | O36: 8 | P36: 191
A37: 31 | P37: 0
A38: 32 | D38: Gad | E38: Karim | F38: 2003 | G38: 3 | H38: Munot Schaffhausen | I38: 94 | J38: 88 | O38: 2 | P38: 182
A39: 33 | D39: Geisser | E39: Roman | F39: 2006 | G39: 2 | H39: Dicken Ebnat-Kappel | I39: 93 | J39: 90 | O39: 5 | P39: =SUM(I39:N39) -> 183
A40: 35 | D40: Gmünder | E40: Janin | F40: 2005 | G40: 3 | H40: Weissbad | I40: 91 | J40: 91 | O40: 1 | P40: 182
A41: 34 | D41: Gmünder | E41: Ralf | F41: 2005 | G41: 3 | H41: Weissbad | I41: 92 | J41: 96 | O41: 2 | P41: 188
A42: 36 | P42: 0
A43: 37 | D43: Good | E43: Cedric | F43: 2009 | G43: 2 | H43: Sargans | I43: 89 | J43: 85 | O43: 1 | P43: 174
A44: 38 | D44: Graf | E44: Felix | F44: 2011 | G44: 1 | H44: Kirchberg | I44: 86 | J44: 92 | O44: 2 | P44: 178
A45: 39 | D45: Graf | E45: Rahel | F45: 2010 | G45: 1 | H45: Kirchberg | I45: 89 | J45: 93 | O45: 3 | P45: 182
A46: 40 | D46: Hagen | E46: Linn | F46: 2009 | G46: 1 | H46: Dettighofen | I46: 94 | J46: 96 | O46: 8 | P46: 190
A47: 41 | P47: 0
A48: 42 | D48: Hassioui | E48: Elias | F48: 2011 | G48: 1 | H48: Sitterdorf | I48: 86 | J48: 93 | O48: 4 | P48: 179
A49: 43 | D49: Henke | E49: Quentin | F49: 2009 | G49: 2 | H49: Kirchberg | I49: 81 | J49: 72 | O49: 0 | P49: 153
A50: 44 | D50: Huldi | E50: Patrick | F50: 2009 | G50: 1 | H50: Neckertal | I50: 89 | J50: 89 | O50: 4 | P50: 178
A51: 45 | P51: 0
A52: 46 | D52: Jordi | E52: Lena | F52: 2010 | G52: 1 | H52: Dicken Ebnat-Kappel | I52: 92 | J52: 92 | O52: 4 | P52: 184
A53: 47 | D53: Kalbitz | E53: Andrin | F53: 2008 | G53: 2 | H53: Weinfelden | I53: 81 | J53: 78 | O53: 0 | P53: 159
A54: 48 | D54: Klein | E54: Elias | F54: 2003 | G54: 3 | H54: Kirchberg | I54: 93 | J54: 92 | O54: 4 | P54: 185
A55: 49 | D55: Koch | E55: Leandro | F55: 2011 | G55: 1 | H55: Weissbad | I55: 85 | J55: 79 | O55: 1 | P55: 164
A56: 50 | D56: Koller | E56: Bryan | F56: 2009 | G56: 1 | H56: Kirchberg | I56: 86 | J56: 84 | O56: 1 | P56: 170
A57: 51 | D57: Krähemann | E57: Levano | F57: 2006 | G57: 2 | H57: Wil | I57: 94 | J57: 95 | O57: 7 | P57: 189
A58: 52 | D58: Kressel | E58: Niclas | F58: 2006 | G58: 2 | H58: Sargans | I58: 96 | J58: 96 | O58: 2 | P58: 192
A59: 53 | D59: Kummer | E59: Livio | F59: 2005 | G59: 3 | H59: Munot Schaffhausen | I59: 94 | J59: 94 | O59: 7 | P59: 188
A60: 54 | D60: Künzli | E60: Ian | F60: 2006 | G60: 2 | H60: Dicken Ebnat-Kappel | I60: 94 | J60: 90 | O60: 4 | P60: 184
A61: 55 | D61: Küttel | E61: Patrick | F61: 2006 | G61: 2 | H61: Schönholzerswilen | I61: 82 | J61: 82 | O61: 3 | P61: 164
A62: 56 | D62: Kutter | E62: Joel | F62: 2010 | G62: 2 | H62: Dettighofen | I62: 83 | J62: 87 | O62: 0 | P62: 170
A63: 57 | D63: Lengwiler | E63: Tobias | F63: 2003 | G63: 3 | H63: Sitterdorf | I63: 92 | J63: 95 | O63: 3 | P63: 187
A64: 58 | D64: Lengyel | E64: Zsombor | F64: 2006 | G64: 2 | H64: Sargans | I64: 94 | J64: 94 | O64: 6 | P64: 188
A65: 59 | D65: Locher | E65: Livio | F65: 2002 | G65: 3 | H65: Weissbad | I65: 92 | J65: 90 | O65: 1 | P65: 182
A66: 60 | D66: Locher | E66: Livio | F66: 2002 | G66: 4 | H66: Weissbad | K66: 92 | L66: 93 | O66: 4 | P66: 185
A67: 61 | D67: Lüber | E67: Lara | F67: 2008 | G67: 2 | H67: Kirchberg | I67: 93 | J67: 92 | O67: 3 | P67: 185
A68: 62 | P68: 0
A69: 63 | P69: 0
A70: 64 | D70: Mäder | E70: Ramona | F70: 2008 | G70: 1 | H70: Sitterdorf | I70: 93 | J70: 92 | O70: 3 | P70: 185
A71: 65 | D71: Manser | E71: Jonas | F71: 2006 | G71: 2 | H71: Weissbad | I71: 93 | J71: 91 | O71: 5 | P71: =SUM(I71:N71) -> 184
A72: 66 | D72: Manser | E72: Jonas | F72: 2006 | G72: 4 | H72: Weissbad | K72: 80 | L72: 83 | P72: 163
A73: 67 | D73: Marciello | E73: Chiara | F73: 2008 | G73: 2 | H73: Weinfelden | I73: 91 | J73: 92 | O73: 1 | P73: 183
A74: 68 | D74: Marciello | E74: Chiara | F74: 2008 | G74: 4 | H74: Weinfelden | K74: 89 | L74: 90 | O74: 4 | P74: 179
A75: 69 | D75: Matanovic | E75: Josipa | F75: 2007 | G75: 2 | H75: Grabs | I75: 85 | J75: 85 | O75: 1 | P75: 170
A76: 72 | D76: Meier | E76: Astid | F76: 2002 | G76: 3 | H76: St.Gallen | I76: 100 | J76: 97 | O76: 6 | P76: 197
A77: 71 | D77: Meier | E77: Jerome | F77: 2012 | G77: 1 | H77: Schönholzerswilen | I77: 81 | J77: 79 | O77: 0 | P77: 160
A78: 70 | D78: Meier | E78: Noah | F78: 2010 | G78: 1 | H78: Goldach | I78: 88 | J78: 93 | O78: 2 | P78: 181
A79: 73 | D79: Mettler | E79: Andri | F79: 2010 | G79: 1 | H79: Neckertal | I79: 83 | J79: 92 | O79: 4 | P79: 175
A80: 74 | D80: Moser | E80: Jan | F80: 2007 | G80: 2 | H80: Wildhaus | I80: 91 | J80: 91 | O80: 3 | P80: 182
A81: 75 | D81: Moser | E81: Jan | F81: 2007 | G81: 4 | H81: Wildhaus | K81: 87 | L81: 88 | O81: 2 | P81: 175
A82: 137 | D82: Münger | E82: Benaja | F82: 2008 | G82: 1 | H82: Neckertal | I82: 75 | J82: 73 | O82: 0 | P82: 148
A83: 76 | D83: Munskgaard | E83: William | F83: 2007 | G83: 2 | H83: Sargans | I83: 93 | J83: 89 | O83: 6 | P83: 182
A84: 77 | D84: Niederer | E84: Remo | F84: 2011 | G84: 1 | H84: Neckertal | I84: 95 | J84: 92 | O84: 4 | P84: 187
A85: 78 | D85: Oberholzer | E85: Raffael | F85: 2005 | G85: 3 | H85: Sitterdorf | I85: 88 | J85: 89 | O85: 1 | P85: 177
A86: 79 | D86: Oettli | E86: Philipp | F86: 2006 | G86: 2 | H86: Weinfelden | I86: 86 | J86: 88 | O86: 1 | P86: 174
A87: 80 | P87: 0
A88: 82 | D88: Patt | E88: Andrea | F88: 2006 | G88: 2 | H88: St.Gallen | I88: 89 | J88: 88 | O88: 4 | P88: 177
A89: 81 | D89: Patt | E89: Michel | F89: 2009 | G89: 1 | H89: St.Gallen | I89: 98 | J89: 95 | O89: 8 | P89: 193
A90: 83 | D90: Pfützner | E90: Philipp | F90: 2006 | G90: 2 | H90: Sargans | I90: 92 | J90: 92 | O90: 4 | P90: 184
A91: 84 | D91: Rick | E91: Colin | F91: 2009 | G91: 2 | H91: Goldach | I91: 95 | J91: 77 | O91: 2 | P91: 172
A92: 85 | D92: Rohner | E92: Ciril | F92: 2006 | G92: 2 | H92: Kirchberg | I92: 94 | J92: 93 | O92: 5 | P92: 187
A93: 86 | D93: Rohner | E93: Enea | F93: 2012 | G93: 1 | H93: Sitterdorf | I93: 78 | J93: 80 | O93: 0 | P93: 158
A94: 87 | D94: Sawall | E94: Fabienne | F94: 2007 | G94: 2 | H94: Grabs | I94: 88 | J94: 86 | O94: 5 | P94: 174
A95: 88 | D95: Schaub | E95: Alyssia | F95: 2009 | G95: 1 | H95: Mosnang | I95: 95 | J95: 88 | O95: 6 | P95: 183
A96: 89 | D96: Scherrer | E96: Benjamin | F96: 2003 | G96: 3 | H96: Weinfelden | I96: 96 | J96: 97 | O96: 9 | P96: 193
A97: 90 | D97: Scherrer | E97: Benjamin | F97: 2003 | G97: 4 | H97: Weinfelden | K97: 83 | L97: 74 | P97: 157
A98: 91 | D98: Schittenhelm | E98: Dennis | F98: 2003 | G98: 4 | H98: Goldach | K98: 90 | L98: 86 | O98: 3 | P98: 176
A99: 92 | D99: Schittenhelm | E99: Dennis | F99: 2003 | G99: 3 | H99: Goldach | I99: 93 | J99: 96 | O99: 5 | P99: 189
A100: 93 | D100: Schläpfer | E100: Michael | F100: 2009 | G100: 2 | H100: Weinfelden | I100: 90 | J100: 86 | O100: 3 | P100: 176
A101: 94 | P101: 0
A102: 95 | D102: Schönenberger | E102: Fynn | F102: 2010 | G102: 1 | H102: Sitterdorf | I102: 90 | J102: 88 | O102: 1 | P102: 178
A103: 96 | D103: Schönenberger | E103: Zoé | F103: 2007 | G103: 2 | H103: Sitterdorf | I103: 92 | J103: 91 | O103: 4 | P103: =SUM(I103:N103) -> 183
A104: 97 | D104: Schönenberger | E104: Zoé | F104: 2007 | G104: 4 | H104: Sitterdorf | K104: 62 | L104: 71 | O104: 0 | P104: 133
A105: 98 | P105: 0
A106: 99 | D106: Schrittwieser | E106: Thomas | F106: 2005 | G106: 3 | H106: Weinfelden | I106: 90 | J106: 87 | O106: 1 | P106: 177
A107: 100 | D107: Schumacher | E107: Manuel | F107: 2003 | G107: 3 | H107: Weinfelden | I107: 93 | J107: 88 | O107: 5 | P107: 181
A108: 102 | D108: Segmüller | E108: Arno | F108: 2006 | G108: 2 | H108: Altstätten | I108: 77 | J108: 87 | O108: 0 | P108: 164
A109: 101 | D109: Segmüller | E109: Joe | F109: 2010 | G109: 1 | H109: Altstätten | I109: 94 | J109: 93 | O109: 5 | P109: 187
A110: 103 | D110: Segmüller | E110: Nando | F110: 2003 | G110: 3 | H110: Altstätten | I110: 88 | J110: 96 | O110: 2 | P110: 184
A111: 104 | D111: Speck | E111: Corina | F111: 2005 | G111: 3 | H111: Weissbad | I111: 97 | J111: 96 | O111: 7 | P111: 193
A112: 105 | D112: Sprenger | E112: Sven | F112: 2008 | G112: 2 | H112: Altstätten | I112: 95 | J112: 94 | O112: 5 | P112: 189
A113: 106 | P113: 0
A114: 107 | D114: Städler | E114: Sven | F114: 2005 | G114: 3 | H114: Weissbad | I114: 87 | J114: 87 | O114: 1 | P114: 174
A115: 108 | D115: Staub | E115: Kaya | F115: 2008 | G115: 1 | H115: Schönholzerswilen | I115: 87 | J115: 91 | O115: 2 | P115: 178
A116: 109 | D116: Staub | E116: Lea | F116: 2002 | G116: 3 | H116: Schönholzerswilen | I116: 95 | J116: 95 | O116: 6 | P116: 190
A117: 110 | D117: Steiner | E117: Joshua | F117: 2009 | G117: 1 | H117: Neckertal | I117: 89 | J117: 93 | O117: 4 | P117: 182
A118: 111 | D118: Steuck | E118: Luca | F118: 2009 | G118: 1 | H118: Mosnang | I118: 92 | J118: 94 | O118: 6 | P118: 186
A119: 112 | D119: Stieger | E119: Ken | F119: 2006 | G119: 2 | H119: Weinfelden | I119: 82 | J119: 78 | O119: 1 | P119: 160
A120: 113 | D120: Straub | E120: Patrick | F120: 2009 | G120: 2 | H120: Dettighofen | I120: 79 | J120: 84 | O120: 1 | P120: 163
A121: 114 | D121: Strübi | E121: Manuel | F121: 2008 | G121: 2 | H121: Wildhaus | I121: 92 | J121: 94 | O121: 4 | P121: 186
A122: 115 | D122: Strübi | E122: Manuel | F122: 2008 | G122: 4 | H122: Wildhaus | K122: 84 | L122: 83 | O122: 2 | P122: 167
A123: 117 | D123: Studer | E123: Julien | F123: 2010 | G123: 1 | H123: Munot Schaffhausen | I123: 85 | J123: 87 | O123: 1 | P123: 172
A124: 116 | P124: 0
A125: 118 | D125: Sutter | E125: Janine | F125: 2010 | G125: 1 | H125: Schönholzerswilen | I125: 94 | J125: 93 | O125: 8 | P125: 187
A126: 119 | D126: Sutter | E126: Natascha | F126: 2004 | G126: 3 | H126: Schönholzerswilen | I126: 89 | J126: 93 | O126: 4 | P126: 182
A127: 120 | D127: Taranto | E127: Arya | F127: 2008 | G127: 2 | H127: Wil | I127: 81 | J127: 82 | O127: 1 | P127: 163
A128: 121 | D128: Thalmann | E128: Robin | F128: 2012 | G128: 1 | H128: Weinfelden | I128: 62 | J128: 69 | O128: 1 | P128: 131
A129: 122 | D129: Thalmann | E129: Silas | F129: 2010 | G129: 1 | H129: Weinfelden | I129: 66 | J129: 84 | O129: 1 | P129: 150
A130: 123 | D130: Truniger | E130: Nils | F130: 2008 | G130: 1 | H130: Mosnang | I130: 86 | J130: 86 | O130: 2 | P130: 172
A131: 124 | P131: 0
A132: 125 | D132: Ulmann | E132: Jan | F132: 2005 | G132: 3 | H132: Weissbad | I132: 90 | J132: 93 | O132: 2 | P132: 183
A133: 126 | D133: Ulmann | E133: Jan | F133: 2005 | G133: 4 | H133: Weissbad | K133: 83 | L133: 85 | O133: 1 | P133: 168
A134: 127 | D134: Wachsmann | E134: Phillip | F134: 2008 | G134: 1 | H134: Sargans | I134: 89 | J134: 90 | O134: 3 | P134: 179
A135: 128 | D135: Weitbrecht | E135: Talitha | F135: 2009 | G135: 2 | H135: Sargans | I135: 91 | J135: 93 | O135: 3 | P135: =SUM(I135:N135) -> 184
A136: 129 | D136: Wenk | E136: Alexander | F136: 2011 | G136: 1 | H136: Goldach | I136: 86 | J136: 93 | O136: 3 | P136: 179
A137: 130 | D137: Wichser | E137: Mia | F137: 2009 | G137: 1 | H137: Grabs | I137: 91 | J137: 92 | O137: 2 | P137: 183
A138: 131 | D138: Wiederkehr | E138: Yari | F138: 2006 | G138: 2 | H138: Kirchberg | I138: 92 | J138: 94 | O138: 5 | P138: 186
A139: 132 | D139: Wildi | E139: Clarissa | F139: 2008 | G139: 1 | H139: Grabs | I139: 92 | J139: 87 | O139: 1 | P139: 179
A140: 133 | D140: Ziegler | E140: Timo | F140: 2010 | G140: 1 | H140: Neckertal | I140: 92 | J140: 90 | O140: 4 | P140: 182
A141: 134 | D141: Ziltener | E141: Sina | F141: 2007 | G141: 2 | H141: Goldach | I141: 86 | J141: 89 | O141: 1 | P141: 175
A142: 135 | D142: Zumstein | E142: Vincenza | F142: 2005 | G142: 3 | H142: Weissbad | I142: 92 | J142: 90 | O142: 2 | P142: 182
A143: 136 | D143: Zweifel | E143: Noel | F143: 2010 | G143: 2 | H143: Kirchberg | I143: 85 | J143: 87 | O143: 4 | P143: 172
A144: 138 | P144: 0
P145: 0
P146: 0
P147: 0
P148: 0
P149: 0
P150: 0
P151: 0
P152: 0
P153: 0
P154: 0
P155: 0
P156: 0
P157: 0
P158: 0
P159: 0
P160: 0
P161: 0
P162: 0
P163: 0
P164: 0
P165: 0
P166: 0
P167: =SUM(I167:N167) -> 0
P168: 0
P169: 0
P170: 0
P171: 0
P172: 0
P173: 0
P174: 0
P175: 0
P176: 0
P177: 0
P178: 0
P179: 0
P180: 0
P181: 0
P182: 0
P183: 0
P184: 0
P185: 0
P186: 0
P187: 0
P188: 0
P189: 0
P190: 0
P191: 0
P192: 0
P193: 0
P194: 0
P195: 0
P196: 0
P197: 0
P198: 0
P199: =SUM(I199:N199) -> 0
P200: 0
P201: 0
P202: 0
P203: 0
... 3 more rows

Sheet Kategorie 1
A2: =Parameter!C7 -> OSPSV
A3: =Parameter!C9 -> Jugendtag 2022
A4: =Parameter!C11 -> Kat. 1 Jugend aufgelegt U10 / U13 / U15
I5: liegend
A6: Nr | B6: Abl. | C6: Sch.-Nr | D6: Name | E6: Vorname | F6: JG | G6: Kat | H6: Sektion | I6: P1 | J6: P2 | K6: P3 | L6: P4 | M6: P5 | N6: P6 | O6: IZ | P6: Total | Q6: Rang | S6: KK
A7: 81 | D7: Patt | E7: Michel | F7: 2009 | G7: 1 | H7: St.Gallen | I7: 98 | J7: 95 | O7: 8 | P7: =SUM(I7:J7) -> 193 | Q7: =IF(P7=0," ",_xlfn.RANK.EQ(P7,$P$7:$P$206,0)+ COUNTIF(P$7:P7, P7) - 1) -> 1 | R7: =IF(Q7=2,"Silber","") ->  | S7: G
A8: 40 | D8: Hagen | E8: Linn | F8: 2009 | G8: 1 | H8: Dettighofen | I8: 94 | J8: 96 | O8: 8 | P8: 190 | Q8: =IF(P8=0," ",_xlfn.RANK.EQ(P8,$P$7:$P$206,0)+ COUNTIF(P$7:P8, P8) - 1) -> 2 | R8: =IF(Q8=1,"Gold","") ->  | S8: S
A9: 118 | D9: Sutter | E9: Janine | F9: 2010 | G9: 1 | H9: Schönholzerswilen | I9: 94 | J9: 93 | O9: 8 | P9: 187 | Q9: =IF(P9=0," ",_xlfn.RANK.EQ(P9,$P$7:$P$206,0)+ COUNTIF(P$7:P9, P9) - 1) -> 3 | S9: B
A10: 101 | D10: Segmüller | E10: Joe | F10: 2010 | G10: 1 | H10: Altstätten | I10: 94 | J10: 93 | O10: 5 | P10: 187 | Q10: =IF(P10=0," ",_xlfn.RANK.EQ(P10,$P$7:$P$206,0)+ COUNTIF(P$7:P10, P10) - 1) -> 4 | R10: =IF(Q10=3,"Bronze","") ->  | S10: 8
A11: 77 | D11: Niederer | E11: Remo | F11: 2011 | G11: 1 | H11: Neckertal | I11: 95 | J11: 92 | O11: 4 | P11: 187 | Q11: =IF(P11=0," ",_xlfn.RANK.EQ(P11,$P$7:$P$206,0)+ COUNTIF(P$7:P11, P11) - 1) -> 5 | S11: 8
A12: 20 | D12: Correia | E12: Jannic | F12: 2009 | G12: 1 | H12: Schönholzerswilen | I12: 92 | J12: 94 | O12: 6 | P12: 186 | Q12: =IF(P12=0," ",_xlfn.RANK.EQ(P12,$P$7:$P$206,0)+ COUNTIF(P$7:P12, P12) - 1) -> 6 | S12: 8
A13: 111 | D13: Steuck | E13: Luca | F13: 2009 | G13: 1 | H13: Mosnang | I13: 92 | J13: 94 | O13: 6 | P13: 186 | Q13: =IF(P13=0," ",_xlfn.RANK.EQ(P13,$P$7:$P$206,0)+ COUNTIF(P$7:P13, P13) - 1) -> 7 | S13: 8
A14: 14 | D14: Böhi | E14: Marc | F14: 2009 | G14: 1 | H14: Schönholzerswilen | I14: 90 | J14: 96 | O14: 4 | P14: 186 | Q14: =IF(P14=0," ",_xlfn.RANK.EQ(P14,$P$7:$P$206,0)+ COUNTIF(P$7:P14, P14) - 1) -> 8 | S14: 8
A15: 64 | D15: Mäder | E15: Ramona | F15: 2008 | G15: 1 | H15: Sitterdorf | I15: 93 | J15: 92 | O15: 3 | P15: 185 | Q15: =IF(P15=0," ",_xlfn.RANK.EQ(P15,$P$7:$P$206,0)+ COUNTIF(P$7:P15, P15) - 1) -> 9 | S15: 8
A16: 46 | D16: Jordi | E16: Lena | F16: 2010 | G16: 1 | H16: Dicken Ebnat-Kappel | I16: 92 | J16: 92 | O16: 4 | P16: 184 | Q16: =IF(P16=0," ",_xlfn.RANK.EQ(P16,$P$7:$P$206,0)+ COUNTIF(P$7:P16, P16) - 1) -> 10 | S16: 8
A17: 15 | D17: Böhi | E17: Sarina | F17: 2009 | G17: 1 | H17: Schönholzerswilen | I17: 93 | J17: 91 | O17: 1 | P17: 184 | Q17: =IF(P17=0," ",_xlfn.RANK.EQ(P17,$P$7:$P$206,0)+ COUNTIF(P$7:P17, P17) - 1) -> 11 | S17: 8
A18: 88 | D18: Schaub | E18: Alyssia | F18: 2009 | G18: 1 | H18: Mosnang | I18: 95 | J18: 88 | O18: 6 | P18: 183 | Q18: =IF(P18=0," ",_xlfn.RANK.EQ(P18,$P$7:$P$206,0)+ COUNTIF(P$7:P18, P18) - 1) -> 12 | S18: 8
A19: 22 | D19: Deubelbeiss | E19: Jano | F19: 2010 | G19: 1 | H19: Goldach | I19: 88 | J19: 95 | O19: 2 | P19: 183 | Q19: =IF(P19=0," ",_xlfn.RANK.EQ(P19,$P$7:$P$206,0)+ COUNTIF(P$7:P19, P19) - 1) -> 13 | S19: 8
A20: 130 | D20: Wichser | E20: Mia | F20: 2009 | G20: 1 | H20: Grabs | I20: 91 | J20: 92 | O20: 2 | P20: 183 | Q20: =IF(P20=0," ",_xlfn.RANK.EQ(P20,$P$7:$P$206,0)+ COUNTIF(P$7:P20, P20) - 1) -> 14 | S20: 5
A21: 110 | D21: Steiner | E21: Joshua | F21: 2009 | G21: 1 | H21: Neckertal | I21: 89 | J21: 93 | O21: 4 | P21: 182 | Q21: =IF(P21=0," ",_xlfn.RANK.EQ(P21,$P$7:$P$206,0)+ COUNTIF(P$7:P21, P21) - 1) -> 15 | S21: 5
A22: 133 | D22: Ziegler | E22: Timo | F22: 2010 | G22: 1 | H22: Neckertal | I22: 92 | J22: 90 | O22: 4 | P22: 182 | Q22: =IF(P22=0," ",_xlfn.RANK.EQ(P22,$P$7:$P$206,0)+ COUNTIF(P$7:P22, P22) - 1) -> 16 | S22: 5
A23: 39 | D23: Graf | E23: Rahel | F23: 2010 | G23: 1 | H23: Kirchberg | I23: 89 | J23: 93 | O23: 3 | P23: 182 | Q23: =IF(P23=0," ",_xlfn.RANK.EQ(P23,$P$7:$P$206,0)+ COUNTIF(P$7:P23, P23) - 1) -> 17 | S23: 5
A24: 70 | D24: Meier | E24: Noah | F24: 2010 | G24: 1 | H24: Goldach | I24: 88 | J24: 93 | O24: 2 | P24: 181 | Q24: =IF(P24=0," ",_xlfn.RANK.EQ(P24,$P$7:$P$206,0)+ COUNTIF(P$7:P24, P24) - 1) -> 18 | S24: 5
A25: 12 | D25: Blattner | E25: Mia | F25: 2009 | G25: 1 | H25: Goldach | I25: 92 | J25: 88 | O25: 5 | P25: 180 | Q25: =IF(P25=0," ",_xlfn.RANK.EQ(P25,$P$7:$P$206,0)+ COUNTIF(P$7:P25, P25) - 1) -> 19 | S25: 5
A26: 42 | D26: Hassioui | E26: Elias | F26: 2011 | G26: 1 | H26: Sitterdorf | I26: 86 | J26: 93 | O26: 4 | P26: 179 | Q26: =IF(P26=0," ",_xlfn.RANK.EQ(P26,$P$7:$P$206,0)+ COUNTIF(P$7:P26, P26) - 1) -> 20 | S26: 5
A27: 129 | D27: Wenk | E27: Alexander | F27: 2011 | G27: 1 | H27: Goldach | I27: 86 | J27: 93 | O27: 3 | P27: 179 | Q27: =IF(P27=0," ",_xlfn.RANK.EQ(P27,$P$7:$P$206,0)+ COUNTIF(P$7:P27, P27) - 1) -> 21 | S27: 5
A28: 127 | D28: Wachsmann | E28: Phillip | F28: 2008 | G28: 1 | H28: Sargans | I28: 89 | J28: 90 | O28: 3 | P28: 179 | Q28: =IF(P28=0," ",_xlfn.RANK.EQ(P28,$P$7:$P$206,0)+ COUNTIF(P$7:P28, P28) - 1) -> 22 | S28: 5
A29: 132 | D29: Wildi | E29: Clarissa | F29: 2008 | G29: 1 | H29: Grabs | I29: 92 | J29: 87 | O29: 1 | P29: 179 | Q29: =IF(P29=0," ",_xlfn.RANK.EQ(P29,$P$7:$P$206,0)+ COUNTIF(P$7:P29, P29) - 1) -> 23 | S29: 5
A30: 44 | D30: Huldi | E30: Patrick | F30: 2009 | G30: 1 | H30: Neckertal | I30: 89 | J30: 89 | O30: 4 | P30: 178 | Q30: =IF(P30=0," ",_xlfn.RANK.EQ(P30,$P$7:$P$206,0)+ COUNTIF(P$7:P30, P30) - 1) -> 24
A31: 38 | D31: Graf | E31: Felix | F31: 2011 | G31: 1 | H31: Kirchberg | I31: 86 | J31: 92 | O31: 2 | P31: 178 | Q31: =IF(P31=0," ",_xlfn.RANK.EQ(P31,$P$7:$P$206,0)+ COUNTIF(P$7:P31, P31) - 1) -> 25
A32: 108 | D32: Staub | E32: Kaya | F32: 2008 | G32: 1 | H32: Schönholzerswilen | I32: 87 | J32: 91 | O32: 2 | P32: 178 | Q32: =IF(P32=0," ",_xlfn.RANK.EQ(P32,$P$7:$P$206,0)+ COUNTIF(P$7:P32, P32) - 1) -> 26
A33: 95 | D33: Schönenberger | E33: Fynn | F33: 2010 | G33: 1 | H33: Sitterdorf | I33: 90 | J33: 88 | O33: 1 | P33: 178 | Q33: =IF(P33=0," ",_xlfn.RANK.EQ(P33,$P$7:$P$206,0)+ COUNTIF(P$7:P33, P33) - 1) -> 27
A34: 26 | D34: Fries | E34: Eliano | F34: 2010 | G34: 1 | H34: Goldach | I34: 87 | J34: 90 | O34: 2 | P34: 177 | Q34: =IF(P34=0," ",_xlfn.RANK.EQ(P34,$P$7:$P$206,0)+ COUNTIF(P$7:P34, P34) - 1) -> 28
A35: 73 | D35: Mettler | E35: Andri | F35: 2010 | G35: 1 | H35: Neckertal | I35: 83 | J35: 92 | O35: 4 | P35: 175 | Q35: =IF(P35=0," ",_xlfn.RANK.EQ(P35,$P$7:$P$206,0)+ COUNTIF(P$7:P35, P35) - 1) -> 29
A36: 13 | D36: Bleiker | E36: Beda | F36: 2009 | G36: 1 | H36: Mosnang | I36: 85 | J36: 89 | O36: 1 | P36: 174 | Q36: =IF(P36=0," ",_xlfn.RANK.EQ(P36,$P$7:$P$206,0)+ COUNTIF(P$7:P36, P36) - 1) -> 30
A37: 25 | D37: Fässler | E37: Ryan | F37: 2011 | G37: 1 | H37: Goldach | I37: 90 | J37: 82 | O37: 3 | P37: 172 | Q37: =IF(P37=0," ",_xlfn.RANK.EQ(P37,$P$7:$P$206,0)+ COUNTIF(P$7:P37, P37) - 1) -> 31
A38: 123 | D38: Truniger | E38: Nils | F38: 2008 | G38: 1 | H38: Mosnang | I38: 86 | J38: 86 | O38: 2 | P38: 172 | Q38: =IF(P38=0," ",_xlfn.RANK.EQ(P38,$P$7:$P$206,0)+ COUNTIF(P$7:P38, P38) - 1) -> 32
A39: 117 | D39: Studer | E39: Julien | F39: 2010 | G39: 1 | H39: Munot Schaffhausen | I39: 85 | J39: 87 | O39: 1 | P39: =SUM(I39:J39) -> 172 | Q39: =IF(P39=0," ",_xlfn.RANK.EQ(P39,$P$7:$P$206,0)+ COUNTIF(P$7:P39, P39) - 1) -> 33
A40: 50 | D40: Koller | E40: Bryan | F40: 2009 | G40: 1 | H40: Kirchberg | I40: 86 | J40: 84 | O40: 1 | P40: 170 | Q40: =IF(P40=0," ",_xlfn.RANK.EQ(P40,$P$7:$P$206,0)+ COUNTIF(P$7:P40, P40) - 1) -> 34
A41: 49 | D41: Koch | E41: Leandro | F41: 2011 | G41: 1 | H41: Weissbad | I41: 85 | J41: 79 | O41: 1 | P41: 164 | Q41: =IF(P41=0," ",_xlfn.RANK.EQ(P41,$P$7:$P$206,0)+ COUNTIF(P$7:P41, P41) - 1) -> 35
A42: 9 | D42: Berger | E42: Marc | F42: 2013 | G42: 1 | H42: Sitterdorf | I42: 81 | J42: 80 | O42: 1 | P42: 161 | Q42: =IF(P42=0," ",_xlfn.RANK.EQ(P42,$P$7:$P$206,0)+ COUNTIF(P$7:P42, P42) - 1) -> 36
A43: 71 | D43: Meier | E43: Jerome | F43: 2012 | G43: 1 | H43: Schönholzerswilen | I43: 81 | J43: 79 | O43: 0 | P43: 160 | Q43: =IF(P43=0," ",_xlfn.RANK.EQ(P43,$P$7:$P$206,0)+ COUNTIF(P$7:P43, P43) - 1) -> 37
A44: 86 | D44: Rohner | E44: Enea | F44: 2012 | G44: 1 | H44: Sitterdorf | I44: 78 | J44: 80 | O44: 0 | P44: 158 | Q44: =IF(P44=0," ",_xlfn.RANK.EQ(P44,$P$7:$P$206,0)+ COUNTIF(P$7:P44, P44) - 1) -> 38
A45: 122 | D45: Thalmann | E45: Silas | F45: 2010 | G45: 1 | H45: Weinfelden | I45: 66 | J45: 84 | O45: 1 | P45: 150 | Q45: =IF(P45=0," ",_xlfn.RANK.EQ(P45,$P$7:$P$206,0)+ COUNTIF(P$7:P45, P45) - 1) -> 39
A46: 137 | D46: Münger | E46: Benaja | F46: 2008 | G46: 1 | H46: Neckertal | I46: 75 | J46: 73 | O46: 0 | P46: 148 | Q46: =IF(P46=0," ",_xlfn.RANK.EQ(P46,$P$7:$P$206,0)+ COUNTIF(P$7:P46, P46) - 1) -> 40
A47: 1 | D47: Aeberli | E47: Lionél | F47: 2010 | G47: 1 | H47: Dettighofen | I47: 65 | J47: 75 | O47: 0 | P47: 140 | Q47: =IF(P47=0," ",_xlfn.RANK.EQ(P47,$P$7:$P$206,0)+ COUNTIF(P$7:P47, P47) - 1) -> 41
A48: 121 | D48: Thalmann | E48: Robin | F48: 2012 | G48: 1 | H48: Weinfelden | I48: 62 | J48: 69 | O48: 1 | P48: 131 | Q48: =IF(P48=0," ",_xlfn.RANK.EQ(P48,$P$7:$P$206,0)+ COUNTIF(P$7:P48, P48) - 1) -> 42
P49: 0 | Q49: =IF(P49=0," ",_xlfn.RANK.EQ(P49,$P$7:$P$206,0)+ COUNTIF(P$7:P49, P49) - 1) -> 
P50: 0 | Q50: =IF(P50=0," ",_xlfn.RANK.EQ(P50,$P$7:$P$206,0)+ COUNTIF(P$7:P50, P50) - 1) -> 
P51: 0 | Q51: =IF(P51=0," ",_xlfn.RANK.EQ(P51,$P$7:$P$206,0)+ COUNTIF(P$7:P51, P51) - 1) -> 
P52: 0 | Q52: =IF(P52=0," ",_xlfn.RANK.EQ(P52,$P$7:$P$206,0)+ COUNTIF(P$7:P52, P52) - 1) -> 
P53: 0 | Q53: =IF(P53=0," ",_xlfn.RANK.EQ(P53,$P$7:$P$206,0)+ COUNTIF(P$7:P53, P53) - 1) -> 
P54: 0 | Q54: =IF(P54=0," ",_xlfn.RANK.EQ(P54,$P$7:$P$206,0)+ COUNTIF(P$7:P54, P54) - 1) -> 
P55: 0 | Q55: =IF(P55=0," ",_xlfn.RANK.EQ(P55,$P$7:$P$206,0)+ COUNTIF(P$7:P55, P55) - 1) -> 
P56: 0 | Q56: =IF(P56=0," ",_xlfn.RANK.EQ(P56,$P$7:$P$206,0)+ COUNTIF(P$7:P56, P56) - 1) -> 
P57: 0 | Q57: =IF(P57=0," ",_xlfn.RANK.EQ(P57,$P$7:$P$206,0)+ COUNTIF(P$7:P57, P57) - 1) -> 
P58: 0 | Q58: =IF(P58=0," ",_xlfn.RANK.EQ(P58,$P$7:$P$206,0)+ COUNTIF(P$7:P58, P58) - 1) -> 
P59: 0 | Q59: =IF(P59=0," ",_xlfn.RANK.EQ(P59,$P$7:$P$206,0)+ COUNTIF(P$7:P59, P59) - 1) -> 
P60: 0 | Q60: =IF(P60=0," ",_xlfn.RANK.EQ(P60,$P$7:$P$206,0)+ COUNTIF(P$7:P60, P60) - 1) -> 
P61: 0 | Q61: =IF(P61=0," ",_xlfn.RANK.EQ(P61,$P$7:$P$206,0)+ COUNTIF(P$7:P61, P61) - 1) -> 
P62: 0 | Q62: =IF(P62=0," ",_xlfn.RANK.EQ(P62,$P$7:$P$206,0)+ COUNTIF(P$7:P62, P62) - 1) -> 
P63: 0 | Q63: =IF(P63=0," ",_xlfn.RANK.EQ(P63,$P$7:$P$206,0)+ COUNTIF(P$7:P63, P63) - 1) -> 
P64: 0 | Q64: =IF(P64=0," ",_xlfn.RANK.EQ(P64,$P$7:$P$206,0)+ COUNTIF(P$7:P64, P64) - 1) -> 
P65: 0 | Q65: =IF(P65=0," ",_xlfn.RANK.EQ(P65,$P$7:$P$206,0)+ COUNTIF(P$7:P65, P65) - 1) -> 
P66: 0 | Q66: =IF(P66=0," ",_xlfn.RANK.EQ(P66,$P$7:$P$206,0)+ COUNTIF(P$7:P66, P66) - 1) -> 
P67: 0 | Q67: =IF(P67=0," ",_xlfn.RANK.EQ(P67,$P$7:$P$206,0)+ COUNTIF(P$7:P67, P67) - 1) -> 
P68: 0 | Q68: =IF(P68=0," ",_xlfn.RANK.EQ(P68,$P$7:$P$206,0)+ COUNTIF(P$7:P68, P68) - 1) -> 
P69: 0 | Q69: =IF(P69=0," ",_xlfn.RANK.EQ(P69,$P$7:$P$206,0)+ COUNTIF(P$7:P69, P69) - 1) -> 
P70: 0 | Q70: =IF(P70=0," ",_xlfn.RANK.EQ(P70,$P$7:$P$206,0)+ COUNTIF(P$7:P70, P70) - 1) -> 
P71: =SUM(I71:J71) -> 0 | Q71: =IF(P71=0," ",_xlfn.RANK.EQ(P71,$P$7:$P$206,0)+ COUNTIF(P$7:P71, P71) - 1) -> 
P72: 0 | Q72: =IF(P72=0," ",_xlfn.RANK.EQ(P72,$P$7:$P$206,0)+ COUNTIF(P$7:P72, P72) - 1) -> 
P73: 0 | Q73: =IF(P73=0," ",_xlfn.RANK.EQ(P73,$P$7:$P$206,0)+ COUNTIF(P$7:P73, P73) - 1) -> 
P74: 0 | Q74: =IF(P74=0," ",_xlfn.RANK.EQ(P74,$P$7:$P$206,0)+ COUNTIF(P$7:P74, P74) - 1) -> 
P75: 0 | Q75: =IF(P75=0," ",_xlfn.RANK.EQ(P75,$P$7:$P$206,0)+ COUNTIF(P$7:P75, P75) - 1) -> 
P76: 0 | Q76: =IF(P76=0," ",_xlfn.RANK.EQ(P76,$P$7:$P$206,0)+ COUNTIF(P$7:P76, P76) - 1) -> 
P77: 0 | Q77: =IF(P77=0," ",_xlfn.RANK.EQ(P77,$P$7:$P$206,0)+ COUNTIF(P$7:P77, P77) - 1) -> 
P78: 0 | Q78: =IF(P78=0," ",_xlfn.RANK.EQ(P78,$P$7:$P$206,0)+ COUNTIF(P$7:P78, P78) - 1) -> 
P79: 0 | Q79: =IF(P79=0," ",_xlfn.RANK.EQ(P79,$P$7:$P$206,0)+ COUNTIF(P$7:P79, P79) - 1) -> 
P80: 0 | Q80: =IF(P80=0," ",_xlfn.RANK.EQ(P80,$P$7:$P$206,0)+ COUNTIF(P$7:P80, P80) - 1) -> 
P81: 0 | Q81: =IF(P81=0," ",_xlfn.RANK.EQ(P81,$P$7:$P$206,0)+ COUNTIF(P$7:P81, P81) - 1) -> 
P82: 0 | Q82: =IF(P82=0," ",_xlfn.RANK.EQ(P82,$P$7:$P$206,0)+ COUNTIF(P$7:P82, P82) - 1) -> 
P83: 0 | Q83: =IF(P83=0," ",_xlfn.RANK.EQ(P83,$P$7:$P$206,0)+ COUNTIF(P$7:P83, P83) - 1) -> 
P84: 0 | Q84: =IF(P84=0," ",_xlfn.RANK.EQ(P84,$P$7:$P$206,0)+ COUNTIF(P$7:P84, P84) - 1) -> 
P85: 0 | Q85: =IF(P85=0," ",_xlfn.RANK.EQ(P85,$P$7:$P$206,0)+ COUNTIF(P$7:P85, P85) - 1) -> 
P86: 0 | Q86: =IF(P86=0," ",_xlfn.RANK.EQ(P86,$P$7:$P$206,0)+ COUNTIF(P$7:P86, P86) - 1) -> 
P87: 0 | Q87: =IF(P87=0," ",_xlfn.RANK.EQ(P87,$P$7:$P$206,0)+ COUNTIF(P$7:P87, P87) - 1) -> 
P88: 0 | Q88: =IF(P88=0," ",_xlfn.RANK.EQ(P88,$P$7:$P$206,0)+ COUNTIF(P$7:P88, P88) - 1) -> 
P89: 0 | Q89: =IF(P89=0," ",_xlfn.RANK.EQ(P89,$P$7:$P$206,0)+ COUNTIF(P$7:P89, P89) - 1) -> 
P90: 0 | Q90: =IF(P90=0," ",_xlfn.RANK.EQ(P90,$P$7:$P$206,0)+ COUNTIF(P$7:P90, P90) - 1) -> 
P91: 0 | Q91: =IF(P91=0," ",_xlfn.RANK.EQ(P91,$P$7:$P$206,0)+ COUNTIF(P$7:P91, P91) - 1) -> 
P92: 0 | Q92: =IF(P92=0," ",_xlfn.RANK.EQ(P92,$P$7:$P$206,0)+ COUNTIF(P$7:P92, P92) - 1) -> 
P93: 0 | Q93: =IF(P93=0," ",_xlfn.RANK.EQ(P93,$P$7:$P$206,0)+ COUNTIF(P$7:P93, P93) - 1) -> 
P94: 0 | Q94: =IF(P94=0," ",_xlfn.RANK.EQ(P94,$P$7:$P$206,0)+ COUNTIF(P$7:P94, P94) - 1) -> 
P95: 0 | Q95: =IF(P95=0," ",_xlfn.RANK.EQ(P95,$P$7:$P$206,0)+ COUNTIF(P$7:P95, P95) - 1) -> 
P96: 0 | Q96: =IF(P96=0," ",_xlfn.RANK.EQ(P96,$P$7:$P$206,0)+ COUNTIF(P$7:P96, P96) - 1) -> 
P97: 0 | Q97: =IF(P97=0," ",_xlfn.RANK.EQ(P97,$P$7:$P$206,0)+ COUNTIF(P$7:P97, P97) - 1) -> 
P98: 0 | Q98: =IF(P98=0," ",_xlfn.RANK.EQ(P98,$P$7:$P$206,0)+ COUNTIF(P$7:P98, P98) - 1) -> 
P99: 0 | Q99: =IF(P99=0," ",_xlfn.RANK.EQ(P99,$P$7:$P$206,0)+ COUNTIF(P$7:P99, P99) - 1) -> 
P100: 0 | Q100: =IF(P100=0," ",_xlfn.RANK.EQ(P100,$P$7:$P$206,0)+ COUNTIF(P$7:P100, P100) - 1) -> 
P101: 0 | Q101: =IF(P101=0," ",_xlfn.RANK.EQ(P101,$P$7:$P$206,0)+ COUNTIF(P$7:P101, P101) - 1) -> 
P102: 0 | Q102: =IF(P102=0," ",_xlfn.RANK.EQ(P102,$P$7:$P$206,0)+ COUNTIF(P$7:P102, P102) - 1) -> 
P103: =SUM(I103:J103) -> 0 | Q103: =IF(P103=0," ",_xlfn.RANK.EQ(P103,$P$7:$P$206,0)+ COUNTIF(P$7:P103, P103) - 1) -> 
P104: 0 | Q104: =IF(P104=0," ",_xlfn.RANK.EQ(P104,$P$7:$P$206,0)+ COUNTIF(P$7:P104, P104) - 1) -> 
P105: 0 | Q105: =IF(P105=0," ",_xlfn.RANK.EQ(P105,$P$7:$P$206,0)+ COUNTIF(P$7:P105, P105) - 1) -> 
P106: 0 | Q106: =IF(P106=0," ",_xlfn.RANK.EQ(P106,$P$7:$P$206,0)+ COUNTIF(P$7:P106, P106) - 1) -> 
P107: 0 | Q107: =IF(P107=0," ",_xlfn.RANK.EQ(P107,$P$7:$P$206,0)+ COUNTIF(P$7:P107, P107) - 1) -> 
P108: 0 | Q108: =IF(P108=0," ",_xlfn.RANK.EQ(P108,$P$7:$P$206,0)+ COUNTIF(P$7:P108, P108) - 1) -> 
P109: 0 | Q109: =IF(P109=0," ",_xlfn.RANK.EQ(P109,$P$7:$P$206,0)+ COUNTIF(P$7:P109, P109) - 1) -> 
P110: 0 | Q110: =IF(P110=0," ",_xlfn.RANK.EQ(P110,$P$7:$P$206,0)+ COUNTIF(P$7:P110, P110) - 1) -> 
P111: 0 | Q111: =IF(P111=0," ",_xlfn.RANK.EQ(P111,$P$7:$P$206,0)+ COUNTIF(P$7:P111, P111) - 1) -> 
P112: 0 | Q112: =IF(P112=0," ",_xlfn.RANK.EQ(P112,$P$7:$P$206,0)+ COUNTIF(P$7:P112, P112) - 1) -> 
P113: 0 | Q113: =IF(P113=0," ",_xlfn.RANK.EQ(P113,$P$7:$P$206,0)+ COUNTIF(P$7:P113, P113) - 1) -> 
P114: 0 | Q114: =IF(P114=0," ",_xlfn.RANK.EQ(P114,$P$7:$P$206,0)+ COUNTIF(P$7:P114, P114) - 1) -> 
P115: 0 | Q115: =IF(P115=0," ",_xlfn.RANK.EQ(P115,$P$7:$P$206,0)+ COUNTIF(P$7:P115, P115) - 1) -> 
P116: 0 | Q116: =IF(P116=0," ",_xlfn.RANK.EQ(P116,$P$7:$P$206,0)+ COUNTIF(P$7:P116, P116) - 1) -> 
P117: 0 | Q117: =IF(P117=0," ",_xlfn.RANK.EQ(P117,$P$7:$P$206,0)+ COUNTIF(P$7:P117, P117) - 1) -> 
P118: 0 | Q118: =IF(P118=0," ",_xlfn.RANK.EQ(P118,$P$7:$P$206,0)+ COUNTIF(P$7:P118, P118) - 1) -> 
P119: 0 | Q119: =IF(P119=0," ",_xlfn.RANK.EQ(P119,$P$7:$P$206,0)+ COUNTIF(P$7:P119, P119) - 1) -> 
P120: 0 | Q120: =IF(P120=0," ",_xlfn.RANK.EQ(P120,$P$7:$P$206,0)+ COUNTIF(P$7:P120, P120) - 1) -> 
P121: 0 | Q121: =IF(P121=0," ",_xlfn.RANK.EQ(P121,$P$7:$P$206,0)+ COUNTIF(P$7:P121, P121) - 1) -> 
P122: 0 | Q122: =IF(P122=0," ",_xlfn.RANK.EQ(P122,$P$7:$P$206,0)+ COUNTIF(P$7:P122, P122) - 1) -> 
P123: 0 | Q123: =IF(P123=0," ",_xlfn.RANK.EQ(P123,$P$7:$P$206,0)+ COUNTIF(P$7:P123, P123) - 1) -> 
P124: 0 | Q124: =IF(P124=0," ",_xlfn.RANK.EQ(P124,$P$7:$P$206,0)+ COUNTIF(P$7:P124, P124) - 1) -> 
P125: 0 | Q125: =IF(P125=0," ",_xlfn.RANK.EQ(P125,$P$7:$P$206,0)+ COUNTIF(P$7:P125, P125) - 1) -> 
P126: 0 | Q126: =IF(P126=0," ",_xlfn.RANK.EQ(P126,$P$7:$P$206,0)+ COUNTIF(P$7:P126, P126) - 1) -> 
P127: 0 | Q127: =IF(P127=0," ",_xlfn.RANK.EQ(P127,$P$7:$P$206,0)+ COUNTIF(P$7:P127, P127) - 1) -> 
P128: 0 | Q128: =IF(P128=0," ",_xlfn.RANK.EQ(P128,$P$7:$P$206,0)+ COUNTIF(P$7:P128, P128) - 1) -> 
P129: 0 | Q129: =IF(P129=0," ",_xlfn.RANK.EQ(P129,$P$7:$P$206,0)+ COUNTIF(P$7:P129, P129) - 1) -> 
P130: 0 | Q130: =IF(P130=0," ",_xlfn.RANK.EQ(P130,$P$7:$P$206,0)+ COUNTIF(P$7:P130, P130) - 1) -> 
P131: 0 | Q131: =IF(P131=0," ",_xlfn.RANK.EQ(P131,$P$7:$P$206,0)+ COUNTIF(P$7:P131, P131) - 1) -> 
P132: 0 | Q132: =IF(P132=0," ",_xlfn.RANK.EQ(P132,$P$7:$P$206,0)+ COUNTIF(P$7:P132, P132) - 1) -> 
P133: 0 | Q133: =IF(P133=0," ",_xlfn.RANK.EQ(P133,$P$7:$P$206,0)+ COUNTIF(P$7:P133, P133) - 1) -> 
P134: 0 | Q134: =IF(P134=0," ",_xlfn.RANK.EQ(P134,$P$7:$P$206,0)+ COUNTIF(P$7:P134, P134) - 1) -> 
P135: =SUM(I135:J135) -> 0 | Q135: =IF(P135=0," ",_xlfn.RANK.EQ(P135,$P$7:$P$206,0)+ COUNTIF(P$7:P135, P135) - 1) -> 
P136: 0 | Q136: =IF(P136=0," ",_xlfn.RANK.EQ(P136,$P$7:$P$206,0)+ COUNTIF(P$7:P136, P136) - 1) -> 
P137: 0 | Q137: =IF(P137=0," ",_xlfn.RANK.EQ(P137,$P$7:$P$206,0)+ COUNTIF(P$7:P137, P137) - 1) -> 
P138: 0 | Q138: =IF(P138=0," ",_xlfn.RANK.EQ(P138,$P$7:$P$206,0)+ COUNTIF(P$7:P138, P138) - 1) -> 
P139: 0 | Q139: =IF(P139=0," ",_xlfn.RANK.EQ(P139,$P$7:$P$206,0)+ COUNTIF(P$7:P139, P139) - 1) -> 
P140: 0 | Q140: =IF(P140=0," ",_xlfn.RANK.EQ(P140,$P$7:$P$206,0)+ COUNTIF(P$7:P140, P140) - 1) -> 
P141: 0 | Q141: =IF(P141=0," ",_xlfn.RANK.EQ(P141,$P$7:$P$206,0)+ COUNTIF(P$7:P141, P141) - 1) -> 
P142: 0 | Q142: =IF(P142=0," ",_xlfn.RANK.EQ(P142,$P$7:$P$206,0)+ COUNTIF(P$7:P142, P142) - 1) -> 
P143: 0 | Q143: =IF(P143=0," ",_xlfn.RANK.EQ(P143,$P$7:$P$206,0)+ COUNTIF(P$7:P143, P143) - 1) -> 
P144: 0 | Q144: =IF(P144=0," ",_xlfn.RANK.EQ(P144,$P$7:$P$206,0)+ COUNTIF(P$7:P144, P144) - 1) -> 
P145: 0 | Q145: =IF(P145=0," ",_xlfn.RANK.EQ(P145,$P$7:$P$206,0)+ COUNTIF(P$7:P145, P145) - 1) -> 
P146: 0 | Q146: =IF(P146=0," ",_xlfn.RANK.EQ(P146,$P$7:$P$206,0)+ COUNTIF(P$7:P146, P146) - 1) -> 
P147: 0 | Q147: =IF(P147=0," ",_xlfn.RANK.EQ(P147,$P$7:$P$206,0)+ COUNTIF(P$7:P147, P147) - 1) -> 
P148: 0 | Q148: =IF(P148=0," ",_xlfn.RANK.EQ(P148,$P$7:$P$206,0)+ COUNTIF(P$7:P148, P148) - 1) -> 
P149: 0 | Q149: =IF(P149=0," ",_xlfn.RANK.EQ(P149,$P$7:$P$206,0)+ COUNTIF(P$7:P149, P149) - 1) -> 
P150: 0 | Q150: =IF(P150=0," ",_xlfn.RANK.EQ(P150,$P$7:$P$206,0)+ COUNTIF(P$7:P150, P150) - 1) -> 
P151: 0 | Q151: =IF(P151=0," ",_xlfn.RANK.EQ(P151,$P$7:$P$206,0)+ COUNTIF(P$7:P151, P151) - 1) -> 
P152: 0 | Q152: =IF(P152=0," ",_xlfn.RANK.EQ(P152,$P$7:$P$206,0)+ COUNTIF(P$7:P152, P152) - 1) -> 
P153: 0 | Q153: =IF(P153=0," ",_xlfn.RANK.EQ(P153,$P$7:$P$206,0)+ COUNTIF(P$7:P153, P153) - 1) -> 
P154: 0 | Q154: =IF(P154=0," ",_xlfn.RANK.EQ(P154,$P$7:$P$206,0)+ COUNTIF(P$7:P154, P154) - 1) -> 
P155: 0 | Q155: =IF(P155=0," ",_xlfn.RANK.EQ(P155,$P$7:$P$206,0)+ COUNTIF(P$7:P155, P155) - 1) -> 
P156: 0 | Q156: =IF(P156=0," ",_xlfn.RANK.EQ(P156,$P$7:$P$206,0)+ COUNTIF(P$7:P156, P156) - 1) -> 
P157: 0 | Q157: =IF(P157=0," ",_xlfn.RANK.EQ(P157,$P$7:$P$206,0)+ COUNTIF(P$7:P157, P157) - 1) -> 
P158: 0 | Q158: =IF(P158=0," ",_xlfn.RANK.EQ(P158,$P$7:$P$206,0)+ COUNTIF(P$7:P158, P158) - 1) -> 
P159: 0 | Q159: =IF(P159=0," ",_xlfn.RANK.EQ(P159,$P$7:$P$206,0)+ COUNTIF(P$7:P159, P159) - 1) -> 
P160: 0 | Q160: =IF(P160=0," ",_xlfn.RANK.EQ(P160,$P$7:$P$206,0)+ COUNTIF(P$7:P160, P160) - 1) -> 
P161: 0 | Q161: =IF(P161=0," ",_xlfn.RANK.EQ(P161,$P$7:$P$206,0)+ COUNTIF(P$7:P161, P161) - 1) -> 
P162: 0 | Q162: =IF(P162=0," ",_xlfn.RANK.EQ(P162,$P$7:$P$206,0)+ COUNTIF(P$7:P162, P162) - 1) -> 
P163: 0 | Q163: =IF(P163=0," ",_xlfn.RANK.EQ(P163,$P$7:$P$206,0)+ COUNTIF(P$7:P163, P163) - 1) -> 
P164: 0 | Q164: =IF(P164=0," ",_xlfn.RANK.EQ(P164,$P$7:$P$206,0)+ COUNTIF(P$7:P164, P164) - 1) -> 
P165: 0 | Q165: =IF(P165=0," ",_xlfn.RANK.EQ(P165,$P$7:$P$206,0)+ COUNTIF(P$7:P165, P165) - 1) -> 
P166: 0 | Q166: =IF(P166=0," ",_xlfn.RANK.EQ(P166,$P$7:$P$206,0)+ COUNTIF(P$7:P166, P166) - 1) -> 
P167: =SUM(I167:J167) -> 0 | Q167: =IF(P167=0," ",_xlfn.RANK.EQ(P167,$P$7:$P$206,0)+ COUNTIF(P$7:P167, P167) - 1) -> 
P168: 0 | Q168: =IF(P168=0," ",_xlfn.RANK.EQ(P168,$P$7:$P$206,0)+ COUNTIF(P$7:P168, P168) - 1) -> 
P169: 0 | Q169: =IF(P169=0," ",_xlfn.RANK.EQ(P169,$P$7:$P$206,0)+ COUNTIF(P$7:P169, P169) - 1) -> 
P170: 0 | Q170: =IF(P170=0," ",_xlfn.RANK.EQ(P170,$P$7:$P$206,0)+ COUNTIF(P$7:P170, P170) - 1) -> 
P171: 0 | Q171: =IF(P171=0," ",_xlfn.RANK.EQ(P171,$P$7:$P$206,0)+ COUNTIF(P$7:P171, P171) - 1) -> 
P172: 0 | Q172: =IF(P172=0," ",_xlfn.RANK.EQ(P172,$P$7:$P$206,0)+ COUNTIF(P$7:P172, P172) - 1) -> 
P173: 0 | Q173: =IF(P173=0," ",_xlfn.RANK.EQ(P173,$P$7:$P$206,0)+ COUNTIF(P$7:P173, P173) - 1) -> 
P174: 0 | Q174: =IF(P174=0," ",_xlfn.RANK.EQ(P174,$P$7:$P$206,0)+ COUNTIF(P$7:P174, P174) - 1) -> 
P175: 0 | Q175: =IF(P175=0," ",_xlfn.RANK.EQ(P175,$P$7:$P$206,0)+ COUNTIF(P$7:P175, P175) - 1) -> 
P176: 0 | Q176: =IF(P176=0," ",_xlfn.RANK.EQ(P176,$P$7:$P$206,0)+ COUNTIF(P$7:P176, P176) - 1) -> 
P177: 0 | Q177: =IF(P177=0," ",_xlfn.RANK.EQ(P177,$P$7:$P$206,0)+ COUNTIF(P$7:P177, P177) - 1) -> 
P178: 0 | Q178: =IF(P178=0," ",_xlfn.RANK.EQ(P178,$P$7:$P$206,0)+ COUNTIF(P$7:P178, P178) - 1) -> 
P179: 0 | Q179: =IF(P179=0," ",_xlfn.RANK.EQ(P179,$P$7:$P$206,0)+ COUNTIF(P$7:P179, P179) - 1) -> 
P180: 0 | Q180: =IF(P180=0," ",_xlfn.RANK.EQ(P180,$P$7:$P$206,0)+ COUNTIF(P$7:P180, P180) - 1) -> 
P181: 0 | Q181: =IF(P181=0," ",_xlfn.RANK.EQ(P181,$P$7:$P$206,0)+ COUNTIF(P$7:P181, P181) - 1) -> 
P182: 0 | Q182: =IF(P182=0," ",_xlfn.RANK.EQ(P182,$P$7:$P$206,0)+ COUNTIF(P$7:P182, P182) - 1) -> 
P183: 0 | Q183: =IF(P183=0," ",_xlfn.RANK.EQ(P183,$P$7:$P$206,0)+ COUNTIF(P$7:P183, P183) - 1) -> 
P184: 0 | Q184: =IF(P184=0," ",_xlfn.RANK.EQ(P184,$P$7:$P$206,0)+ COUNTIF(P$7:P184, P184) - 1) -> 
P185: 0 | Q185: =IF(P185=0," ",_xlfn.RANK.EQ(P185,$P$7:$P$206,0)+ COUNTIF(P$7:P185, P185) - 1) -> 
P186: 0 | Q186: =IF(P186=0," ",_xlfn.RANK.EQ(P186,$P$7:$P$206,0)+ COUNTIF(P$7:P186, P186) - 1) -> 
P187: 0 | Q187: =IF(P187=0," ",_xlfn.RANK.EQ(P187,$P$7:$P$206,0)+ COUNTIF(P$7:P187, P187) - 1) -> 
P188: 0 | Q188: =IF(P188=0," ",_xlfn.RANK.EQ(P188,$P$7:$P$206,0)+ COUNTIF(P$7:P188, P188) - 1) -> 
P189: 0 | Q189: =IF(P189=0," ",_xlfn.RANK.EQ(P189,$P$7:$P$206,0)+ COUNTIF(P$7:P189, P189) - 1) -> 
P190: 0 | Q190: =IF(P190=0," ",_xlfn.RANK.EQ(P190,$P$7:$P$206,0)+ COUNTIF(P$7:P190, P190) - 1) -> 
P191: 0 | Q191: =IF(P191=0," ",_xlfn.RANK.EQ(P191,$P$7:$P$206,0)+ COUNTIF(P$7:P191, P191) - 1) -> 
P192: 0 | Q192: =IF(P192=0," ",_xlfn.RANK.EQ(P192,$P$7:$P$206,0)+ COUNTIF(P$7:P192, P192) - 1) -> 
P193: 0 | Q193: =IF(P193=0," ",_xlfn.RANK.EQ(P193,$P$7:$P$206,0)+ COUNTIF(P$7:P193, P193) - 1) -> 
P194: 0 | Q194: =IF(P194=0," ",_xlfn.RANK.EQ(P194,$P$7:$P$206,0)+ COUNTIF(P$7:P194, P194) - 1) -> 
P195: 0 | Q195: =IF(P195=0," ",_xlfn.RANK.EQ(P195,$P$7:$P$206,0)+ COUNTIF(P$7:P195, P195) - 1) -> 
P196: 0 | Q196: =IF(P196=0," ",_xlfn.RANK.EQ(P196,$P$7:$P$206,0)+ COUNTIF(P$7:P196, P196) - 1) -> 
P197: 0 | Q197: =IF(P197=0," ",_xlfn.RANK.EQ(P197,$P$7:$P$206,0)+ COUNTIF(P$7:P197, P197) - 1) -> 
P198: 0 | Q198: =IF(P198=0," ",_xlfn.RANK.EQ(P198,$P$7:$P$206,0)+ COUNTIF(P$7:P198, P198) - 1) -> 
P199: =SUM(I199:J199) -> 0 | Q199: =IF(P199=0," ",_xlfn.RANK.EQ(P199,$P$7:$P$206,0)+ COUNTIF(P$7:P199, P199) - 1) -> 
P200: 0 | Q200: =IF(P200=0," ",_xlfn.RANK.EQ(P200,$P$7:$P$206,0)+ COUNTIF(P$7:P200, P200) - 1) -> 
P201: 0 | Q201: =IF(P201=0," ",_xlfn.RANK.EQ(P201,$P$7:$P$206,0)+ COUNTIF(P$7:P201, P201) - 1) -> 
... 5 more rows

Sheet Kategorie 2
A2: =Parameter!C7 -> OSPSV
A3: =Parameter!C9 -> Jugendtag 2022
A4: =Parameter!C13 -> Kat. 2 Jugend liegend frei U15 / U17
I5: liegend
A6: Nr | B6: Abl. | C6: Sch.-Nr | D6: Name | E6: Vorname | F6: JG | G6: Kat | H6: Sektion | I6: P1 | J6: P2 | K6: P3 | L6: P4 | M6: P5 | N6: P6 | O6: IZ | P6: Total | Q6: Rang | S6: KK
A7: 3 | D7: Ammann | E7: Pirmin | F7: 2007 | G7: 2 | H7: Neckertal | I7: 95 | J7: 97 | O7: 7 | P7: =SUM(I7:J7) -> 192 | Q7: =IF(P7=0," ",_xlfn.RANK.EQ(P7,$P$7:$P$206,0)+ COUNTIF(P$7:P7, P7) - 1) -> 1 | R7: =IF(Q7=2,"Silber","") ->  | S7: G
A8: 52 | D8: Kressel | E8: Niclas | F8: 2006 | G8: 2 | H8: Sargans | I8: 96 | J8: 96 | O8: 2 | P8: 192 | Q8: =IF(P8=0," ",_xlfn.RANK.EQ(P8,$P$7:$P$206,0)+ COUNTIF(P$7:P8, P8) - 1) -> 2 | R8: =IF(Q8=1,"Gold","") ->  | S8: S
A9: 51 | D9: Krähemann | E9: Levano | F9: 2006 | G9: 2 | H9: Wil | I9: 94 | J9: 95 | O9: 7 | P9: 189 | Q9: =IF(P9=0," ",_xlfn.RANK.EQ(P9,$P$7:$P$206,0)+ COUNTIF(P$7:P9, P9) - 1) -> 3 | S9: B
A10: 105 | D10: Sprenger | E10: Sven | F10: 2008 | G10: 2 | H10: Altstätten | I10: 95 | J10: 94 | O10: 5 | P10: 189 | Q10: =IF(P10=0," ",_xlfn.RANK.EQ(P10,$P$7:$P$206,0)+ COUNTIF(P$7:P10, P10) - 1) -> 4 | R10: =IF(Q10=3,"Bronze","") ->  | S10: 8
A11: 58 | D11: Lengyel | E11: Zsombor | F11: 2006 | G11: 2 | H11: Sargans | I11: 94 | J11: 94 | O11: 6 | P11: 188 | Q11: =IF(P11=0," ",_xlfn.RANK.EQ(P11,$P$7:$P$206,0)+ COUNTIF(P$7:P11, P11) - 1) -> 5 | S11: 8
A12: 85 | D12: Rohner | E12: Ciril | F12: 2006 | G12: 2 | H12: Kirchberg | I12: 94 | J12: 93 | O12: 5 | P12: 187 | Q12: =IF(P12=0," ",_xlfn.RANK.EQ(P12,$P$7:$P$206,0)+ COUNTIF(P$7:P12, P12) - 1) -> 6 | S12: 8
A13: 8 | D13: Beerle | E13: Nina | F13: 2007 | G13: 2 | H13: Goldach | I13: 95 | J13: 92 | O13: 3 | P13: 187 | Q13: =IF(P13=0," ",_xlfn.RANK.EQ(P13,$P$7:$P$206,0)+ COUNTIF(P$7:P13, P13) - 1) -> 7 | S13: 8
A14: 131 | D14: Wiederkehr | E14: Yari | F14: 2006 | G14: 2 | H14: Kirchberg | I14: 92 | J14: 94 | O14: 5 | P14: 186 | Q14: =IF(P14=0," ",_xlfn.RANK.EQ(P14,$P$7:$P$206,0)+ COUNTIF(P$7:P14, P14) - 1) -> 8 | S14: 8
A15: 114 | D15: Strübi | E15: Manuel | F15: 2008 | G15: 2 | H15: Wildhaus | I15: 92 | J15: 94 | O15: 4 | P15: 186 | Q15: =IF(P15=0," ",_xlfn.RANK.EQ(P15,$P$7:$P$206,0)+ COUNTIF(P$7:P15, P15) - 1) -> 9 | S15: 8
A16: 61 | D16: Lüber | E16: Lara | F16: 2008 | G16: 2 | H16: Kirchberg | I16: 93 | J16: 92 | O16: 3 | P16: 185 | Q16: =IF(P16=0," ",_xlfn.RANK.EQ(P16,$P$7:$P$206,0)+ COUNTIF(P$7:P16, P16) - 1) -> 10 | S16: 8
A17: 65 | D17: Manser | E17: Jonas | F17: 2006 | G17: 2 | H17: Weissbad | I17: 93 | J17: 91 | O17: 5 | P17: 184 | Q17: =IF(P17=0," ",_xlfn.RANK.EQ(P17,$P$7:$P$206,0)+ COUNTIF(P$7:P17, P17) - 1) -> 11 | S17: 8
A18: 83 | D18: Pfützner | E18: Philipp | F18: 2006 | G18: 2 | H18: Sargans | I18: 92 | J18: 92 | O18: 4 | P18: 184 | Q18: =IF(P18=0," ",_xlfn.RANK.EQ(P18,$P$7:$P$206,0)+ COUNTIF(P$7:P18, P18) - 1) -> 12 | S18: 8
A19: 54 | D19: Künzli | E19: Ian | F19: 2006 | G19: 2 | H19: Dicken Ebnat-Kappel | I19: 94 | J19: 90 | O19: 4 | P19: 184 | Q19: =IF(P19=0," ",_xlfn.RANK.EQ(P19,$P$7:$P$206,0)+ COUNTIF(P$7:P19, P19) - 1) -> 13 | S19: 8
A20: 128 | D20: Weitbrecht | E20: Talitha | F20: 2009 | G20: 2 | H20: Sargans | I20: 91 | J20: 93 | O20: 3 | P20: 184 | Q20: =IF(P20=0," ",_xlfn.RANK.EQ(P20,$P$7:$P$206,0)+ COUNTIF(P$7:P20, P20) - 1) -> 14 | S20: 8
A21: 33 | D21: Geisser | E21: Roman | F21: 2006 | G21: 2 | H21: Dicken Ebnat-Kappel | I21: 93 | J21: 90 | O21: 5 | P21: 183 | Q21: =IF(P21=0," ",_xlfn.RANK.EQ(P21,$P$7:$P$206,0)+ COUNTIF(P$7:P21, P21) - 1) -> 15 | S21: 5
A22: 96 | D22: Schönenberger | E22: Zoé | F22: 2007 | G22: 2 | H22: Sitterdorf | I22: 92 | J22: 91 | O22: 4 | P22: 183 | Q22: =IF(P22=0," ",_xlfn.RANK.EQ(P22,$P$7:$P$206,0)+ COUNTIF(P$7:P22, P22) - 1) -> 16 | S22: 5
A23: 67 | D23: Marciello | E23: Chiara | F23: 2008 | G23: 2 | H23: Weinfelden | I23: 91 | J23: 92 | O23: 1 | P23: 183 | Q23: =IF(P23=0," ",_xlfn.RANK.EQ(P23,$P$7:$P$206,0)+ COUNTIF(P$7:P23, P23) - 1) -> 17 | S23: 5
A24: 76 | D24: Munskgaard | E24: William | F24: 2007 | G24: 2 | H24: Sargans | I24: 93 | J24: 89 | O24: 6 | P24: 182 | Q24: =IF(P24=0," ",_xlfn.RANK.EQ(P24,$P$7:$P$206,0)+ COUNTIF(P$7:P24, P24) - 1) -> 18 | S24: 5
A25: 74 | D25: Moser | E25: Jan | F25: 2007 | G25: 2 | H25: Wildhaus | I25: 91 | J25: 91 | O25: 3 | P25: 182 | Q25: =IF(P25=0," ",_xlfn.RANK.EQ(P25,$P$7:$P$206,0)+ COUNTIF(P$7:P25, P25) - 1) -> 19 | S25: 5
A26: 29 | D26: Fromm | E26: Valentin | F26: 2008 | G26: 2 | H26: Sargans | I26: 94 | J26: 88 | O26: 3 | P26: 182 | Q26: =IF(P26=0," ",_xlfn.RANK.EQ(P26,$P$7:$P$206,0)+ COUNTIF(P$7:P26, P26) - 1) -> 20 | S26: 5
A27: 21 | D27: Correia | E27: Sandro | F27: 2006 | G27: 2 | H27: Schönholzerswilen | I27: 90 | J27: 90 | O27: 1 | P27: 180 | Q27: =IF(P27=0," ",_xlfn.RANK.EQ(P27,$P$7:$P$206,0)+ COUNTIF(P$7:P27, P27) - 1) -> 21 | S27: 5
A28: 17 | D28: Broger | E28: Simon | F28: 2006 | G28: 2 | H28: Weissbad | I28: 87 | J28: 90 | O28: 4 | P28: 177 | Q28: =IF(P28=0," ",_xlfn.RANK.EQ(P28,$P$7:$P$206,0)+ COUNTIF(P$7:P28, P28) - 1) -> 22 | S28: 5
A29: 82 | D29: Patt | E29: Andrea | F29: 2006 | G29: 2 | H29: St.Gallen | I29: 89 | J29: 88 | O29: 4 | P29: 177 | Q29: =IF(P29=0," ",_xlfn.RANK.EQ(P29,$P$7:$P$206,0)+ COUNTIF(P$7:P29, P29) - 1) -> 23 | S29: 5
A30: 6 | D30: Balgar | E30: Samuel | F30: 2009 | G30: 2 | H30: Goldach | I30: 88 | J30: 89 | O30: 3 | P30: 177 | Q30: =IF(P30=0," ",_xlfn.RANK.EQ(P30,$P$7:$P$206,0)+ COUNTIF(P$7:P30, P30) - 1) -> 24 | S30: 5
A31: 93 | D31: Schläpfer | E31: Michael | F31: 2009 | G31: 2 | H31: Weinfelden | I31: 90 | J31: 86 | O31: 3 | P31: 176 | Q31: =IF(P31=0," ",_xlfn.RANK.EQ(P31,$P$7:$P$206,0)+ COUNTIF(P$7:P31, P31) - 1) -> 25
A32: 134 | D32: Ziltener | E32: Sina | F32: 2007 | G32: 2 | H32: Goldach | I32: 86 | J32: 89 | O32: 1 | P32: 175 | Q32: =IF(P32=0," ",_xlfn.RANK.EQ(P32,$P$7:$P$206,0)+ COUNTIF(P$7:P32, P32) - 1) -> 26
A33: 87 | D33: Sawall | E33: Fabienne | F33: 2007 | G33: 2 | H33: Grabs | I33: 88 | J33: 86 | O33: 5 | P33: 174 | Q33: =IF(P33=0," ",_xlfn.RANK.EQ(P33,$P$7:$P$206,0)+ COUNTIF(P$7:P33, P33) - 1) -> 27
A34: 23 | D34: Dornbierer | E34: Timon | F34: 2007 | G34: 2 | H34: Goldach | I34: 87 | J34: 87 | O34: 2 | P34: 174 | Q34: =IF(P34=0," ",_xlfn.RANK.EQ(P34,$P$7:$P$206,0)+ COUNTIF(P$7:P34, P34) - 1) -> 28
A35: 79 | D35: Oettli | E35: Philipp | F35: 2006 | G35: 2 | H35: Weinfelden | I35: 86 | J35: 88 | O35: 1 | P35: 174 | Q35: =IF(P35=0," ",_xlfn.RANK.EQ(P35,$P$7:$P$206,0)+ COUNTIF(P$7:P35, P35) - 1) -> 29
A36: 37 | D36: Good | E36: Cedric | F36: 2009 | G36: 2 | H36: Sargans | I36: 89 | J36: 85 | O36: 1 | P36: 174 | Q36: =IF(P36=0," ",_xlfn.RANK.EQ(P36,$P$7:$P$206,0)+ COUNTIF(P$7:P36, P36) - 1) -> 30
A37: 136 | D37: Zweifel | E37: Noel | F37: 2010 | G37: 2 | H37: Kirchberg | I37: 85 | J37: 87 | O37: 4 | P37: 172 | Q37: =IF(P37=0," ",_xlfn.RANK.EQ(P37,$P$7:$P$206,0)+ COUNTIF(P$7:P37, P37) - 1) -> 31
A38: 84 | D38: Rick | E38: Colin | F38: 2009 | G38: 2 | H38: Goldach | I38: 95 | J38: 77 | O38: 2 | P38: 172 | Q38: =IF(P38=0," ",_xlfn.RANK.EQ(P38,$P$7:$P$206,0)+ COUNTIF(P$7:P38, P38) - 1) -> 32
A39: 69 | D39: Matanovic | E39: Josipa | F39: 2007 | G39: 2 | H39: Grabs | I39: 85 | J39: 85 | O39: 1 | P39: =SUM(I39:J39) -> 170 | Q39: =IF(P39=0," ",_xlfn.RANK.EQ(P39,$P$7:$P$206,0)+ COUNTIF(P$7:P39, P39) - 1) -> 33
A40: 56 | D40: Kutter | E40: Joel | F40: 2010 | G40: 2 | H40: Dettighofen | I40: 83 | J40: 87 | O40: 0 | P40: 170 | Q40: =IF(P40=0," ",_xlfn.RANK.EQ(P40,$P$7:$P$206,0)+ COUNTIF(P$7:P40, P40) - 1) -> 34
A41: 55 | D41: Küttel | E41: Patrick | F41: 2006 | G41: 2 | H41: Schönholzerswilen | I41: 82 | J41: 82 | O41: 3 | P41: 164 | Q41: =IF(P41=0," ",_xlfn.RANK.EQ(P41,$P$7:$P$206,0)+ COUNTIF(P$7:P41, P41) - 1) -> 35
A42: 24 | D42: Eggenberger | E42: Raffael | F42: 2007 | G42: 2 | H42: Grabs | I42: 80 | J42: 84 | O42: 2 | P42: 164 | Q42: =IF(P42=0," ",_xlfn.RANK.EQ(P42,$P$7:$P$206,0)+ COUNTIF(P$7:P42, P42) - 1) -> 36
A43: 102 | D43: Segmüller | E43: Arno | F43: 2006 | G43: 2 | H43: Altstätten | I43: 77 | J43: 87 | O43: 0 | P43: 164 | Q43: =IF(P43=0," ",_xlfn.RANK.EQ(P43,$P$7:$P$206,0)+ COUNTIF(P$7:P43, P43) - 1) -> 37
A44: 113 | D44: Straub | E44: Patrick | F44: 2009 | G44: 2 | H44: Dettighofen | I44: 79 | J44: 84 | O44: 1 | P44: 163 | Q44: =IF(P44=0," ",_xlfn.RANK.EQ(P44,$P$7:$P$206,0)+ COUNTIF(P$7:P44, P44) - 1) -> 38
A45: 120 | D45: Taranto | E45: Arya | F45: 2008 | G45: 2 | H45: Wil | I45: 81 | J45: 82 | O45: 1 | P45: 163 | Q45: =IF(P45=0," ",_xlfn.RANK.EQ(P45,$P$7:$P$206,0)+ COUNTIF(P$7:P45, P45) - 1) -> 39
A46: 112 | D46: Stieger | E46: Ken | F46: 2006 | G46: 2 | H46: Weinfelden | I46: 82 | J46: 78 | O46: 1 | P46: 160 | Q46: =IF(P46=0," ",_xlfn.RANK.EQ(P46,$P$7:$P$206,0)+ COUNTIF(P$7:P46, P46) - 1) -> 40
A47: 47 | D47: Kalbitz | E47: Andrin | F47: 2008 | G47: 2 | H47: Weinfelden | I47: 81 | J47: 78 | O47: 0 | P47: 159 | Q47: =IF(P47=0," ",_xlfn.RANK.EQ(P47,$P$7:$P$206,0)+ COUNTIF(P$7:P47, P47) - 1) -> 41
A48: 43 | D48: Henke | E48: Quentin | F48: 2009 | G48: 2 | H48: Kirchberg | I48: 81 | J48: 72 | O48: 0 | P48: 153 | Q48: =IF(P48=0," ",_xlfn.RANK.EQ(P48,$P$7:$P$206,0)+ COUNTIF(P$7:P48, P48) - 1) -> 42
P49: 0 | Q49: =IF(P49=0," ",_xlfn.RANK.EQ(P49,$P$7:$P$206,0)+ COUNTIF(P$7:P49, P49) - 1) -> 
P50: 0 | Q50: =IF(P50=0," ",_xlfn.RANK.EQ(P50,$P$7:$P$206,0)+ COUNTIF(P$7:P50, P50) - 1) -> 
P51: 0 | Q51: =IF(P51=0," ",_xlfn.RANK.EQ(P51,$P$7:$P$206,0)+ COUNTIF(P$7:P51, P51) - 1) -> 
P52: 0 | Q52: =IF(P52=0," ",_xlfn.RANK.EQ(P52,$P$7:$P$206,0)+ COUNTIF(P$7:P52, P52) - 1) -> 
P53: 0 | Q53: =IF(P53=0," ",_xlfn.RANK.EQ(P53,$P$7:$P$206,0)+ COUNTIF(P$7:P53, P53) - 1) -> 
P54: 0 | Q54: =IF(P54=0," ",_xlfn.RANK.EQ(P54,$P$7:$P$206,0)+ COUNTIF(P$7:P54, P54) - 1) -> 
P55: 0 | Q55: =IF(P55=0," ",_xlfn.RANK.EQ(P55,$P$7:$P$206,0)+ COUNTIF(P$7:P55, P55) - 1) -> 
P56: 0 | Q56: =IF(P56=0," ",_xlfn.RANK.EQ(P56,$P$7:$P$206,0)+ COUNTIF(P$7:P56, P56) - 1) -> 
P57: 0 | Q57: =IF(P57=0," ",_xlfn.RANK.EQ(P57,$P$7:$P$206,0)+ COUNTIF(P$7:P57, P57) - 1) -> 
P58: 0 | Q58: =IF(P58=0," ",_xlfn.RANK.EQ(P58,$P$7:$P$206,0)+ COUNTIF(P$7:P58, P58) - 1) -> 
P59: 0 | Q59: =IF(P59=0," ",_xlfn.RANK.EQ(P59,$P$7:$P$206,0)+ COUNTIF(P$7:P59, P59) - 1) -> 
P60: 0 | Q60: =IF(P60=0," ",_xlfn.RANK.EQ(P60,$P$7:$P$206,0)+ COUNTIF(P$7:P60, P60) - 1) -> 
P61: 0 | Q61: =IF(P61=0," ",_xlfn.RANK.EQ(P61,$P$7:$P$206,0)+ COUNTIF(P$7:P61, P61) - 1) -> 
P62: 0 | Q62: =IF(P62=0," ",_xlfn.RANK.EQ(P62,$P$7:$P$206,0)+ COUNTIF(P$7:P62, P62) - 1) -> 
P63: 0 | Q63: =IF(P63=0," ",_xlfn.RANK.EQ(P63,$P$7:$P$206,0)+ COUNTIF(P$7:P63, P63) - 1) -> 
P64: 0 | Q64: =IF(P64=0," ",_xlfn.RANK.EQ(P64,$P$7:$P$206,0)+ COUNTIF(P$7:P64, P64) - 1) -> 
P65: 0 | Q65: =IF(P65=0," ",_xlfn.RANK.EQ(P65,$P$7:$P$206,0)+ COUNTIF(P$7:P65, P65) - 1) -> 
P66: 0 | Q66: =IF(P66=0," ",_xlfn.RANK.EQ(P66,$P$7:$P$206,0)+ COUNTIF(P$7:P66, P66) - 1) -> 
P67: 0 | Q67: =IF(P67=0," ",_xlfn.RANK.EQ(P67,$P$7:$P$206,0)+ COUNTIF(P$7:P67, P67) - 1) -> 
P68: 0 | Q68: =IF(P68=0," ",_xlfn.RANK.EQ(P68,$P$7:$P$206,0)+ COUNTIF(P$7:P68, P68) - 1) -> 
P69: 0 | Q69: =IF(P69=0," ",_xlfn.RANK.EQ(P69,$P$7:$P$206,0)+ COUNTIF(P$7:P69, P69) - 1) -> 
P70: 0 | Q70: =IF(P70=0," ",_xlfn.RANK.EQ(P70,$P$7:$P$206,0)+ COUNTIF(P$7:P70, P70) - 1) -> 
P71: =SUM(I71:J71) -> 0 | Q71: =IF(P71=0," ",_xlfn.RANK.EQ(P71,$P$7:$P$206,0)+ COUNTIF(P$7:P71, P71) - 1) -> 
P72: 0 | Q72: =IF(P72=0," ",_xlfn.RANK.EQ(P72,$P$7:$P$206,0)+ COUNTIF(P$7:P72, P72) - 1) -> 
P73: 0 | Q73: =IF(P73=0," ",_xlfn.RANK.EQ(P73,$P$7:$P$206,0)+ COUNTIF(P$7:P73, P73) - 1) -> 
P74: 0 | Q74: =IF(P74=0," ",_xlfn.RANK.EQ(P74,$P$7:$P$206,0)+ COUNTIF(P$7:P74, P74) - 1) -> 
P75: 0 | Q75: =IF(P75=0," ",_xlfn.RANK.EQ(P75,$P$7:$P$206,0)+ COUNTIF(P$7:P75, P75) - 1) -> 
P76: 0 | Q76: =IF(P76=0," ",_xlfn.RANK.EQ(P76,$P$7:$P$206,0)+ COUNTIF(P$7:P76, P76) - 1) -> 
P77: 0 | Q77: =IF(P77=0," ",_xlfn.RANK.EQ(P77,$P$7:$P$206,0)+ COUNTIF(P$7:P77, P77) - 1) -> 
P78: 0 | Q78: =IF(P78=0," ",_xlfn.RANK.EQ(P78,$P$7:$P$206,0)+ COUNTIF(P$7:P78, P78) - 1) -> 
P79: 0 | Q79: =IF(P79=0," ",_xlfn.RANK.EQ(P79,$P$7:$P$206,0)+ COUNTIF(P$7:P79, P79) - 1) -> 
P80: 0 | Q80: =IF(P80=0," ",_xlfn.RANK.EQ(P80,$P$7:$P$206,0)+ COUNTIF(P$7:P80, P80) - 1) -> 
P81: 0 | Q81: =IF(P81=0," ",_xlfn.RANK.EQ(P81,$P$7:$P$206,0)+ COUNTIF(P$7:P81, P81) - 1) -> 
P82: 0 | Q82: =IF(P82=0," ",_xlfn.RANK.EQ(P82,$P$7:$P$206,0)+ COUNTIF(P$7:P82, P82) - 1) -> 
P83: 0 | Q83: =IF(P83=0," ",_xlfn.RANK.EQ(P83,$P$7:$P$206,0)+ COUNTIF(P$7:P83, P83) - 1) -> 
P84: 0 | Q84: =IF(P84=0," ",_xlfn.RANK.EQ(P84,$P$7:$P$206,0)+ COUNTIF(P$7:P84, P84) - 1) -> 
P85: 0 | Q85: =IF(P85=0," ",_xlfn.RANK.EQ(P85,$P$7:$P$206,0)+ COUNTIF(P$7:P85, P85) - 1) -> 
P86: 0 | Q86: =IF(P86=0," ",_xlfn.RANK.EQ(P86,$P$7:$P$206,0)+ COUNTIF(P$7:P86, P86) - 1) -> 
P87: 0 | Q87: =IF(P87=0," ",_xlfn.RANK.EQ(P87,$P$7:$P$206,0)+ COUNTIF(P$7:P87, P87) - 1) -> 
P88: 0 | Q88: =IF(P88=0," ",_xlfn.RANK.EQ(P88,$P$7:$P$206,0)+ COUNTIF(P$7:P88, P88) - 1) -> 
P89: 0 | Q89: =IF(P89=0," ",_xlfn.RANK.EQ(P89,$P$7:$P$206,0)+ COUNTIF(P$7:P89, P89) - 1) -> 
P90: 0 | Q90: =IF(P90=0," ",_xlfn.RANK.EQ(P90,$P$7:$P$206,0)+ COUNTIF(P$7:P90, P90) - 1) -> 
P91: 0 | Q91: =IF(P91=0," ",_xlfn.RANK.EQ(P91,$P$7:$P$206,0)+ COUNTIF(P$7:P91, P91) - 1) -> 
P92: 0 | Q92: =IF(P92=0," ",_xlfn.RANK.EQ(P92,$P$7:$P$206,0)+ COUNTIF(P$7:P92, P92) - 1) -> 
P93: 0 | Q93: =IF(P93=0," ",_xlfn.RANK.EQ(P93,$P$7:$P$206,0)+ COUNTIF(P$7:P93, P93) - 1) -> 
P94: 0 | Q94: =IF(P94=0," ",_xlfn.RANK.EQ(P94,$P$7:$P$206,0)+ COUNTIF(P$7:P94, P94) - 1) -> 
P95: 0 | Q95: =IF(P95=0," ",_xlfn.RANK.EQ(P95,$P$7:$P$206,0)+ COUNTIF(P$7:P95, P95) - 1) -> 
P96: 0 | Q96: =IF(P96=0," ",_xlfn.RANK.EQ(P96,$P$7:$P$206,0)+ COUNTIF(P$7:P96, P96) - 1) -> 
P97: 0 | Q97: =IF(P97=0," ",_xlfn.RANK.EQ(P97,$P$7:$P$206,0)+ COUNTIF(P$7:P97, P97) - 1) -> 
P98: 0 | Q98: =IF(P98=0," ",_xlfn.RANK.EQ(P98,$P$7:$P$206,0)+ COUNTIF(P$7:P98, P98) - 1) -> 
P99: 0 | Q99: =IF(P99=0," ",_xlfn.RANK.EQ(P99,$P$7:$P$206,0)+ COUNTIF(P$7:P99, P99) - 1) -> 
P100: 0 | Q100: =IF(P100=0," ",_xlfn.RANK.EQ(P100,$P$7:$P$206,0)+ COUNTIF(P$7:P100, P100) - 1) -> 
P101: 0 | Q101: =IF(P101=0," ",_xlfn.RANK.EQ(P101,$P$7:$P$206,0)+ COUNTIF(P$7:P101, P101) - 1) -> 
P102: 0 | Q102: =IF(P102=0," ",_xlfn.RANK.EQ(P102,$P$7:$P$206,0)+ COUNTIF(P$7:P102, P102) - 1) -> 
P103: =SUM(I103:J103) -> 0 | Q103: =IF(P103=0," ",_xlfn.RANK.EQ(P103,$P$7:$P$206,0)+ COUNTIF(P$7:P103, P103) - 1) -> 
P104: 0 | Q104: =IF(P104=0," ",_xlfn.RANK.EQ(P104,$P$7:$P$206,0)+ COUNTIF(P$7:P104, P104) - 1) -> 
P105: 0 | Q105: =IF(P105=0," ",_xlfn.RANK.EQ(P105,$P$7:$P$206,0)+ COUNTIF(P$7:P105, P105) - 1) -> 
P106: 0 | Q106: =IF(P106=0," ",_xlfn.RANK.EQ(P106,$P$7:$P$206,0)+ COUNTIF(P$7:P106, P106) - 1) -> 
P107: 0 | Q107: =IF(P107=0," ",_xlfn.RANK.EQ(P107,$P$7:$P$206,0)+ COUNTIF(P$7:P107, P107) - 1) -> 
P108: 0 | Q108: =IF(P108=0," ",_xlfn.RANK.EQ(P108,$P$7:$P$206,0)+ COUNTIF(P$7:P108, P108) - 1) -> 
P109: 0 | Q109: =IF(P109=0," ",_xlfn.RANK.EQ(P109,$P$7:$P$206,0)+ COUNTIF(P$7:P109, P109) - 1) -> 
P110: 0 | Q110: =IF(P110=0," ",_xlfn.RANK.EQ(P110,$P$7:$P$206,0)+ COUNTIF(P$7:P110, P110) - 1) -> 
P111: 0 | Q111: =IF(P111=0," ",_xlfn.RANK.EQ(P111,$P$7:$P$206,0)+ COUNTIF(P$7:P111, P111) - 1) -> 
P112: 0 | Q112: =IF(P112=0," ",_xlfn.RANK.EQ(P112,$P$7:$P$206,0)+ COUNTIF(P$7:P112, P112) - 1) -> 
P113: 0 | Q113: =IF(P113=0," ",_xlfn.RANK.EQ(P113,$P$7:$P$206,0)+ COUNTIF(P$7:P113, P113) - 1) -> 
P114: 0 | Q114: =IF(P114=0," ",_xlfn.RANK.EQ(P114,$P$7:$P$206,0)+ COUNTIF(P$7:P114, P114) - 1) -> 
P115: 0 | Q115: =IF(P115=0," ",_xlfn.RANK.EQ(P115,$P$7:$P$206,0)+ COUNTIF(P$7:P115, P115) - 1) -> 
P116: 0 | Q116: =IF(P116=0," ",_xlfn.RANK.EQ(P116,$P$7:$P$206,0)+ COUNTIF(P$7:P116, P116) - 1) -> 
P117: 0 | Q117: =IF(P117=0," ",_xlfn.RANK.EQ(P117,$P$7:$P$206,0)+ COUNTIF(P$7:P117, P117) - 1) -> 
P118: 0 | Q118: =IF(P118=0," ",_xlfn.RANK.EQ(P118,$P$7:$P$206,0)+ COUNTIF(P$7:P118, P118) - 1) -> 
P119: 0 | Q119: =IF(P119=0," ",_xlfn.RANK.EQ(P119,$P$7:$P$206,0)+ COUNTIF(P$7:P119, P119) - 1) -> 
P120: 0 | Q120: =IF(P120=0," ",_xlfn.RANK.EQ(P120,$P$7:$P$206,0)+ COUNTIF(P$7:P120, P120) - 1) -> 
P121: 0 | Q121: =IF(P121=0," ",_xlfn.RANK.EQ(P121,$P$7:$P$206,0)+ COUNTIF(P$7:P121, P121) - 1) -> 
P122: 0 | Q122: =IF(P122=0," ",_xlfn.RANK.EQ(P122,$P$7:$P$206,0)+ COUNTIF(P$7:P122, P122) - 1) -> 
P123: 0 | Q123: =IF(P123=0," ",_xlfn.RANK.EQ(P123,$P$7:$P$206,0)+ COUNTIF(P$7:P123, P123) - 1) -> 
P124: 0 | Q124: =IF(P124=0," ",_xlfn.RANK.EQ(P124,$P$7:$P$206,0)+ COUNTIF(P$7:P124, P124) - 1) -> 
P125: 0 | Q125: =IF(P125=0," ",_xlfn.RANK.EQ(P125,$P$7:$P$206,0)+ COUNTIF(P$7:P125, P125) - 1) -> 
P126: 0 | Q126: =IF(P126=0," ",_xlfn.RANK.EQ(P126,$P$7:$P$206,0)+ COUNTIF(P$7:P126, P126) - 1) -> 
P127: 0 | Q127: =IF(P127=0," ",_xlfn.RANK.EQ(P127,$P$7:$P$206,0)+ COUNTIF(P$7:P127, P127) - 1) -> 
P128: 0 | Q128: =IF(P128=0," ",_xlfn.RANK.EQ(P128,$P$7:$P$206,0)+ COUNTIF(P$7:P128, P128) - 1) -> 
P129: 0 | Q129: =IF(P129=0," ",_xlfn.RANK.EQ(P129,$P$7:$P$206,0)+ COUNTIF(P$7:P129, P129) - 1) -> 
P130: 0 | Q130: =IF(P130=0," ",_xlfn.RANK.EQ(P130,$P$7:$P$206,0)+ COUNTIF(P$7:P130, P130) - 1) -> 
P131: 0 | Q131: =IF(P131=0," ",_xlfn.RANK.EQ(P131,$P$7:$P$206,0)+ COUNTIF(P$7:P131, P131) - 1) -> 
P132: 0 | Q132: =IF(P132=0," ",_xlfn.RANK.EQ(P132,$P$7:$P$206,0)+ COUNTIF(P$7:P132, P132) - 1) -> 
P133: 0 | Q133: =IF(P133=0," ",_xlfn.RANK.EQ(P133,$P$7:$P$206,0)+ COUNTIF(P$7:P133, P133) - 1) -> 
P134: 0 | Q134: =IF(P134=0," ",_xlfn.RANK.EQ(P134,$P$7:$P$206,0)+ COUNTIF(P$7:P134, P134) - 1) -> 
P135: =SUM(I135:J135) -> 0 | Q135: =IF(P135=0," ",_xlfn.RANK.EQ(P135,$P$7:$P$206,0)+ COUNTIF(P$7:P135, P135) - 1) -> 
P136: 0 | Q136: =IF(P136=0," ",_xlfn.RANK.EQ(P136,$P$7:$P$206,0)+ COUNTIF(P$7:P136, P136) - 1) -> 
P137: 0 | Q137: =IF(P137=0," ",_xlfn.RANK.EQ(P137,$P$7:$P$206,0)+ COUNTIF(P$7:P137, P137) - 1) -> 
P138: 0 | Q138: =IF(P138=0," ",_xlfn.RANK.EQ(P138,$P$7:$P$206,0)+ COUNTIF(P$7:P138, P138) - 1) -> 
P139: 0 | Q139: =IF(P139=0," ",_xlfn.RANK.EQ(P139,$P$7:$P$206,0)+ COUNTIF(P$7:P139, P139) - 1) -> 
P140: 0 | Q140: =IF(P140=0," ",_xlfn.RANK.EQ(P140,$P$7:$P$206,0)+ COUNTIF(P$7:P140, P140) - 1) -> 
P141: 0 | Q141: =IF(P141=0," ",_xlfn.RANK.EQ(P141,$P$7:$P$206,0)+ COUNTIF(P$7:P141, P141) - 1) -> 
P142: 0 | Q142: =IF(P142=0," ",_xlfn.RANK.EQ(P142,$P$7:$P$206,0)+ COUNTIF(P$7:P142, P142) - 1) -> 
P143: 0 | Q143: =IF(P143=0," ",_xlfn.RANK.EQ(P143,$P$7:$P$206,0)+ COUNTIF(P$7:P143, P143) - 1) -> 
P144: 0 | Q144: =IF(P144=0," ",_xlfn.RANK.EQ(P144,$P$7:$P$206,0)+ COUNTIF(P$7:P144, P144) - 1) -> 
P145: 0 | Q145: =IF(P145=0," ",_xlfn.RANK.EQ(P145,$P$7:$P$206,0)+ COUNTIF(P$7:P145, P145) - 1) -> 
P146: 0 | Q146: =IF(P146=0," ",_xlfn.RANK.EQ(P146,$P$7:$P$206,0)+ COUNTIF(P$7:P146, P146) - 1) -> 
P147: 0 | Q147: =IF(P147=0," ",_xlfn.RANK.EQ(P147,$P$7:$P$206,0)+ COUNTIF(P$7:P147, P147) - 1) -> 
P148: 0 | Q148: =IF(P148=0," ",_xlfn.RANK.EQ(P148,$P$7:$P$206,0)+ COUNTIF(P$7:P148, P148) - 1) -> 
P149: 0 | Q149: =IF(P149=0," ",_xlfn.RANK.EQ(P149,$P$7:$P$206,0)+ COUNTIF(P$7:P149, P149) - 1) -> 
P150: 0 | Q150: =IF(P150=0," ",_xlfn.RANK.EQ(P150,$P$7:$P$206,0)+ COUNTIF(P$7:P150, P150) - 1) -> 
P151: 0 | Q151: =IF(P151=0," ",_xlfn.RANK.EQ(P151,$P$7:$P$206,0)+ COUNTIF(P$7:P151, P151) - 1) -> 
P152: 0 | Q152: =IF(P152=0," ",_xlfn.RANK.EQ(P152,$P$7:$P$206,0)+ COUNTIF(P$7:P152, P152) - 1) -> 
P153: 0 | Q153: =IF(P153=0," ",_xlfn.RANK.EQ(P153,$P$7:$P$206,0)+ COUNTIF(P$7:P153, P153) - 1) -> 
P154: 0 | Q154: =IF(P154=0," ",_xlfn.RANK.EQ(P154,$P$7:$P$206,0)+ COUNTIF(P$7:P154, P154) - 1) -> 
P155: 0 | Q155: =IF(P155=0," ",_xlfn.RANK.EQ(P155,$P$7:$P$206,0)+ COUNTIF(P$7:P155, P155) - 1) -> 
P156: 0 | Q156: =IF(P156=0," ",_xlfn.RANK.EQ(P156,$P$7:$P$206,0)+ COUNTIF(P$7:P156, P156) - 1) -> 
P157: 0 | Q157: =IF(P157=0," ",_xlfn.RANK.EQ(P157,$P$7:$P$206,0)+ COUNTIF(P$7:P157, P157) - 1) -> 
P158: 0 | Q158: =IF(P158=0," ",_xlfn.RANK.EQ(P158,$P$7:$P$206,0)+ COUNTIF(P$7:P158, P158) - 1) -> 
P159: 0 | Q159: =IF(P159=0," ",_xlfn.RANK.EQ(P159,$P$7:$P$206,0)+ COUNTIF(P$7:P159, P159) - 1) -> 
P160: 0 | Q160: =IF(P160=0," ",_xlfn.RANK.EQ(P160,$P$7:$P$206,0)+ COUNTIF(P$7:P160, P160) - 1) -> 
P161: 0 | Q161: =IF(P161=0," ",_xlfn.RANK.EQ(P161,$P$7:$P$206,0)+ COUNTIF(P$7:P161, P161) - 1) -> 
P162: 0 | Q162: =IF(P162=0," ",_xlfn.RANK.EQ(P162,$P$7:$P$206,0)+ COUNTIF(P$7:P162, P162) - 1) -> 
P163: 0 | Q163: =IF(P163=0," ",_xlfn.RANK.EQ(P163,$P$7:$P$206,0)+ COUNTIF(P$7:P163, P163) - 1) -> 
P164: 0 | Q164: =IF(P164=0," ",_xlfn.RANK.EQ(P164,$P$7:$P$206,0)+ COUNTIF(P$7:P164, P164) - 1) -> 
P165: 0 | Q165: =IF(P165=0," ",_xlfn.RANK.EQ(P165,$P$7:$P$206,0)+ COUNTIF(P$7:P165, P165) - 1) -> 
P166: 0 | Q166: =IF(P166=0," ",_xlfn.RANK.EQ(P166,$P$7:$P$206,0)+ COUNTIF(P$7:P166, P166) - 1) -> 
P167: =SUM(I167:J167) -> 0 | Q167: =IF(P167=0," ",_xlfn.RANK.EQ(P167,$P$7:$P$206,0)+ COUNTIF(P$7:P167, P167) - 1) -> 
P168: 0 | Q168: =IF(P168=0," ",_xlfn.RANK.EQ(P168,$P$7:$P$206,0)+ COUNTIF(P$7:P168, P168) - 1) -> 
P169: 0 | Q169: =IF(P169=0," ",_xlfn.RANK.EQ(P169,$P$7:$P$206,0)+ COUNTIF(P$7:P169, P169) - 1) -> 
P170: 0 | Q170: =IF(P170=0," ",_xlfn.RANK.EQ(P170,$P$7:$P$206,0)+ COUNTIF(P$7:P170, P170) - 1) -> 
P171: 0 | Q171: =IF(P171=0," ",_xlfn.RANK.EQ(P171,$P$7:$P$206,0)+ COUNTIF(P$7:P171, P171) - 1) -> 
P172: 0 | Q172: =IF(P172=0," ",_xlfn.RANK.EQ(P172,$P$7:$P$206,0)+ COUNTIF(P$7:P172, P172) - 1) -> 
P173: 0 | Q173: =IF(P173=0," ",_xlfn.RANK.EQ(P173,$P$7:$P$206,0)+ COUNTIF(P$7:P173, P173) - 1) -> 
P174: 0 | Q174: =IF(P174=0," ",_xlfn.RANK.EQ(P174,$P$7:$P$206,0)+ COUNTIF(P$7:P174, P174) - 1) -> 
P175: 0 | Q175: =IF(P175=0," ",_xlfn.RANK.EQ(P175,$P$7:$P$206,0)+ COUNTIF(P$7:P175, P175) - 1) -> 
P176: 0 | Q176: =IF(P176=0," ",_xlfn.RANK.EQ(P176,$P$7:$P$206,0)+ COUNTIF(P$7:P176, P176) - 1) -> 
P177: 0 | Q177: =IF(P177=0," ",_xlfn.RANK.EQ(P177,$P$7:$P$206,0)+ COUNTIF(P$7:P177, P177) - 1) -> 
P178: 0 | Q178: =IF(P178=0," ",_xlfn.RANK.EQ(P178,$P$7:$P$206,0)+ COUNTIF(P$7:P178, P178) - 1) -> 
P179: 0 | Q179: =IF(P179=0," ",_xlfn.RANK.EQ(P179,$P$7:$P$206,0)+ COUNTIF(P$7:P179, P179) - 1) -> 
P180: 0 | Q180: =IF(P180=0," ",_xlfn.RANK.EQ(P180,$P$7:$P$206,0)+ COUNTIF(P$7:P180, P180) - 1) -> 
P181: 0 | Q181: =IF(P181=0," ",_xlfn.RANK.EQ(P181,$P$7:$P$206,0)+ COUNTIF(P$7:P181, P181) - 1) -> 
P182: 0 | Q182: =IF(P182=0," ",_xlfn.RANK.EQ(P182,$P$7:$P$206,0)+ COUNTIF(P$7:P182, P182) - 1) -> 
P183: 0 | Q183: =IF(P183=0," ",_xlfn.RANK.EQ(P183,$P$7:$P$206,0)+ COUNTIF(P$7:P183, P183) - 1) -> 
P184: 0 | Q184: =IF(P184=0," ",_xlfn.RANK.EQ(P184,$P$7:$P$206,0)+ COUNTIF(P$7:P184, P184) - 1) -> 
P185: 0 | Q185: =IF(P185=0," ",_xlfn.RANK.EQ(P185,$P$7:$P$206,0)+ COUNTIF(P$7:P185, P185) - 1) -> 
P186: 0 | Q186: =IF(P186=0," ",_xlfn.RANK.EQ(P186,$P$7:$P$206,0)+ COUNTIF(P$7:P186, P186) - 1) -> 
P187: 0 | Q187: =IF(P187=0," ",_xlfn.RANK.EQ(P187,$P$7:$P$206,0)+ COUNTIF(P$7:P187, P187) - 1) -> 
P188: 0 | Q188: =IF(P188=0," ",_xlfn.RANK.EQ(P188,$P$7:$P$206,0)+ COUNTIF(P$7:P188, P188) - 1) -> 
P189: 0 | Q189: =IF(P189=0," ",_xlfn.RANK.EQ(P189,$P$7:$P$206,0)+ COUNTIF(P$7:P189, P189) - 1) -> 
P190: 0 | Q190: =IF(P190=0," ",_xlfn.RANK.EQ(P190,$P$7:$P$206,0)+ COUNTIF(P$7:P190, P190) - 1) -> 
P191: 0 | Q191: =IF(P191=0," ",_xlfn.RANK.EQ(P191,$P$7:$P$206,0)+ COUNTIF(P$7:P191, P191) - 1) -> 
P192: 0 | Q192: =IF(P192=0," ",_xlfn.RANK.EQ(P192,$P$7:$P$206,0)+ COUNTIF(P$7:P192, P192) - 1) -> 
P193: 0 | Q193: =IF(P193=0," ",_xlfn.RANK.EQ(P193,$P$7:$P$206,0)+ COUNTIF(P$7:P193, P193) - 1) -> 
P194: 0 | Q194: =IF(P194=0," ",_xlfn.RANK.EQ(P194,$P$7:$P$206,0)+ COUNTIF(P$7:P194, P194) - 1) -> 
P195: 0 | Q195: =IF(P195=0," ",_xlfn.RANK.EQ(P195,$P$7:$P$206,0)+ COUNTIF(P$7:P195, P195) - 1) -> 
P196: 0 | Q196: =IF(P196=0," ",_xlfn.RANK.EQ(P196,$P$7:$P$206,0)+ COUNTIF(P$7:P196, P196) - 1) -> 
P197: 0 | Q197: =IF(P197=0," ",_xlfn.RANK.EQ(P197,$P$7:$P$206,0)+ COUNTIF(P$7:P197, P197) - 1) -> 
P198: 0 | Q198: =IF(P198=0," ",_xlfn.RANK.EQ(P198,$P$7:$P$206,0)+ COUNTIF(P$7:P198, P198) - 1) -> 
P199: =SUM(I199:J199) -> 0 | Q199: =IF(P199=0," ",_xlfn.RANK.EQ(P199,$P$7:$P$206,0)+ COUNTIF(P$7:P199, P199) - 1) -> 
P200: 0 | Q200: =IF(P200=0," ",_xlfn.RANK.EQ(P200,$P$7:$P$206,0)+ COUNTIF(P$7:P200, P200) - 1) -> 
P201: 0 | Q201: =IF(P201=0," ",_xlfn.RANK.EQ(P201,$P$7:$P$206,0)+ COUNTIF(P$7:P201, P201) - 1) -> 
... 5 more rows

Sheet Kategorie 3
A2: =Parameter!C7 -> OSPSV
A3: =Parameter!C9 -> Jugendtag 2022
A4: =Parameter!C15 -> Kat. 3 Jugend liegend frei U19 / U21
I5: liegend
A6: Nr | B6: Abl. | C6: Sch.-Nr | D6: Name | E6: Vorname | F6: JG | G6: Kat | H6: Sektion | I6: P1 | J6: P2 | K6: P3 | L6: P4 | M6: P5 | N6: P6 | O6: IZ | P6: Total | Q6: Rang | S6: KK
A7: 72 | D7: Meier | E7: Astid | F7: 2002 | G7: 3 | H7: St.Gallen | I7: 100 | J7: 97 | O7: 6 | P7: =SUM(I7:J7) -> 197 | Q7: =IF(P7=0," ",_xlfn.RANK.EQ(P7,$P$7:$P$206,0)+ COUNTIF(P$7:P7, P7) - 1) -> 1 | R7: =IF(Q7=2,"Silber","") ->  | S7: G
A8: 89 | D8: Scherrer | E8: Benjamin | F8: 2003 | G8: 3 | H8: Weinfelden | I8: 96 | J8: 97 | O8: 9 | P8: 193 | Q8: =IF(P8=0," ",_xlfn.RANK.EQ(P8,$P$7:$P$206,0)+ COUNTIF(P$7:P8, P8) - 1) -> 2 | R8: =IF(Q8=1,"Gold","") ->  | S8: S
A9: 104 | D9: Speck | E9: Corina | F9: 2005 | G9: 3 | H9: Weissbad | I9: 97 | J9: 96 | O9: 7 | P9: 193 | Q9: =IF(P9=0," ",_xlfn.RANK.EQ(P9,$P$7:$P$206,0)+ COUNTIF(P$7:P9, P9) - 1) -> 3 | S9: B
A10: 30 | D10: Früh | E10: Janis | F10: 2004 | G10: 3 | H10: Kirchberg | I10: 94 | J10: 97 | O10: 8 | P10: 191 | Q10: =IF(P10=0," ",_xlfn.RANK.EQ(P10,$P$7:$P$206,0)+ COUNTIF(P$7:P10, P10) - 1) -> 4 | R10: =IF(Q10=3,"Bronze","") ->  | S10: 8
A11: 109 | D11: Staub | E11: Lea | F11: 2002 | G11: 3 | H11: Schönholzerswilen | I11: 95 | J11: 95 | O11: 6 | P11: 190 | Q11: =IF(P11=0," ",_xlfn.RANK.EQ(P11,$P$7:$P$206,0)+ COUNTIF(P$7:P11, P11) - 1) -> 5 | S11: 8
A12: 92 | D12: Schittenhelm | E12: Dennis | F12: 2003 | G12: 3 | H12: Goldach | I12: 93 | J12: 96 | O12: 5 | P12: 189 | Q12: =IF(P12=0," ",_xlfn.RANK.EQ(P12,$P$7:$P$206,0)+ COUNTIF(P$7:P12, P12) - 1) -> 6 | S12: 8
A13: 53 | D13: Kummer | E13: Livio | F13: 2005 | G13: 3 | H13: Munot Schaffhausen | I13: 94 | J13: 94 | O13: 7 | P13: 188 | Q13: =IF(P13=0," ",_xlfn.RANK.EQ(P13,$P$7:$P$206,0)+ COUNTIF(P$7:P13, P13) - 1) -> 7 | S13: 8
A14: 34 | D14: Gmünder | E14: Ralf | F14: 2005 | G14: 3 | H14: Weissbad | I14: 92 | J14: 96 | O14: 2 | P14: 188 | Q14: =IF(P14=0," ",_xlfn.RANK.EQ(P14,$P$7:$P$206,0)+ COUNTIF(P$7:P14, P14) - 1) -> 8 | S14: 8
A15: 57 | D15: Lengwiler | E15: Tobias | F15: 2003 | G15: 3 | H15: Sitterdorf | I15: 92 | J15: 95 | O15: 3 | P15: 187 | Q15: =IF(P15=0," ",_xlfn.RANK.EQ(P15,$P$7:$P$206,0)+ COUNTIF(P$7:P15, P15) - 1) -> 9 | S15: 8
A16: 27 | D16: Fritsche | E16: Maurus | F16: 2002 | G16: 3 | H16: Weissbad | I16: 91 | J16: 94 | O16: 6 | P16: 185 | Q16: =IF(P16=0," ",_xlfn.RANK.EQ(P16,$P$7:$P$206,0)+ COUNTIF(P$7:P16, P16) - 1) -> 10 | S16: 8
A17: 48 | D17: Klein | E17: Elias | F17: 2003 | G17: 3 | H17: Kirchberg | I17: 93 | J17: 92 | O17: 4 | P17: 185 | Q17: =IF(P17=0," ",_xlfn.RANK.EQ(P17,$P$7:$P$206,0)+ COUNTIF(P$7:P17, P17) - 1) -> 11 | S17: 8
A18: 103 | D18: Segmüller | E18: Nando | F18: 2003 | G18: 3 | H18: Altstätten | I18: 88 | J18: 96 | O18: 2 | P18: 184 | Q18: =IF(P18=0," ",_xlfn.RANK.EQ(P18,$P$7:$P$206,0)+ COUNTIF(P$7:P18, P18) - 1) -> 12 | S18: 5
A19: 125 | D19: Ulmann | E19: Jan | F19: 2005 | G19: 3 | H19: Weissbad | I19: 90 | J19: 93 | O19: 2 | P19: 183 | Q19: =IF(P19=0," ",_xlfn.RANK.EQ(P19,$P$7:$P$206,0)+ COUNTIF(P$7:P19, P19) - 1) -> 13 | S19: 5
A20: 119 | D20: Sutter | E20: Natascha | F20: 2004 | G20: 3 | H20: Schönholzerswilen | I20: 89 | J20: 93 | O20: 4 | P20: 182 | Q20: =IF(P20=0," ",_xlfn.RANK.EQ(P20,$P$7:$P$206,0)+ COUNTIF(P$7:P20, P20) - 1) -> 14 | S20: 5
A21: 135 | D21: Zumstein | E21: Vincenza | F21: 2005 | G21: 3 | H21: Weissbad | I21: 92 | J21: 90 | O21: 2 | P21: 182 | Q21: =IF(P21=0," ",_xlfn.RANK.EQ(P21,$P$7:$P$206,0)+ COUNTIF(P$7:P21, P21) - 1) -> 15 | S21: 5
A22: 32 | D22: Gad | E22: Karim | F22: 2003 | G22: 3 | H22: Munot Schaffhausen | I22: 94 | J22: 88 | O22: 2 | P22: 182 | Q22: =IF(P22=0," ",_xlfn.RANK.EQ(P22,$P$7:$P$206,0)+ COUNTIF(P$7:P22, P22) - 1) -> 16 | S22: 5
A23: 35 | D23: Gmünder | E23: Janin | F23: 2005 | G23: 3 | H23: Weissbad | I23: 91 | J23: 91 | O23: 1 | P23: 182 | Q23: =IF(P23=0," ",_xlfn.RANK.EQ(P23,$P$7:$P$206,0)+ COUNTIF(P$7:P23, P23) - 1) -> 17 | S23: 5
A24: 59 | D24: Locher | E24: Livio | F24: 2002 | G24: 3 | H24: Weissbad | I24: 92 | J24: 90 | O24: 1 | P24: 182 | Q24: =IF(P24=0," ",_xlfn.RANK.EQ(P24,$P$7:$P$206,0)+ COUNTIF(P$7:P24, P24) - 1) -> 18 | S24: 5
A25: 100 | D25: Schumacher | E25: Manuel | F25: 2003 | G25: 3 | H25: Weinfelden | I25: 93 | J25: 88 | O25: 5 | P25: 181 | Q25: =IF(P25=0," ",_xlfn.RANK.EQ(P25,$P$7:$P$206,0)+ COUNTIF(P$7:P25, P25) - 1) -> 19
A26: 7 | D26: Baumgartner | E26: Michael | F26: 2003 | G26: 3 | H26: Munot Schaffhausen | I26: 87 | J26: 93 | O26: 3 | P26: 180 | Q26: =IF(P26=0," ",_xlfn.RANK.EQ(P26,$P$7:$P$206,0)+ COUNTIF(P$7:P26, P26) - 1) -> 20
A27: 16 | D27: Brändli | E27: Joya | F27: 2004 | G27: 3 | H27: Schönholzerswilen | I27: 86 | J27: 92 | O27: 5 | P27: 178 | Q27: =IF(P27=0," ",_xlfn.RANK.EQ(P27,$P$7:$P$206,0)+ COUNTIF(P$7:P27, P27) - 1) -> 21
A28: 5 | D28: Auer | E28: Tobias | F28: 2005 | G28: 3 | H28: Sitterdorf | I28: 90 | J28: 88 | O28: 0 | P28: 178 | Q28: =IF(P28=0," ",_xlfn.RANK.EQ(P28,$P$7:$P$206,0)+ COUNTIF(P$7:P28, P28) - 1) -> 22
A29: 78 | D29: Oberholzer | E29: Raffael | F29: 2005 | G29: 3 | H29: Sitterdorf | I29: 88 | J29: 89 | O29: 1 | P29: 177 | Q29: =IF(P29=0," ",_xlfn.RANK.EQ(P29,$P$7:$P$206,0)+ COUNTIF(P$7:P29, P29) - 1) -> 23
A30: 99 | D30: Schrittwieser | E30: Thomas | F30: 2005 | G30: 3 | H30: Weinfelden | I30: 90 | J30: 87 | O30: 1 | P30: 177 | Q30: =IF(P30=0," ",_xlfn.RANK.EQ(P30,$P$7:$P$206,0)+ COUNTIF(P$7:P30, P30) - 1) -> 24
A31: 10 | D31: Bernet | E31: Kevin | F31: 2005 | G31: 3 | H31: Kirchberg | I31: 89 | J31: 85 | O31: 2 | P31: 174 | Q31: =IF(P31=0," ",_xlfn.RANK.EQ(P31,$P$7:$P$206,0)+ COUNTIF(P$7:P31, P31) - 1) -> 25
A32: 107 | D32: Städler | E32: Sven | F32: 2005 | G32: 3 | H32: Weissbad | I32: 87 | J32: 87 | O32: 1 | P32: 174 | Q32: =IF(P32=0," ",_xlfn.RANK.EQ(P32,$P$7:$P$206,0)+ COUNTIF(P$7:P32, P32) - 1) -> 26
A33: 19 | D33: Brühlmann | E33: David | F33: 2004 | G33: 3 | H33: Munot Schaffhausen | I33: 85 | J33: 87 | O33: 1 | P33: 172 | Q33: =IF(P33=0," ",_xlfn.RANK.EQ(P33,$P$7:$P$206,0)+ COUNTIF(P$7:P33, P33) - 1) -> 27
P34: 0 | Q34: =IF(P34=0," ",_xlfn.RANK.EQ(P34,$P$7:$P$206,0)+ COUNTIF(P$7:P34, P34) - 1) -> 
P35: 0 | Q35: =IF(P35=0," ",_xlfn.RANK.EQ(P35,$P$7:$P$206,0)+ COUNTIF(P$7:P35, P35) - 1) -> 
P36: 0 | Q36: =IF(P36=0," ",_xlfn.RANK.EQ(P36,$P$7:$P$206,0)+ COUNTIF(P$7:P36, P36) - 1) -> 
P37: 0 | Q37: =IF(P37=0," ",_xlfn.RANK.EQ(P37,$P$7:$P$206,0)+ COUNTIF(P$7:P37, P37) - 1) -> 
P38: 0 | Q38: =IF(P38=0," ",_xlfn.RANK.EQ(P38,$P$7:$P$206,0)+ COUNTIF(P$7:P38, P38) - 1) -> 
P39: =SUM(I39:J39) -> 0 | Q39: =IF(P39=0," ",_xlfn.RANK.EQ(P39,$P$7:$P$206,0)+ COUNTIF(P$7:P39, P39) - 1) -> 
P40: 0 | Q40: =IF(P40=0," ",_xlfn.RANK.EQ(P40,$P$7:$P$206,0)+ COUNTIF(P$7:P40, P40) - 1) -> 
P41: 0 | Q41: =IF(P41=0," ",_xlfn.RANK.EQ(P41,$P$7:$P$206,0)+ COUNTIF(P$7:P41, P41) - 1) -> 
P42: 0 | Q42: =IF(P42=0," ",_xlfn.RANK.EQ(P42,$P$7:$P$206,0)+ COUNTIF(P$7:P42, P42) - 1) -> 
P43: 0 | Q43: =IF(P43=0," ",_xlfn.RANK.EQ(P43,$P$7:$P$206,0)+ COUNTIF(P$7:P43, P43) - 1) -> 
P44: 0 | Q44: =IF(P44=0," ",_xlfn.RANK.EQ(P44,$P$7:$P$206,0)+ COUNTIF(P$7:P44, P44) - 1) -> 
P45: 0 | Q45: =IF(P45=0," ",_xlfn.RANK.EQ(P45,$P$7:$P$206,0)+ COUNTIF(P$7:P45, P45) - 1) -> 
P46: 0 | Q46: =IF(P46=0," ",_xlfn.RANK.EQ(P46,$P$7:$P$206,0)+ COUNTIF(P$7:P46, P46) - 1) -> 
P47: 0 | Q47: =IF(P47=0," ",_xlfn.RANK.EQ(P47,$P$7:$P$206,0)+ COUNTIF(P$7:P47, P47) - 1) -> 
P48: 0 | Q48: =IF(P48=0," ",_xlfn.RANK.EQ(P48,$P$7:$P$206,0)+ COUNTIF(P$7:P48, P48) - 1) -> 
P49: 0 | Q49: =IF(P49=0," ",_xlfn.RANK.EQ(P49,$P$7:$P$206,0)+ COUNTIF(P$7:P49, P49) - 1) -> 
P50: 0 | Q50: =IF(P50=0," ",_xlfn.RANK.EQ(P50,$P$7:$P$206,0)+ COUNTIF(P$7:P50, P50) - 1) -> 
P51: 0 | Q51: =IF(P51=0," ",_xlfn.RANK.EQ(P51,$P$7:$P$206,0)+ COUNTIF(P$7:P51, P51) - 1) -> 
P52: 0 | Q52: =IF(P52=0," ",_xlfn.RANK.EQ(P52,$P$7:$P$206,0)+ COUNTIF(P$7:P52, P52) - 1) -> 
P53: 0 | Q53: =IF(P53=0," ",_xlfn.RANK.EQ(P53,$P$7:$P$206,0)+ COUNTIF(P$7:P53, P53) - 1) -> 
P54: 0 | Q54: =IF(P54=0," ",_xlfn.RANK.EQ(P54,$P$7:$P$206,0)+ COUNTIF(P$7:P54, P54) - 1) -> 
P55: 0 | Q55: =IF(P55=0," ",_xlfn.RANK.EQ(P55,$P$7:$P$206,0)+ COUNTIF(P$7:P55, P55) - 1) -> 
P56: 0 | Q56: =IF(P56=0," ",_xlfn.RANK.EQ(P56,$P$7:$P$206,0)+ COUNTIF(P$7:P56, P56) - 1) -> 
P57: 0 | Q57: =IF(P57=0," ",_xlfn.RANK.EQ(P57,$P$7:$P$206,0)+ COUNTIF(P$7:P57, P57) - 1) -> 
P58: 0 | Q58: =IF(P58=0," ",_xlfn.RANK.EQ(P58,$P$7:$P$206,0)+ COUNTIF(P$7:P58, P58) - 1) -> 
P59: 0 | Q59: =IF(P59=0," ",_xlfn.RANK.EQ(P59,$P$7:$P$206,0)+ COUNTIF(P$7:P59, P59) - 1) -> 
P60: 0 | Q60: =IF(P60=0," ",_xlfn.RANK.EQ(P60,$P$7:$P$206,0)+ COUNTIF(P$7:P60, P60) - 1) -> 
P61: 0 | Q61: =IF(P61=0," ",_xlfn.RANK.EQ(P61,$P$7:$P$206,0)+ COUNTIF(P$7:P61, P61) - 1) -> 
P62: 0 | Q62: =IF(P62=0," ",_xlfn.RANK.EQ(P62,$P$7:$P$206,0)+ COUNTIF(P$7:P62, P62) - 1) -> 
P63: 0 | Q63: =IF(P63=0," ",_xlfn.RANK.EQ(P63,$P$7:$P$206,0)+ COUNTIF(P$7:P63, P63) - 1) -> 
P64: 0 | Q64: =IF(P64=0," ",_xlfn.RANK.EQ(P64,$P$7:$P$206,0)+ COUNTIF(P$7:P64, P64) - 1) -> 
P65: 0 | Q65: =IF(P65=0," ",_xlfn.RANK.EQ(P65,$P$7:$P$206,0)+ COUNTIF(P$7:P65, P65) - 1) -> 
P66: 0 | Q66: =IF(P66=0," ",_xlfn.RANK.EQ(P66,$P$7:$P$206,0)+ COUNTIF(P$7:P66, P66) - 1) -> 
P67: 0 | Q67: =IF(P67=0," ",_xlfn.RANK.EQ(P67,$P$7:$P$206,0)+ COUNTIF(P$7:P67, P67) - 1) -> 
P68: 0 | Q68: =IF(P68=0," ",_xlfn.RANK.EQ(P68,$P$7:$P$206,0)+ COUNTIF(P$7:P68, P68) - 1) -> 
P69: 0 | Q69: =IF(P69=0," ",_xlfn.RANK.EQ(P69,$P$7:$P$206,0)+ COUNTIF(P$7:P69, P69) - 1) -> 
P70: 0 | Q70: =IF(P70=0," ",_xlfn.RANK.EQ(P70,$P$7:$P$206,0)+ COUNTIF(P$7:P70, P70) - 1) -> 
P71: =SUM(I71:J71) -> 0 | Q71: =IF(P71=0," ",_xlfn.RANK.EQ(P71,$P$7:$P$206,0)+ COUNTIF(P$7:P71, P71) - 1) -> 
P72: 0 | Q72: =IF(P72=0," ",_xlfn.RANK.EQ(P72,$P$7:$P$206,0)+ COUNTIF(P$7:P72, P72) - 1) -> 
P73: 0 | Q73: =IF(P73=0," ",_xlfn.RANK.EQ(P73,$P$7:$P$206,0)+ COUNTIF(P$7:P73, P73) - 1) -> 
P74: 0 | Q74: =IF(P74=0," ",_xlfn.RANK.EQ(P74,$P$7:$P$206,0)+ COUNTIF(P$7:P74, P74) - 1) -> 
P75: 0 | Q75: =IF(P75=0," ",_xlfn.RANK.EQ(P75,$P$7:$P$206,0)+ COUNTIF(P$7:P75, P75) - 1) -> 
P76: 0 | Q76: =IF(P76=0," ",_xlfn.RANK.EQ(P76,$P$7:$P$206,0)+ COUNTIF(P$7:P76, P76) - 1) -> 
P77: 0 | Q77: =IF(P77=0," ",_xlfn.RANK.EQ(P77,$P$7:$P$206,0)+ COUNTIF(P$7:P77, P77) - 1) -> 
P78: 0 | Q78: =IF(P78=0," ",_xlfn.RANK.EQ(P78,$P$7:$P$206,0)+ COUNTIF(P$7:P78, P78) - 1) -> 
P79: 0 | Q79: =IF(P79=0," ",_xlfn.RANK.EQ(P79,$P$7:$P$206,0)+ COUNTIF(P$7:P79, P79) - 1) -> 
P80: 0 | Q80: =IF(P80=0," ",_xlfn.RANK.EQ(P80,$P$7:$P$206,0)+ COUNTIF(P$7:P80, P80) - 1) -> 
P81: 0 | Q81: =IF(P81=0," ",_xlfn.RANK.EQ(P81,$P$7:$P$206,0)+ COUNTIF(P$7:P81, P81) - 1) -> 
P82: 0 | Q82: =IF(P82=0," ",_xlfn.RANK.EQ(P82,$P$7:$P$206,0)+ COUNTIF(P$7:P82, P82) - 1) -> 
P83: 0 | Q83: =IF(P83=0," ",_xlfn.RANK.EQ(P83,$P$7:$P$206,0)+ COUNTIF(P$7:P83, P83) - 1) -> 
P84: 0 | Q84: =IF(P84=0," ",_xlfn.RANK.EQ(P84,$P$7:$P$206,0)+ COUNTIF(P$7:P84, P84) - 1) -> 
P85: 0 | Q85: =IF(P85=0," ",_xlfn.RANK.EQ(P85,$P$7:$P$206,0)+ COUNTIF(P$7:P85, P85) - 1) -> 
P86: 0 | Q86: =IF(P86=0," ",_xlfn.RANK.EQ(P86,$P$7:$P$206,0)+ COUNTIF(P$7:P86, P86) - 1) -> 
P87: 0 | Q87: =IF(P87=0," ",_xlfn.RANK.EQ(P87,$P$7:$P$206,0)+ COUNTIF(P$7:P87, P87) - 1) -> 
P88: 0 | Q88: =IF(P88=0," ",_xlfn.RANK.EQ(P88,$P$7:$P$206,0)+ COUNTIF(P$7:P88, P88) - 1) -> 
P89: 0 | Q89: =IF(P89=0," ",_xlfn.RANK.EQ(P89,$P$7:$P$206,0)+ COUNTIF(P$7:P89, P89) - 1) -> 
P90: 0 | Q90: =IF(P90=0," ",_xlfn.RANK.EQ(P90,$P$7:$P$206,0)+ COUNTIF(P$7:P90, P90) - 1) -> 
P91: 0 | Q91: =IF(P91=0," ",_xlfn.RANK.EQ(P91,$P$7:$P$206,0)+ COUNTIF(P$7:P91, P91) - 1) -> 
P92: 0 | Q92: =IF(P92=0," ",_xlfn.RANK.EQ(P92,$P$7:$P$206,0)+ COUNTIF(P$7:P92, P92) - 1) -> 
P93: 0 | Q93: =IF(P93=0," ",_xlfn.RANK.EQ(P93,$P$7:$P$206,0)+ COUNTIF(P$7:P93, P93) - 1) -> 
P94: 0 | Q94: =IF(P94=0," ",_xlfn.RANK.EQ(P94,$P$7:$P$206,0)+ COUNTIF(P$7:P94, P94) - 1) -> 
P95: 0 | Q95: =IF(P95=0," ",_xlfn.RANK.EQ(P95,$P$7:$P$206,0)+ COUNTIF(P$7:P95, P95) - 1) -> 
P96: 0 | Q96: =IF(P96=0," ",_xlfn.RANK.EQ(P96,$P$7:$P$206,0)+ COUNTIF(P$7:P96, P96) - 1) -> 
P97: 0 | Q97: =IF(P97=0," ",_xlfn.RANK.EQ(P97,$P$7:$P$206,0)+ COUNTIF(P$7:P97, P97) - 1) -> 
P98: 0 | Q98: =IF(P98=0," ",_xlfn.RANK.EQ(P98,$P$7:$P$206,0)+ COUNTIF(P$7:P98, P98) - 1) -> 
P99: 0 | Q99: =IF(P99=0," ",_xlfn.RANK.EQ(P99,$P$7:$P$206,0)+ COUNTIF(P$7:P99, P99) - 1) -> 
P100: 0 | Q100: =IF(P100=0," ",_xlfn.RANK.EQ(P100,$P$7:$P$206,0)+ COUNTIF(P$7:P100, P100) - 1) -> 
P101: 0 | Q101: =IF(P101=0," ",_xlfn.RANK.EQ(P101,$P$7:$P$206,0)+ COUNTIF(P$7:P101, P101) - 1) -> 
P102: 0 | Q102: =IF(P102=0," ",_xlfn.RANK.EQ(P102,$P$7:$P$206,0)+ COUNTIF(P$7:P102, P102) - 1) -> 
P103: =SUM(I103:J103) -> 0 | Q103: =IF(P103=0," ",_xlfn.RANK.EQ(P103,$P$7:$P$206,0)+ COUNTIF(P$7:P103, P103) - 1) -> 
P104: 0 | Q104: =IF(P104=0," ",_xlfn.RANK.EQ(P104,$P$7:$P$206,0)+ COUNTIF(P$7:P104, P104) - 1) -> 
P105: 0 | Q105: =IF(P105=0," ",_xlfn.RANK.EQ(P105,$P$7:$P$206,0)+ COUNTIF(P$7:P105, P105) - 1) -> 
P106: 0 | Q106: =IF(P106=0," ",_xlfn.RANK.EQ(P106,$P$7:$P$206,0)+ COUNTIF(P$7:P106, P106) - 1) -> 
P107: 0 | Q107: =IF(P107=0," ",_xlfn.RANK.EQ(P107,$P$7:$P$206,0)+ COUNTIF(P$7:P107, P107) - 1) -> 
P108: 0 | Q108: =IF(P108=0," ",_xlfn.RANK.EQ(P108,$P$7:$P$206,0)+ COUNTIF(P$7:P108, P108) - 1) -> 
P109: 0 | Q109: =IF(P109=0," ",_xlfn.RANK.EQ(P109,$P$7:$P$206,0)+ COUNTIF(P$7:P109, P109) - 1) -> 
P110: 0 | Q110: =IF(P110=0," ",_xlfn.RANK.EQ(P110,$P$7:$P$206,0)+ COUNTIF(P$7:P110, P110) - 1) -> 
P111: 0 | Q111: =IF(P111=0," ",_xlfn.RANK.EQ(P111,$P$7:$P$206,0)+ COUNTIF(P$7:P111, P111) - 1) -> 
P112: 0 | Q112: =IF(P112=0," ",_xlfn.RANK.EQ(P112,$P$7:$P$206,0)+ COUNTIF(P$7:P112, P112) - 1) -> 
P113: 0 | Q113: =IF(P113=0," ",_xlfn.RANK.EQ(P113,$P$7:$P$206,0)+ COUNTIF(P$7:P113, P113) - 1) -> 
P114: 0 | Q114: =IF(P114=0," ",_xlfn.RANK.EQ(P114,$P$7:$P$206,0)+ COUNTIF(P$7:P114, P114) - 1) -> 
P115: 0 | Q115: =IF(P115=0," ",_xlfn.RANK.EQ(P115,$P$7:$P$206,0)+ COUNTIF(P$7:P115, P115) - 1) -> 
P116: 0 | Q116: =IF(P116=0," ",_xlfn.RANK.EQ(P116,$P$7:$P$206,0)+ COUNTIF(P$7:P116, P116) - 1) -> 
P117: 0 | Q117: =IF(P117=0," ",_xlfn.RANK.EQ(P117,$P$7:$P$206,0)+ COUNTIF(P$7:P117, P117) - 1) -> 
P118: 0 | Q118: =IF(P118=0," ",_xlfn.RANK.EQ(P118,$P$7:$P$206,0)+ COUNTIF(P$7:P118, P118) - 1) -> 
P119: 0 | Q119: =IF(P119=0," ",_xlfn.RANK.EQ(P119,$P$7:$P$206,0)+ COUNTIF(P$7:P119, P119) - 1) -> 
P120: 0 | Q120: =IF(P120=0," ",_xlfn.RANK.EQ(P120,$P$7:$P$206,0)+ COUNTIF(P$7:P120, P120) - 1) -> 
P121: 0 | Q121: =IF(P121=0," ",_xlfn.RANK.EQ(P121,$P$7:$P$206,0)+ COUNTIF(P$7:P121, P121) - 1) -> 
P122: 0 | Q122: =IF(P122=0," ",_xlfn.RANK.EQ(P122,$P$7:$P$206,0)+ COUNTIF(P$7:P122, P122) - 1) -> 
P123: 0 | Q123: =IF(P123=0," ",_xlfn.RANK.EQ(P123,$P$7:$P$206,0)+ COUNTIF(P$7:P123, P123) - 1) -> 
P124: 0 | Q124: =IF(P124=0," ",_xlfn.RANK.EQ(P124,$P$7:$P$206,0)+ COUNTIF(P$7:P124, P124) - 1) -> 
P125: 0 | Q125: =IF(P125=0," ",_xlfn.RANK.EQ(P125,$P$7:$P$206,0)+ COUNTIF(P$7:P125, P125) - 1) -> 
P126: 0 | Q126: =IF(P126=0," ",_xlfn.RANK.EQ(P126,$P$7:$P$206,0)+ COUNTIF(P$7:P126, P126) - 1) -> 
P127: 0 | Q127: =IF(P127=0," ",_xlfn.RANK.EQ(P127,$P$7:$P$206,0)+ COUNTIF(P$7:P127, P127) - 1) -> 
P128: 0 | Q128: =IF(P128=0," ",_xlfn.RANK.EQ(P128,$P$7:$P$206,0)+ COUNTIF(P$7:P128, P128) - 1) -> 
P129: 0 | Q129: =IF(P129=0," ",_xlfn.RANK.EQ(P129,$P$7:$P$206,0)+ COUNTIF(P$7:P129, P129) - 1) -> 
P130: 0 | Q130: =IF(P130=0," ",_xlfn.RANK.EQ(P130,$P$7:$P$206,0)+ COUNTIF(P$7:P130, P130) - 1) -> 
P131: 0 | Q131: =IF(P131=0," ",_xlfn.RANK.EQ(P131,$P$7:$P$206,0)+ COUNTIF(P$7:P131, P131) - 1) -> 
P132: 0 | Q132: =IF(P132=0," ",_xlfn.RANK.EQ(P132,$P$7:$P$206,0)+ COUNTIF(P$7:P132, P132) - 1) -> 
P133: 0 | Q133: =IF(P133=0," ",_xlfn.RANK.EQ(P133,$P$7:$P$206,0)+ COUNTIF(P$7:P133, P133) - 1) -> 
P134: 0 | Q134: =IF(P134=0," ",_xlfn.RANK.EQ(P134,$P$7:$P$206,0)+ COUNTIF(P$7:P134, P134) - 1) -> 
P135: =SUM(I135:J135) -> 0 | Q135: =IF(P135=0," ",_xlfn.RANK.EQ(P135,$P$7:$P$206,0)+ COUNTIF(P$7:P135, P135) - 1) -> 
P136: 0 | Q136: =IF(P136=0," ",_xlfn.RANK.EQ(P136,$P$7:$P$206,0)+ COUNTIF(P$7:P136, P136) - 1) -> 
P137: 0 | Q137: =IF(P137=0," ",_xlfn.RANK.EQ(P137,$P$7:$P$206,0)+ COUNTIF(P$7:P137, P137) - 1) -> 
P138: 0 | Q138: =IF(P138=0," ",_xlfn.RANK.EQ(P138,$P$7:$P$206,0)+ COUNTIF(P$7:P138, P138) - 1) -> 
P139: 0 | Q139: =IF(P139=0," ",_xlfn.RANK.EQ(P139,$P$7:$P$206,0)+ COUNTIF(P$7:P139, P139) - 1) -> 
P140: 0 | Q140: =IF(P140=0," ",_xlfn.RANK.EQ(P140,$P$7:$P$206,0)+ COUNTIF(P$7:P140, P140) - 1) -> 
P141: 0 | Q141: =IF(P141=0," ",_xlfn.RANK.EQ(P141,$P$7:$P$206,0)+ COUNTIF(P$7:P141, P141) - 1) -> 
P142: 0 | Q142: =IF(P142=0," ",_xlfn.RANK.EQ(P142,$P$7:$P$206,0)+ COUNTIF(P$7:P142, P142) - 1) -> 
P143: 0 | Q143: =IF(P143=0," ",_xlfn.RANK.EQ(P143,$P$7:$P$206,0)+ COUNTIF(P$7:P143, P143) - 1) -> 
P144: 0 | Q144: =IF(P144=0," ",_xlfn.RANK.EQ(P144,$P$7:$P$206,0)+ COUNTIF(P$7:P144, P144) - 1) -> 
P145: 0 | Q145: =IF(P145=0," ",_xlfn.RANK.EQ(P145,$P$7:$P$206,0)+ COUNTIF(P$7:P145, P145) - 1) -> 
P146: 0 | Q146: =IF(P146=0," ",_xlfn.RANK.EQ(P146,$P$7:$P$206,0)+ COUNTIF(P$7:P146, P146) - 1) -> 
P147: 0 | Q147: =IF(P147=0," ",_xlfn.RANK.EQ(P147,$P$7:$P$206,0)+ COUNTIF(P$7:P147, P147) - 1) -> 
P148: 0 | Q148: =IF(P148=0," ",_xlfn.RANK.EQ(P148,$P$7:$P$206,0)+ COUNTIF(P$7:P148, P148) - 1) -> 
P149: 0 | Q149: =IF(P149=0," ",_xlfn.RANK.EQ(P149,$P$7:$P$206,0)+ COUNTIF(P$7:P149, P149) - 1) -> 
P150: 0 | Q150: =IF(P150=0," ",_xlfn.RANK.EQ(P150,$P$7:$P$206,0)+ COUNTIF(P$7:P150, P150) - 1) -> 
P151: 0 | Q151: =IF(P151=0," ",_xlfn.RANK.EQ(P151,$P$7:$P$206,0)+ COUNTIF(P$7:P151, P151) - 1) -> 
P152: 0 | Q152: =IF(P152=0," ",_xlfn.RANK.EQ(P152,$P$7:$P$206,0)+ COUNTIF(P$7:P152, P152) - 1) -> 
P153: 0 | Q153: =IF(P153=0," ",_xlfn.RANK.EQ(P153,$P$7:$P$206,0)+ COUNTIF(P$7:P153, P153) - 1) -> 
P154: 0 | Q154: =IF(P154=0," ",_xlfn.RANK.EQ(P154,$P$7:$P$206,0)+ COUNTIF(P$7:P154, P154) - 1) -> 
P155: 0 | Q155: =IF(P155=0," ",_xlfn.RANK.EQ(P155,$P$7:$P$206,0)+ COUNTIF(P$7:P155, P155) - 1) -> 
P156: 0 | Q156: =IF(P156=0," ",_xlfn.RANK.EQ(P156,$P$7:$P$206,0)+ COUNTIF(P$7:P156, P156) - 1) -> 
P157: 0 | Q157: =IF(P157=0," ",_xlfn.RANK.EQ(P157,$P$7:$P$206,0)+ COUNTIF(P$7:P157, P157) - 1) -> 
P158: 0 | Q158: =IF(P158=0," ",_xlfn.RANK.EQ(P158,$P$7:$P$206,0)+ COUNTIF(P$7:P158, P158) - 1) -> 
P159: 0 | Q159: =IF(P159=0," ",_xlfn.RANK.EQ(P159,$P$7:$P$206,0)+ COUNTIF(P$7:P159, P159) - 1) -> 
P160: 0 | Q160: =IF(P160=0," ",_xlfn.RANK.EQ(P160,$P$7:$P$206,0)+ COUNTIF(P$7:P160, P160) - 1) -> 
P161: 0 | Q161: =IF(P161=0," ",_xlfn.RANK.EQ(P161,$P$7:$P$206,0)+ COUNTIF(P$7:P161, P161) - 1) -> 
P162: 0 | Q162: =IF(P162=0," ",_xlfn.RANK.EQ(P162,$P$7:$P$206,0)+ COUNTIF(P$7:P162, P162) - 1) -> 
P163: 0 | Q163: =IF(P163=0," ",_xlfn.RANK.EQ(P163,$P$7:$P$206,0)+ COUNTIF(P$7:P163, P163) - 1) -> 
P164: 0 | Q164: =IF(P164=0," ",_xlfn.RANK.EQ(P164,$P$7:$P$206,0)+ COUNTIF(P$7:P164, P164) - 1) -> 
P165: 0 | Q165: =IF(P165=0," ",_xlfn.RANK.EQ(P165,$P$7:$P$206,0)+ COUNTIF(P$7:P165, P165) - 1) -> 
P166: 0 | Q166: =IF(P166=0," ",_xlfn.RANK.EQ(P166,$P$7:$P$206,0)+ COUNTIF(P$7:P166, P166) - 1) -> 
P167: =SUM(I167:J167) -> 0 | Q167: =IF(P167=0," ",_xlfn.RANK.EQ(P167,$P$7:$P$206,0)+ COUNTIF(P$7:P167, P167) - 1) -> 
P168: 0 | Q168: =IF(P168=0," ",_xlfn.RANK.EQ(P168,$P$7:$P$206,0)+ COUNTIF(P$7:P168, P168) - 1) -> 
P169: 0 | Q169: =IF(P169=0," ",_xlfn.RANK.EQ(P169,$P$7:$P$206,0)+ COUNTIF(P$7:P169, P169) - 1) -> 
P170: 0 | Q170: =IF(P170=0," ",_xlfn.RANK.EQ(P170,$P$7:$P$206,0)+ COUNTIF(P$7:P170, P170) - 1) -> 
P171: 0 | Q171: =IF(P171=0," ",_xlfn.RANK.EQ(P171,$P$7:$P$206,0)+ COUNTIF(P$7:P171, P171) - 1) -> 
P172: 0 | Q172: =IF(P172=0," ",_xlfn.RANK.EQ(P172,$P$7:$P$206,0)+ COUNTIF(P$7:P172, P172) - 1) -> 
P173: 0 | Q173: =IF(P173=0," ",_xlfn.RANK.EQ(P173,$P$7:$P$206,0)+ COUNTIF(P$7:P173, P173) - 1) -> 
P174: 0 | Q174: =IF(P174=0," ",_xlfn.RANK.EQ(P174,$P$7:$P$206,0)+ COUNTIF(P$7:P174, P174) - 1) -> 
P175: 0 | Q175: =IF(P175=0," ",_xlfn.RANK.EQ(P175,$P$7:$P$206,0)+ COUNTIF(P$7:P175, P175) - 1) -> 
P176: 0 | Q176: =IF(P176=0," ",_xlfn.RANK.EQ(P176,$P$7:$P$206,0)+ COUNTIF(P$7:P176, P176) - 1) -> 
P177: 0 | Q177: =IF(P177=0," ",_xlfn.RANK.EQ(P177,$P$7:$P$206,0)+ COUNTIF(P$7:P177, P177) - 1) -> 
P178: 0 | Q178: =IF(P178=0," ",_xlfn.RANK.EQ(P178,$P$7:$P$206,0)+ COUNTIF(P$7:P178, P178) - 1) -> 
P179: 0 | Q179: =IF(P179=0," ",_xlfn.RANK.EQ(P179,$P$7:$P$206,0)+ COUNTIF(P$7:P179, P179) - 1) -> 
P180: 0 | Q180: =IF(P180=0," ",_xlfn.RANK.EQ(P180,$P$7:$P$206,0)+ COUNTIF(P$7:P180, P180) - 1) -> 
P181: 0 | Q181: =IF(P181=0," ",_xlfn.RANK.EQ(P181,$P$7:$P$206,0)+ COUNTIF(P$7:P181, P181) - 1) -> 
P182: 0 | Q182: =IF(P182=0," ",_xlfn.RANK.EQ(P182,$P$7:$P$206,0)+ COUNTIF(P$7:P182, P182) - 1) -> 
P183: 0 | Q183: =IF(P183=0," ",_xlfn.RANK.EQ(P183,$P$7:$P$206,0)+ COUNTIF(P$7:P183, P183) - 1) -> 
P184: 0 | Q184: =IF(P184=0," ",_xlfn.RANK.EQ(P184,$P$7:$P$206,0)+ COUNTIF(P$7:P184, P184) - 1) -> 
P185: 0 | Q185: =IF(P185=0," ",_xlfn.RANK.EQ(P185,$P$7:$P$206,0)+ COUNTIF(P$7:P185, P185) - 1) -> 
P186: 0 | Q186: =IF(P186=0," ",_xlfn.RANK.EQ(P186,$P$7:$P$206,0)+ COUNTIF(P$7:P186, P186) - 1) -> 
P187: 0 | Q187: =IF(P187=0," ",_xlfn.RANK.EQ(P187,$P$7:$P$206,0)+ COUNTIF(P$7:P187, P187) - 1) -> 
P188: 0 | Q188: =IF(P188=0," ",_xlfn.RANK.EQ(P188,$P$7:$P$206,0)+ COUNTIF(P$7:P188, P188) - 1) -> 
P189: 0 | Q189: =IF(P189=0," ",_xlfn.RANK.EQ(P189,$P$7:$P$206,0)+ COUNTIF(P$7:P189, P189) - 1) -> 
P190: 0 | Q190: =IF(P190=0," ",_xlfn.RANK.EQ(P190,$P$7:$P$206,0)+ COUNTIF(P$7:P190, P190) - 1) -> 
P191: 0 | Q191: =IF(P191=0," ",_xlfn.RANK.EQ(P191,$P$7:$P$206,0)+ COUNTIF(P$7:P191, P191) - 1) -> 
P192: 0 | Q192: =IF(P192=0," ",_xlfn.RANK.EQ(P192,$P$7:$P$206,0)+ COUNTIF(P$7:P192, P192) - 1) -> 
P193: 0 | Q193: =IF(P193=0," ",_xlfn.RANK.EQ(P193,$P$7:$P$206,0)+ COUNTIF(P$7:P193, P193) - 1) -> 
P194: 0 | Q194: =IF(P194=0," ",_xlfn.RANK.EQ(P194,$P$7:$P$206,0)+ COUNTIF(P$7:P194, P194) - 1) -> 
P195: 0 | Q195: =IF(P195=0," ",_xlfn.RANK.EQ(P195,$P$7:$P$206,0)+ COUNTIF(P$7:P195, P195) - 1) -> 
P196: 0 | Q196: =IF(P196=0," ",_xlfn.RANK.EQ(P196,$P$7:$P$206,0)+ COUNTIF(P$7:P196, P196) - 1) -> 
P197: 0 | Q197: =IF(P197=0," ",_xlfn.RANK.EQ(P197,$P$7:$P$206,0)+ COUNTIF(P$7:P197, P197) - 1) -> 
P198: 0 | Q198: =IF(P198=0," ",_xlfn.RANK.EQ(P198,$P$7:$P$206,0)+ COUNTIF(P$7:P198, P198) - 1) -> 
P199: =SUM(I199:J199) -> 0 | Q199: =IF(P199=0," ",_xlfn.RANK.EQ(P199,$P$7:$P$206,0)+ COUNTIF(P$7:P199, P199) - 1) -> 
P200: 0 | Q200: =IF(P200=0," ",_xlfn.RANK.EQ(P200,$P$7:$P$206,0)+ COUNTIF(P$7:P200, P200) - 1) -> 
P201: 0 | Q201: =IF(P201=0," ",_xlfn.RANK.EQ(P201,$P$7:$P$206,0)+ COUNTIF(P$7:P201, P201) - 1) -> 
... 5 more rows

Sheet Kategorie 4
A2: =Parameter!C7 -> OSPSV
A3: =Parameter!C9 -> Jugendtag 2022
A4: =Parameter!C17 -> Kat. 4 Jugend kniend U17
I5: liegend | K5: kniend
A6: Nr | B6: Abl. | C6: Sch.-Nr | D6: Name | E6: Vorname | F6: JG | G6: Kat | H6: Sektion | I6: P1 | J6: P2 | K6: P3 | L6: P4 | M6: P5 | N6: P6 | O6: IZ | P6: Total | Q6: Rang | S6: KK
A7: 60 | D7: Locher | E7: Livio | F7: 2002 | G7: 4 | H7: Weissbad | K7: 92 | L7: 93 | O7: 4 | P7: =SUM(K7:L7) -> 185 | Q7: =IF(P7=0," ",_xlfn.RANK.EQ(P7,$P$7:$P$206,0)+ COUNTIF(P$7:P7, P7) - 1) -> 1 | R7: =IF(Q7=2,"Silber","") ->  | S7: G
A8: 68 | D8: Marciello | E8: Chiara | F8: 2008 | G8: 4 | H8: Weinfelden | K8: 89 | L8: 90 | O8: 4 | P8: 179 | Q8: =IF(P8=0," ",_xlfn.RANK.EQ(P8,$P$7:$P$206,0)+ COUNTIF(P$7:P8, P8) - 1) -> 2 | R8: =IF(Q8=1,"Gold","") ->  | S8: S
A9: 91 | D9: Schittenhelm | E9: Dennis | F9: 2003 | G9: 4 | H9: Goldach | K9: 90 | L9: 86 | O9: 3 | P9: 176 | Q9: =IF(P9=0," ",_xlfn.RANK.EQ(P9,$P$7:$P$206,0)+ COUNTIF(P$7:P9, P9) - 1) -> 3 | S9: B
A10: 75 | D10: Moser | E10: Jan | F10: 2007 | G10: 4 | H10: Wildhaus | K10: 87 | L10: 88 | O10: 2 | P10: 175 | Q10: =IF(P10=0," ",_xlfn.RANK.EQ(P10,$P$7:$P$206,0)+ COUNTIF(P$7:P10, P10) - 1) -> 4 | R10: =IF(Q10=3,"Bronze","") ->  | S10: 8
A11: 4 | D11: Ammann | E11: Pirmin | F11: 2007 | G11: 4 | H11: Neckertal | K11: 89 | L11: 86 | O11: 1 | P11: 175 | Q11: =IF(P11=0," ",_xlfn.RANK.EQ(P11,$P$7:$P$206,0)+ COUNTIF(P$7:P11, P11) - 1) -> 5 | S11: 8
A12: 28 | D12: Fritsche | E12: Maurus | F12: 2002 | G12: 4 | H12: Weissbad | K12: 90 | L12: 83 | O12: 4 | P12: 173 | Q12: =IF(P12=0," ",_xlfn.RANK.EQ(P12,$P$7:$P$206,0)+ COUNTIF(P$7:P12, P12) - 1) -> 6 | S12: 8
A13: 18 | D13: Broger | E13: Simon | F13: 2006 | G13: 4 | H13: Weissbad | K13: 85 | L13: 84 | P13: 169 | Q13: =IF(P13=0," ",_xlfn.RANK.EQ(P13,$P$7:$P$206,0)+ COUNTIF(P$7:P13, P13) - 1) -> 7 | S13: 5
A14: 126 | D14: Ulmann | E14: Jan | F14: 2005 | G14: 4 | H14: Weissbad | K14: 83 | L14: 85 | O14: 1 | P14: 168 | Q14: =IF(P14=0," ",_xlfn.RANK.EQ(P14,$P$7:$P$206,0)+ COUNTIF(P$7:P14, P14) - 1) -> 8 | S14: 5
A15: 115 | D15: Strübi | E15: Manuel | F15: 2008 | G15: 4 | H15: Wildhaus | K15: 84 | L15: 83 | O15: 2 | P15: 167 | Q15: =IF(P15=0," ",_xlfn.RANK.EQ(P15,$P$7:$P$206,0)+ COUNTIF(P$7:P15, P15) - 1) -> 9
A16: 66 | D16: Manser | E16: Jonas | F16: 2006 | G16: 4 | H16: Weissbad | K16: 80 | L16: 83 | P16: 163 | Q16: =IF(P16=0," ",_xlfn.RANK.EQ(P16,$P$7:$P$206,0)+ COUNTIF(P$7:P16, P16) - 1) -> 10
A17: 90 | D17: Scherrer | E17: Benjamin | F17: 2003 | G17: 4 | H17: Weinfelden | K17: 83 | L17: 74 | P17: 157 | Q17: =IF(P17=0," ",_xlfn.RANK.EQ(P17,$P$7:$P$206,0)+ COUNTIF(P$7:P17, P17) - 1) -> 11
A18: 97 | D18: Schönenberger | E18: Zoé | F18: 2007 | G18: 4 | H18: Sitterdorf | K18: 62 | L18: 71 | O18: 0 | P18: 133 | Q18: =IF(P18=0," ",_xlfn.RANK.EQ(P18,$P$7:$P$206,0)+ COUNTIF(P$7:P18, P18) - 1) -> 12
P19: 0 | Q19: =IF(P19=0," ",_xlfn.RANK.EQ(P19,$P$7:$P$206,0)+ COUNTIF(P$7:P19, P19) - 1) -> 
P20: 0 | Q20: =IF(P20=0," ",_xlfn.RANK.EQ(P20,$P$7:$P$206,0)+ COUNTIF(P$7:P20, P20) - 1) -> 
P21: 0 | Q21: =IF(P21=0," ",_xlfn.RANK.EQ(P21,$P$7:$P$206,0)+ COUNTIF(P$7:P21, P21) - 1) -> 
P22: 0 | Q22: =IF(P22=0," ",_xlfn.RANK.EQ(P22,$P$7:$P$206,0)+ COUNTIF(P$7:P22, P22) - 1) -> 
P23: 0 | Q23: =IF(P23=0," ",_xlfn.RANK.EQ(P23,$P$7:$P$206,0)+ COUNTIF(P$7:P23, P23) - 1) -> 
P24: 0 | Q24: =IF(P24=0," ",_xlfn.RANK.EQ(P24,$P$7:$P$206,0)+ COUNTIF(P$7:P24, P24) - 1) -> 
P25: 0 | Q25: =IF(P25=0," ",_xlfn.RANK.EQ(P25,$P$7:$P$206,0)+ COUNTIF(P$7:P25, P25) - 1) -> 
P26: 0 | Q26: =IF(P26=0," ",_xlfn.RANK.EQ(P26,$P$7:$P$206,0)+ COUNTIF(P$7:P26, P26) - 1) -> 
P27: 0 | Q27: =IF(P27=0," ",_xlfn.RANK.EQ(P27,$P$7:$P$206,0)+ COUNTIF(P$7:P27, P27) - 1) -> 
P28: 0 | Q28: =IF(P28=0," ",_xlfn.RANK.EQ(P28,$P$7:$P$206,0)+ COUNTIF(P$7:P28, P28) - 1) -> 
P29: 0 | Q29: =IF(P29=0," ",_xlfn.RANK.EQ(P29,$P$7:$P$206,0)+ COUNTIF(P$7:P29, P29) - 1) -> 
P30: 0 | Q30: =IF(P30=0," ",_xlfn.RANK.EQ(P30,$P$7:$P$206,0)+ COUNTIF(P$7:P30, P30) - 1) -> 
P31: 0 | Q31: =IF(P31=0," ",_xlfn.RANK.EQ(P31,$P$7:$P$206,0)+ COUNTIF(P$7:P31, P31) - 1) -> 
P32: 0 | Q32: =IF(P32=0," ",_xlfn.RANK.EQ(P32,$P$7:$P$206,0)+ COUNTIF(P$7:P32, P32) - 1) -> 
P33: 0 | Q33: =IF(P33=0," ",_xlfn.RANK.EQ(P33,$P$7:$P$206,0)+ COUNTIF(P$7:P33, P33) - 1) -> 
P34: 0 | Q34: =IF(P34=0," ",_xlfn.RANK.EQ(P34,$P$7:$P$206,0)+ COUNTIF(P$7:P34, P34) - 1) -> 
P35: 0 | Q35: =IF(P35=0," ",_xlfn.RANK.EQ(P35,$P$7:$P$206,0)+ COUNTIF(P$7:P35, P35) - 1) -> 
P36: 0 | Q36: =IF(P36=0," ",_xlfn.RANK.EQ(P36,$P$7:$P$206,0)+ COUNTIF(P$7:P36, P36) - 1) -> 
P37: 0 | Q37: =IF(P37=0," ",_xlfn.RANK.EQ(P37,$P$7:$P$206,0)+ COUNTIF(P$7:P37, P37) - 1) -> 
P38: 0 | Q38: =IF(P38=0," ",_xlfn.RANK.EQ(P38,$P$7:$P$206,0)+ COUNTIF(P$7:P38, P38) - 1) -> 
P39: =SUM(K39:L39) -> 0 | Q39: =IF(P39=0," ",_xlfn.RANK.EQ(P39,$P$7:$P$206,0)+ COUNTIF(P$7:P39, P39) - 1) -> 
P40: 0 | Q40: =IF(P40=0," ",_xlfn.RANK.EQ(P40,$P$7:$P$206,0)+ COUNTIF(P$7:P40, P40) - 1) -> 
P41: 0 | Q41: =IF(P41=0," ",_xlfn.RANK.EQ(P41,$P$7:$P$206,0)+ COUNTIF(P$7:P41, P41) - 1) -> 
P42: 0 | Q42: =IF(P42=0," ",_xlfn.RANK.EQ(P42,$P$7:$P$206,0)+ COUNTIF(P$7:P42, P42) - 1) -> 
P43: 0 | Q43: =IF(P43=0," ",_xlfn.RANK.EQ(P43,$P$7:$P$206,0)+ COUNTIF(P$7:P43, P43) - 1) -> 
P44: 0 | Q44: =IF(P44=0," ",_xlfn.RANK.EQ(P44,$P$7:$P$206,0)+ COUNTIF(P$7:P44, P44) - 1) -> 
P45: 0 | Q45: =IF(P45=0," ",_xlfn.RANK.EQ(P45,$P$7:$P$206,0)+ COUNTIF(P$7:P45, P45) - 1) -> 
P46: 0 | Q46: =IF(P46=0," ",_xlfn.RANK.EQ(P46,$P$7:$P$206,0)+ COUNTIF(P$7:P46, P46) - 1) -> 
P47: 0 | Q47: =IF(P47=0," ",_xlfn.RANK.EQ(P47,$P$7:$P$206,0)+ COUNTIF(P$7:P47, P47) - 1) -> 
P48: 0 | Q48: =IF(P48=0," ",_xlfn.RANK.EQ(P48,$P$7:$P$206,0)+ COUNTIF(P$7:P48, P48) - 1) -> 
P49: 0 | Q49: =IF(P49=0," ",_xlfn.RANK.EQ(P49,$P$7:$P$206,0)+ COUNTIF(P$7:P49, P49) - 1) -> 
P50: 0 | Q50: =IF(P50=0," ",_xlfn.RANK.EQ(P50,$P$7:$P$206,0)+ COUNTIF(P$7:P50, P50) - 1) -> 
P51: 0 | Q51: =IF(P51=0," ",_xlfn.RANK.EQ(P51,$P$7:$P$206,0)+ COUNTIF(P$7:P51, P51) - 1) -> 
P52: 0 | Q52: =IF(P52=0," ",_xlfn.RANK.EQ(P52,$P$7:$P$206,0)+ COUNTIF(P$7:P52, P52) - 1) -> 
P53: 0 | Q53: =IF(P53=0," ",_xlfn.RANK.EQ(P53,$P$7:$P$206,0)+ COUNTIF(P$7:P53, P53) - 1) -> 
P54: 0 | Q54: =IF(P54=0," ",_xlfn.RANK.EQ(P54,$P$7:$P$206,0)+ COUNTIF(P$7:P54, P54) - 1) -> 
P55: 0 | Q55: =IF(P55=0," ",_xlfn.RANK.EQ(P55,$P$7:$P$206,0)+ COUNTIF(P$7:P55, P55) - 1) -> 
P56: 0 | Q56: =IF(P56=0," ",_xlfn.RANK.EQ(P56,$P$7:$P$206,0)+ COUNTIF(P$7:P56, P56) - 1) -> 
P57: 0 | Q57: =IF(P57=0," ",_xlfn.RANK.EQ(P57,$P$7:$P$206,0)+ COUNTIF(P$7:P57, P57) - 1) -> 
P58: 0 | Q58: =IF(P58=0," ",_xlfn.RANK.EQ(P58,$P$7:$P$206,0)+ COUNTIF(P$7:P58, P58) - 1) -> 
P59: 0 | Q59: =IF(P59=0," ",_xlfn.RANK.EQ(P59,$P$7:$P$206,0)+ COUNTIF(P$7:P59, P59) - 1) -> 
P60: 0 | Q60: =IF(P60=0," ",_xlfn.RANK.EQ(P60,$P$7:$P$206,0)+ COUNTIF(P$7:P60, P60) - 1) -> 
P61: 0 | Q61: =IF(P61=0," ",_xlfn.RANK.EQ(P61,$P$7:$P$206,0)+ COUNTIF(P$7:P61, P61) - 1) -> 
P62: 0 | Q62: =IF(P62=0," ",_xlfn.RANK.EQ(P62,$P$7:$P$206,0)+ COUNTIF(P$7:P62, P62) - 1) -> 
P63: 0 | Q63: =IF(P63=0," ",_xlfn.RANK.EQ(P63,$P$7:$P$206,0)+ COUNTIF(P$7:P63, P63) - 1) -> 
P64: 0 | Q64: =IF(P64=0," ",_xlfn.RANK.EQ(P64,$P$7:$P$206,0)+ COUNTIF(P$7:P64, P64) - 1) -> 
P65: 0 | Q65: =IF(P65=0," ",_xlfn.RANK.EQ(P65,$P$7:$P$206,0)+ COUNTIF(P$7:P65, P65) - 1) -> 
P66: 0 | Q66: =IF(P66=0," ",_xlfn.RANK.EQ(P66,$P$7:$P$206,0)+ COUNTIF(P$7:P66, P66) - 1) -> 
P67: 0 | Q67: =IF(P67=0," ",_xlfn.RANK.EQ(P67,$P$7:$P$206,0)+ COUNTIF(P$7:P67, P67) - 1) -> 
P68: 0 | Q68: =IF(P68=0," ",_xlfn.RANK.EQ(P68,$P$7:$P$206,0)+ COUNTIF(P$7:P68, P68) - 1) -> 
P69: 0 | Q69: =IF(P69=0," ",_xlfn.RANK.EQ(P69,$P$7:$P$206,0)+ COUNTIF(P$7:P69, P69) - 1) -> 
P70: 0 | Q70: =IF(P70=0," ",_xlfn.RANK.EQ(P70,$P$7:$P$206,0)+ COUNTIF(P$7:P70, P70) - 1) -> 
P71: =SUM(K71:L71) -> 0 | Q71: =IF(P71=0," ",_xlfn.RANK.EQ(P71,$P$7:$P$206,0)+ COUNTIF(P$7:P71, P71) - 1) -> 
P72: 0 | Q72: =IF(P72=0," ",_xlfn.RANK.EQ(P72,$P$7:$P$206,0)+ COUNTIF(P$7:P72, P72) - 1) -> 
P73: 0 | Q73: =IF(P73=0," ",_xlfn.RANK.EQ(P73,$P$7:$P$206,0)+ COUNTIF(P$7:P73, P73) - 1) -> 
P74: 0 | Q74: =IF(P74=0," ",_xlfn.RANK.EQ(P74,$P$7:$P$206,0)+ COUNTIF(P$7:P74, P74) - 1) -> 
P75: 0 | Q75: =IF(P75=0," ",_xlfn.RANK.EQ(P75,$P$7:$P$206,0)+ COUNTIF(P$7:P75, P75) - 1) -> 
P76: 0 | Q76: =IF(P76=0," ",_xlfn.RANK.EQ(P76,$P$7:$P$206,0)+ COUNTIF(P$7:P76, P76) - 1) -> 
P77: 0 | Q77: =IF(P77=0," ",_xlfn.RANK.EQ(P77,$P$7:$P$206,0)+ COUNTIF(P$7:P77, P77) - 1) -> 
P78: 0 | Q78: =IF(P78=0," ",_xlfn.RANK.EQ(P78,$P$7:$P$206,0)+ COUNTIF(P$7:P78, P78) - 1) -> 
P79: 0 | Q79: =IF(P79=0," ",_xlfn.RANK.EQ(P79,$P$7:$P$206,0)+ COUNTIF(P$7:P79, P79) - 1) -> 
P80: 0 | Q80: =IF(P80=0," ",_xlfn.RANK.EQ(P80,$P$7:$P$206,0)+ COUNTIF(P$7:P80, P80) - 1) -> 
P81: 0 | Q81: =IF(P81=0," ",_xlfn.RANK.EQ(P81,$P$7:$P$206,0)+ COUNTIF(P$7:P81, P81) - 1) -> 
P82: 0 | Q82: =IF(P82=0," ",_xlfn.RANK.EQ(P82,$P$7:$P$206,0)+ COUNTIF(P$7:P82, P82) - 1) -> 
P83: 0 | Q83: =IF(P83=0," ",_xlfn.RANK.EQ(P83,$P$7:$P$206,0)+ COUNTIF(P$7:P83, P83) - 1) -> 
P84: 0 | Q84: =IF(P84=0," ",_xlfn.RANK.EQ(P84,$P$7:$P$206,0)+ COUNTIF(P$7:P84, P84) - 1) -> 
P85: 0 | Q85: =IF(P85=0," ",_xlfn.RANK.EQ(P85,$P$7:$P$206,0)+ COUNTIF(P$7:P85, P85) - 1) -> 
P86: 0 | Q86: =IF(P86=0," ",_xlfn.RANK.EQ(P86,$P$7:$P$206,0)+ COUNTIF(P$7:P86, P86) - 1) -> 
P87: 0 | Q87: =IF(P87=0," ",_xlfn.RANK.EQ(P87,$P$7:$P$206,0)+ COUNTIF(P$7:P87, P87) - 1) -> 
P88: 0 | Q88: =IF(P88=0," ",_xlfn.RANK.EQ(P88,$P$7:$P$206,0)+ COUNTIF(P$7:P88, P88) - 1) -> 
P89: 0 | Q89: =IF(P89=0," ",_xlfn.RANK.EQ(P89,$P$7:$P$206,0)+ COUNTIF(P$7:P89, P89) - 1) -> 
P90: 0 | Q90: =IF(P90=0," ",_xlfn.RANK.EQ(P90,$P$7:$P$206,0)+ COUNTIF(P$7:P90, P90) - 1) -> 
P91: 0 | Q91: =IF(P91=0," ",_xlfn.RANK.EQ(P91,$P$7:$P$206,0)+ COUNTIF(P$7:P91, P91) - 1) -> 
P92: 0 | Q92: =IF(P92=0," ",_xlfn.RANK.EQ(P92,$P$7:$P$206,0)+ COUNTIF(P$7:P92, P92) - 1) -> 
P93: 0 | Q93: =IF(P93=0," ",_xlfn.RANK.EQ(P93,$P$7:$P$206,0)+ COUNTIF(P$7:P93, P93) - 1) -> 
P94: 0 | Q94: =IF(P94=0," ",_xlfn.RANK.EQ(P94,$P$7:$P$206,0)+ COUNTIF(P$7:P94, P94) - 1) -> 
P95: 0 | Q95: =IF(P95=0," ",_xlfn.RANK.EQ(P95,$P$7:$P$206,0)+ COUNTIF(P$7:P95, P95) - 1) -> 
P96: 0 | Q96: =IF(P96=0," ",_xlfn.RANK.EQ(P96,$P$7:$P$206,0)+ COUNTIF(P$7:P96, P96) - 1) -> 
P97: 0 | Q97: =IF(P97=0," ",_xlfn.RANK.EQ(P97,$P$7:$P$206,0)+ COUNTIF(P$7:P97, P97) - 1) -> 
P98: 0 | Q98: =IF(P98=0," ",_xlfn.RANK.EQ(P98,$P$7:$P$206,0)+ COUNTIF(P$7:P98, P98) - 1) -> 
P99: 0 | Q99: =IF(P99=0," ",_xlfn.RANK.EQ(P99,$P$7:$P$206,0)+ COUNTIF(P$7:P99, P99) - 1) -> 
P100: 0 | Q100: =IF(P100=0," ",_xlfn.RANK.EQ(P100,$P$7:$P$206,0)+ COUNTIF(P$7:P100, P100) - 1) -> 
P101: 0 | Q101: =IF(P101=0," ",_xlfn.RANK.EQ(P101,$P$7:$P$206,0)+ COUNTIF(P$7:P101, P101) - 1) -> 
P102: 0 | Q102: =IF(P102=0," ",_xlfn.RANK.EQ(P102,$P$7:$P$206,0)+ COUNTIF(P$7:P102, P102) - 1) -> 
P103: =SUM(K103:L103) -> 0 | Q103: =IF(P103=0," ",_xlfn.RANK.EQ(P103,$P$7:$P$206,0)+ COUNTIF(P$7:P103, P103) - 1) -> 
P104: 0 | Q104: =IF(P104=0," ",_xlfn.RANK.EQ(P104,$P$7:$P$206,0)+ COUNTIF(P$7:P104, P104) - 1) -> 
P105: 0 | Q105: =IF(P105=0," ",_xlfn.RANK.EQ(P105,$P$7:$P$206,0)+ COUNTIF(P$7:P105, P105) - 1) -> 
P106: 0 | Q106: =IF(P106=0," ",_xlfn.RANK.EQ(P106,$P$7:$P$206,0)+ COUNTIF(P$7:P106, P106) - 1) -> 
P107: 0 | Q107: =IF(P107=0," ",_xlfn.RANK.EQ(P107,$P$7:$P$206,0)+ COUNTIF(P$7:P107, P107) - 1) -> 
P108: 0 | Q108: =IF(P108=0," ",_xlfn.RANK.EQ(P108,$P$7:$P$206,0)+ COUNTIF(P$7:P108, P108) - 1) -> 
P109: 0 | Q109: =IF(P109=0," ",_xlfn.RANK.EQ(P109,$P$7:$P$206,0)+ COUNTIF(P$7:P109, P109) - 1) -> 
P110: 0 | Q110: =IF(P110=0," ",_xlfn.RANK.EQ(P110,$P$7:$P$206,0)+ COUNTIF(P$7:P110, P110) - 1) -> 
P111: 0 | Q111: =IF(P111=0," ",_xlfn.RANK.EQ(P111,$P$7:$P$206,0)+ COUNTIF(P$7:P111, P111) - 1) -> 
P112: 0 | Q112: =IF(P112=0," ",_xlfn.RANK.EQ(P112,$P$7:$P$206,0)+ COUNTIF(P$7:P112, P112) - 1) -> 
P113: 0 | Q113: =IF(P113=0," ",_xlfn.RANK.EQ(P113,$P$7:$P$206,0)+ COUNTIF(P$7:P113, P113) - 1) -> 
P114: 0 | Q114: =IF(P114=0," ",_xlfn.RANK.EQ(P114,$P$7:$P$206,0)+ COUNTIF(P$7:P114, P114) - 1) -> 
P115: 0 | Q115: =IF(P115=0," ",_xlfn.RANK.EQ(P115,$P$7:$P$206,0)+ COUNTIF(P$7:P115, P115) - 1) -> 
P116: 0 | Q116: =IF(P116=0," ",_xlfn.RANK.EQ(P116,$P$7:$P$206,0)+ COUNTIF(P$7:P116, P116) - 1) -> 
P117: 0 | Q117: =IF(P117=0," ",_xlfn.RANK.EQ(P117,$P$7:$P$206,0)+ COUNTIF(P$7:P117, P117) - 1) -> 
P118: 0 | Q118: =IF(P118=0," ",_xlfn.RANK.EQ(P118,$P$7:$P$206,0)+ COUNTIF(P$7:P118, P118) - 1) -> 
P119: 0 | Q119: =IF(P119=0," ",_xlfn.RANK.EQ(P119,$P$7:$P$206,0)+ COUNTIF(P$7:P119, P119) - 1) -> 
P120: 0 | Q120: =IF(P120=0," ",_xlfn.RANK.EQ(P120,$P$7:$P$206,0)+ COUNTIF(P$7:P120, P120) - 1) -> 
P121: 0 | Q121: =IF(P121=0," ",_xlfn.RANK.EQ(P121,$P$7:$P$206,0)+ COUNTIF(P$7:P121, P121) - 1) -> 
P122: 0 | Q122: =IF(P122=0," ",_xlfn.RANK.EQ(P122,$P$7:$P$206,0)+ COUNTIF(P$7:P122, P122) - 1) -> 
P123: 0 | Q123: =IF(P123=0," ",_xlfn.RANK.EQ(P123,$P$7:$P$206,0)+ COUNTIF(P$7:P123, P123) - 1) -> 
P124: 0 | Q124: =IF(P124=0," ",_xlfn.RANK.EQ(P124,$P$7:$P$206,0)+ COUNTIF(P$7:P124, P124) - 1) -> 
P125: 0 | Q125: =IF(P125=0," ",_xlfn.RANK.EQ(P125,$P$7:$P$206,0)+ COUNTIF(P$7:P125, P125) - 1) -> 
P126: 0 | Q126: =IF(P126=0," ",_xlfn.RANK.EQ(P126,$P$7:$P$206,0)+ COUNTIF(P$7:P126, P126) - 1) -> 
P127: 0 | Q127: =IF(P127=0," ",_xlfn.RANK.EQ(P127,$P$7:$P$206,0)+ COUNTIF(P$7:P127, P127) - 1) -> 
P128: 0 | Q128: =IF(P128=0," ",_xlfn.RANK.EQ(P128,$P$7:$P$206,0)+ COUNTIF(P$7:P128, P128) - 1) -> 
P129: 0 | Q129: =IF(P129=0," ",_xlfn.RANK.EQ(P129,$P$7:$P$206,0)+ COUNTIF(P$7:P129, P129) - 1) -> 
P130: 0 | Q130: =IF(P130=0," ",_xlfn.RANK.EQ(P130,$P$7:$P$206,0)+ COUNTIF(P$7:P130, P130) - 1) -> 
P131: 0 | Q131: =IF(P131=0," ",_xlfn.RANK.EQ(P131,$P$7:$P$206,0)+ COUNTIF(P$7:P131, P131) - 1) -> 
P132: 0 | Q132: =IF(P132=0," ",_xlfn.RANK.EQ(P132,$P$7:$P$206,0)+ COUNTIF(P$7:P132, P132) - 1) -> 
P133: 0 | Q133: =IF(P133=0," ",_xlfn.RANK.EQ(P133,$P$7:$P$206,0)+ COUNTIF(P$7:P133, P133) - 1) -> 
P134: 0 | Q134: =IF(P134=0," ",_xlfn.RANK.EQ(P134,$P$7:$P$206,0)+ COUNTIF(P$7:P134, P134) - 1) -> 
P135: =SUM(K135:L135) -> 0 | Q135: =IF(P135=0," ",_xlfn.RANK.EQ(P135,$P$7:$P$206,0)+ COUNTIF(P$7:P135, P135) - 1) -> 
P136: 0 | Q136: =IF(P136=0," ",_xlfn.RANK.EQ(P136,$P$7:$P$206,0)+ COUNTIF(P$7:P136, P136) - 1) -> 
P137: 0 | Q137: =IF(P137=0," ",_xlfn.RANK.EQ(P137,$P$7:$P$206,0)+ COUNTIF(P$7:P137, P137) - 1) -> 
P138: 0 | Q138: =IF(P138=0," ",_xlfn.RANK.EQ(P138,$P$7:$P$206,0)+ COUNTIF(P$7:P138, P138) - 1) -> 
P139: 0 | Q139: =IF(P139=0," ",_xlfn.RANK.EQ(P139,$P$7:$P$206,0)+ COUNTIF(P$7:P139, P139) - 1) -> 
P140: 0 | Q140: =IF(P140=0," ",_xlfn.RANK.EQ(P140,$P$7:$P$206,0)+ COUNTIF(P$7:P140, P140) - 1) -> 
P141: 0 | Q141: =IF(P141=0," ",_xlfn.RANK.EQ(P141,$P$7:$P$206,0)+ COUNTIF(P$7:P141, P141) - 1) -> 
P142: 0 | Q142: =IF(P142=0," ",_xlfn.RANK.EQ(P142,$P$7:$P$206,0)+ COUNTIF(P$7:P142, P142) - 1) -> 
P143: 0 | Q143: =IF(P143=0," ",_xlfn.RANK.EQ(P143,$P$7:$P$206,0)+ COUNTIF(P$7:P143, P143) - 1) -> 
P144: 0 | Q144: =IF(P144=0," ",_xlfn.RANK.EQ(P144,$P$7:$P$206,0)+ COUNTIF(P$7:P144, P144) - 1) -> 
P145: 0 | Q145: =IF(P145=0," ",_xlfn.RANK.EQ(P145,$P$7:$P$206,0)+ COUNTIF(P$7:P145, P145) - 1) -> 
P146: 0 | Q146: =IF(P146=0," ",_xlfn.RANK.EQ(P146,$P$7:$P$206,0)+ COUNTIF(P$7:P146, P146) - 1) -> 
P147: 0 | Q147: =IF(P147=0," ",_xlfn.RANK.EQ(P147,$P$7:$P$206,0)+ COUNTIF(P$7:P147, P147) - 1) -> 
P148: 0 | Q148: =IF(P148=0," ",_xlfn.RANK.EQ(P148,$P$7:$P$206,0)+ COUNTIF(P$7:P148, P148) - 1) -> 
P149: 0 | Q149: =IF(P149=0," ",_xlfn.RANK.EQ(P149,$P$7:$P$206,0)+ COUNTIF(P$7:P149, P149) - 1) -> 
P150: 0 | Q150: =IF(P150=0," ",_xlfn.RANK.EQ(P150,$P$7:$P$206,0)+ COUNTIF(P$7:P150, P150) - 1) -> 
P151: 0 | Q151: =IF(P151=0," ",_xlfn.RANK.EQ(P151,$P$7:$P$206,0)+ COUNTIF(P$7:P151, P151) - 1) -> 
P152: 0 | Q152: =IF(P152=0," ",_xlfn.RANK.EQ(P152,$P$7:$P$206,0)+ COUNTIF(P$7:P152, P152) - 1) -> 
P153: 0 | Q153: =IF(P153=0," ",_xlfn.RANK.EQ(P153,$P$7:$P$206,0)+ COUNTIF(P$7:P153, P153) - 1) -> 
P154: 0 | Q154: =IF(P154=0," ",_xlfn.RANK.EQ(P154,$P$7:$P$206,0)+ COUNTIF(P$7:P154, P154) - 1) -> 
P155: 0 | Q155: =IF(P155=0," ",_xlfn.RANK.EQ(P155,$P$7:$P$206,0)+ COUNTIF(P$7:P155, P155) - 1) -> 
P156: 0 | Q156: =IF(P156=0," ",_xlfn.RANK.EQ(P156,$P$7:$P$206,0)+ COUNTIF(P$7:P156, P156) - 1) -> 
P157: 0 | Q157: =IF(P157=0," ",_xlfn.RANK.EQ(P157,$P$7:$P$206,0)+ COUNTIF(P$7:P157, P157) - 1) -> 
P158: 0 | Q158: =IF(P158=0," ",_xlfn.RANK.EQ(P158,$P$7:$P$206,0)+ COUNTIF(P$7:P158, P158) - 1) -> 
P159: 0 | Q159: =IF(P159=0," ",_xlfn.RANK.EQ(P159,$P$7:$P$206,0)+ COUNTIF(P$7:P159, P159) - 1) -> 
P160: 0 | Q160: =IF(P160=0," ",_xlfn.RANK.EQ(P160,$P$7:$P$206,0)+ COUNTIF(P$7:P160, P160) - 1) -> 
P161: 0 | Q161: =IF(P161=0," ",_xlfn.RANK.EQ(P161,$P$7:$P$206,0)+ COUNTIF(P$7:P161, P161) - 1) -> 
P162: 0 | Q162: =IF(P162=0," ",_xlfn.RANK.EQ(P162,$P$7:$P$206,0)+ COUNTIF(P$7:P162, P162) - 1) -> 
P163: 0 | Q163: =IF(P163=0," ",_xlfn.RANK.EQ(P163,$P$7:$P$206,0)+ COUNTIF(P$7:P163, P163) - 1) -> 
P164: 0 | Q164: =IF(P164=0," ",_xlfn.RANK.EQ(P164,$P$7:$P$206,0)+ COUNTIF(P$7:P164, P164) - 1) -> 
P165: 0 | Q165: =IF(P165=0," ",_xlfn.RANK.EQ(P165,$P$7:$P$206,0)+ COUNTIF(P$7:P165, P165) - 1) -> 
P166: 0 | Q166: =IF(P166=0," ",_xlfn.RANK.EQ(P166,$P$7:$P$206,0)+ COUNTIF(P$7:P166, P166) - 1) -> 
P167: =SUM(K167:L167) -> 0 | Q167: =IF(P167=0," ",_xlfn.RANK.EQ(P167,$P$7:$P$206,0)+ COUNTIF(P$7:P167, P167) - 1) -> 
P168: 0 | Q168: =IF(P168=0," ",_xlfn.RANK.EQ(P168,$P$7:$P$206,0)+ COUNTIF(P$7:P168, P168) - 1) -> 
P169: 0 | Q169: =IF(P169=0," ",_xlfn.RANK.EQ(P169,$P$7:$P$206,0)+ COUNTIF(P$7:P169, P169) - 1) -> 
P170: 0 | Q170: =IF(P170=0," ",_xlfn.RANK.EQ(P170,$P$7:$P$206,0)+ COUNTIF(P$7:P170, P170) - 1) -> 
P171: 0 | Q171: =IF(P171=0," ",_xlfn.RANK.EQ(P171,$P$7:$P$206,0)+ COUNTIF(P$7:P171, P171) - 1) -> 
P172: 0 | Q172: =IF(P172=0," ",_xlfn.RANK.EQ(P172,$P$7:$P$206,0)+ COUNTIF(P$7:P172, P172) - 1) -> 
P173: 0 | Q173: =IF(P173=0," ",_xlfn.RANK.EQ(P173,$P$7:$P$206,0)+ COUNTIF(P$7:P173, P173) - 1) -> 
P174: 0 | Q174: =IF(P174=0," ",_xlfn.RANK.EQ(P174,$P$7:$P$206,0)+ COUNTIF(P$7:P174, P174) - 1) -> 
P175: 0 | Q175: =IF(P175=0," ",_xlfn.RANK.EQ(P175,$P$7:$P$206,0)+ COUNTIF(P$7:P175, P175) - 1) -> 
P176: 0 | Q176: =IF(P176=0," ",_xlfn.RANK.EQ(P176,$P$7:$P$206,0)+ COUNTIF(P$7:P176, P176) - 1) -> 
P177: 0 | Q177: =IF(P177=0," ",_xlfn.RANK.EQ(P177,$P$7:$P$206,0)+ COUNTIF(P$7:P177, P177) - 1) -> 
P178: 0 | Q178: =IF(P178=0," ",_xlfn.RANK.EQ(P178,$P$7:$P$206,0)+ COUNTIF(P$7:P178, P178) - 1) -> 
P179: 0 | Q179: =IF(P179=0," ",_xlfn.RANK.EQ(P179,$P$7:$P$206,0)+ COUNTIF(P$7:P179, P179) - 1) -> 
P180: 0 | Q180: =IF(P180=0," ",_xlfn.RANK.EQ(P180,$P$7:$P$206,0)+ COUNTIF(P$7:P180, P180) - 1) -> 
P181: 0 | Q181: =IF(P181=0," ",_xlfn.RANK.EQ(P181,$P$7:$P$206,0)+ COUNTIF(P$7:P181, P181) - 1) -> 
P182: 0 | Q182: =IF(P182=0," ",_xlfn.RANK.EQ(P182,$P$7:$P$206,0)+ COUNTIF(P$7:P182, P182) - 1) -> 
P183: 0 | Q183: =IF(P183=0," ",_xlfn.RANK.EQ(P183,$P$7:$P$206,0)+ COUNTIF(P$7:P183, P183) - 1) -> 
P184: 0 | Q184: =IF(P184=0," ",_xlfn.RANK.EQ(P184,$P$7:$P$206,0)+ COUNTIF(P$7:P184, P184) - 1) -> 
P185: 0 | Q185: =IF(P185=0," ",_xlfn.RANK.EQ(P185,$P$7:$P$206,0)+ COUNTIF(P$7:P185, P185) - 1) -> 
P186: 0 | Q186: =IF(P186=0," ",_xlfn.RANK.EQ(P186,$P$7:$P$206,0)+ COUNTIF(P$7:P186, P186) - 1) -> 
P187: 0 | Q187: =IF(P187=0," ",_xlfn.RANK.EQ(P187,$P$7:$P$206,0)+ COUNTIF(P$7:P187, P187) - 1) -> 
P188: 0 | Q188: =IF(P188=0," ",_xlfn.RANK.EQ(P188,$P$7:$P$206,0)+ COUNTIF(P$7:P188, P188) - 1) -> 
P189: 0 | Q189: =IF(P189=0," ",_xlfn.RANK.EQ(P189,$P$7:$P$206,0)+ COUNTIF(P$7:P189, P189) - 1) -> 
P190: 0 | Q190: =IF(P190=0," ",_xlfn.RANK.EQ(P190,$P$7:$P$206,0)+ COUNTIF(P$7:P190, P190) - 1) -> 
P191: 0 | Q191: =IF(P191=0," ",_xlfn.RANK.EQ(P191,$P$7:$P$206,0)+ COUNTIF(P$7:P191, P191) - 1) -> 
P192: 0 | Q192: =IF(P192=0," ",_xlfn.RANK.EQ(P192,$P$7:$P$206,0)+ COUNTIF(P$7:P192, P192) - 1) -> 
P193: 0 | Q193: =IF(P193=0," ",_xlfn.RANK.EQ(P193,$P$7:$P$206,0)+ COUNTIF(P$7:P193, P193) - 1) -> 
P194: 0 | Q194: =IF(P194=0," ",_xlfn.RANK.EQ(P194,$P$7:$P$206,0)+ COUNTIF(P$7:P194, P194) - 1) -> 
P195: 0 | Q195: =IF(P195=0," ",_xlfn.RANK.EQ(P195,$P$7:$P$206,0)+ COUNTIF(P$7:P195, P195) - 1) -> 
P196: 0 | Q196: =IF(P196=0," ",_xlfn.RANK.EQ(P196,$P$7:$P$206,0)+ COUNTIF(P$7:P196, P196) - 1) -> 
P197: 0 | Q197: =IF(P197=0," ",_xlfn.RANK.EQ(P197,$P$7:$P$206,0)+ COUNTIF(P$7:P197, P197) - 1) -> 
P198: 0 | Q198: =IF(P198=0," ",_xlfn.RANK.EQ(P198,$P$7:$P$206,0)+ COUNTIF(P$7:P198, P198) - 1) -> 
P199: =SUM(K199:L199) -> 0 | Q199: =IF(P199=0," ",_xlfn.RANK.EQ(P199,$P$7:$P$206,0)+ COUNTIF(P$7:P199, P199) - 1) -> 
P200: 0 | Q200: =IF(P200=0," ",_xlfn.RANK.EQ(P200,$P$7:$P$206,0)+ COUNTIF(P$7:P200, P200) - 1) -> 
P201: 0 | Q201: =IF(P201=0," ",_xlfn.RANK.EQ(P201,$P$7:$P$206,0)+ COUNTIF(P$7:P201, P201) - 1) -> 
... 5 more rows

Sheet Kategorie 5
A2: =Parameter!C7 -> OSPSV
A3: =Parameter!C9 -> Jugendtag 2022
A4: =Parameter!C19 -> Kat. 5 Jugend 3 Stellung U19/U21
I5: liegend | K5: kniend | M5: stehend
A6: Nr | B6: Abl. | C6: Sch.-Nr | D6: Name | E6: Vorname | F6: JG | G6: Kat | H6: Sektion | I6: P1 | J6: P2 | K6: P3 | L6: P4 | M6: P5 | N6: P6 | O6: IZ | P6: Total | Q6: Rang | S6: KK
A7: 89 | D7: Scherrer | E7: Benjamin | F7: 2003 | G7: 3 | H7: Weinfelden | I7: 96 | J7: 97 | O7: 9 | P7: =SUM(I7:N7) -> 193 | Q7: =IF(P7=0," ",_xlfn.RANK.EQ(P7,$P$7:$P$206,0)+ COUNTIF(P$7:P7, P7) - 1) -> 1 | R7: =IF(Q7=1,"Gold","") -> Gold | S7: G
A8: 81 | D8: Patt | E8: Michel | F8: 2009 | G8: 1 | H8: St.Gallen | I8: 98 | J8: 95 | O8: 8 | P8: 193 | Q8: =IF(P8=0," ",_xlfn.RANK.EQ(P8,$P$7:$P$206,0)+ COUNTIF(P$7:P8, P8) - 1) -> 2 | S8: S
A9: 104 | D9: Speck | E9: Corina | F9: 2005 | G9: 3 | H9: Weissbad | I9: 97 | J9: 96 | O9: 7 | P9: 193 | Q9: =IF(P9=0," ",_xlfn.RANK.EQ(P9,$P$7:$P$206,0)+ COUNTIF(P$7:P9, P9) - 1) -> 3 | R9: =IF(Q9=2,"Silber","") ->  | S9: B
A10: 3 | D10: Ammann | E10: Pirmin | F10: 2007 | G10: 2 | H10: Neckertal | I10: 95 | J10: 97 | O10: 7 | P10: 192 | Q10: =IF(P10=0," ",_xlfn.RANK.EQ(P10,$P$7:$P$206,0)+ COUNTIF(P$7:P10, P10) - 1) -> 4
A11: 52 | D11: Kressel | E11: Niclas | F11: 2006 | G11: 2 | H11: Sargans | I11: 96 | J11: 96 | O11: 2 | P11: 192 | Q11: =IF(P11=0," ",_xlfn.RANK.EQ(P11,$P$7:$P$206,0)+ COUNTIF(P$7:P11, P11) - 1) -> 5
A12: 30 | D12: Früh | E12: Janis | F12: 2004 | G12: 3 | H12: Kirchberg | I12: 94 | J12: 97 | O12: 8 | P12: 191 | Q12: =IF(P12=0," ",_xlfn.RANK.EQ(P12,$P$7:$P$206,0)+ COUNTIF(P$7:P12, P12) - 1) -> 6 | R12: =IF(Q12=3,"Bronze","") -> 
A13: 40 | D13: Hagen | E13: Linn | F13: 2009 | G13: 1 | H13: Dettighofen | I13: 94 | J13: 96 | O13: 8 | P13: 190 | Q13: =IF(P13=0," ",_xlfn.RANK.EQ(P13,$P$7:$P$206,0)+ COUNTIF(P$7:P13, P13) - 1) -> 7
A14: 109 | D14: Staub | E14: Lea | F14: 2002 | G14: 3 | H14: Schönholzerswilen | I14: 95 | J14: 95 | O14: 6 | P14: 190 | Q14: =IF(P14=0," ",_xlfn.RANK.EQ(P14,$P$7:$P$206,0)+ COUNTIF(P$7:P14, P14) - 1) -> 8
A15: 51 | D15: Krähemann | E15: Levano | F15: 2006 | G15: 2 | H15: Wil | I15: 94 | J15: 95 | O15: 7 | P15: 189 | Q15: =IF(P15=0," ",_xlfn.RANK.EQ(P15,$P$7:$P$206,0)+ COUNTIF(P$7:P15, P15) - 1) -> 9
A16: 92 | D16: Schittenhelm | E16: Dennis | F16: 2003 | G16: 3 | H16: Goldach | I16: 93 | J16: 96 | O16: 5 | P16: 189 | Q16: =IF(P16=0," ",_xlfn.RANK.EQ(P16,$P$7:$P$206,0)+ COUNTIF(P$7:P16, P16) - 1) -> 10
A17: 105 | D17: Sprenger | E17: Sven | F17: 2008 | G17: 2 | H17: Altstätten | I17: 95 | J17: 94 | O17: 5 | P17: 189 | Q17: =IF(P17=0," ",_xlfn.RANK.EQ(P17,$P$7:$P$206,0)+ COUNTIF(P$7:P17, P17) - 1) -> 11
A18: 53 | D18: Kummer | E18: Livio | F18: 2005 | G18: 3 | H18: Munot Schaffhausen | I18: 94 | J18: 94 | O18: 7 | P18: 188 | Q18: =IF(P18=0," ",_xlfn.RANK.EQ(P18,$P$7:$P$206,0)+ COUNTIF(P$7:P18, P18) - 1) -> 12
A19: 58 | D19: Lengyel | E19: Zsombor | F19: 2006 | G19: 2 | H19: Sargans | I19: 94 | J19: 94 | O19: 6 | P19: 188 | Q19: =IF(P19=0," ",_xlfn.RANK.EQ(P19,$P$7:$P$206,0)+ COUNTIF(P$7:P19, P19) - 1) -> 13
A20: 34 | D20: Gmünder | E20: Ralf | F20: 2005 | G20: 3 | H20: Weissbad | I20: 92 | J20: 96 | O20: 2 | P20: 188 | Q20: =IF(P20=0," ",_xlfn.RANK.EQ(P20,$P$7:$P$206,0)+ COUNTIF(P$7:P20, P20) - 1) -> 14
A21: 118 | D21: Sutter | E21: Janine | F21: 2010 | G21: 1 | H21: Schönholzerswilen | I21: 94 | J21: 93 | O21: 8 | P21: 187 | Q21: =IF(P21=0," ",_xlfn.RANK.EQ(P21,$P$7:$P$206,0)+ COUNTIF(P$7:P21, P21) - 1) -> 15
A22: 101 | D22: Segmüller | E22: Joe | F22: 2010 | G22: 1 | H22: Altstätten | I22: 94 | J22: 93 | O22: 5 | P22: 187 | Q22: =IF(P22=0," ",_xlfn.RANK.EQ(P22,$P$7:$P$206,0)+ COUNTIF(P$7:P22, P22) - 1) -> 16
A23: 85 | D23: Rohner | E23: Ciril | F23: 2006 | G23: 2 | H23: Kirchberg | I23: 94 | J23: 93 | O23: 5 | P23: 187 | Q23: =IF(P23=0," ",_xlfn.RANK.EQ(P23,$P$7:$P$206,0)+ COUNTIF(P$7:P23, P23) - 1) -> 17
A24: 77 | D24: Niederer | E24: Remo | F24: 2011 | G24: 1 | H24: Neckertal | I24: 95 | J24: 92 | O24: 4 | P24: 187 | Q24: =IF(P24=0," ",_xlfn.RANK.EQ(P24,$P$7:$P$206,0)+ COUNTIF(P$7:P24, P24) - 1) -> 18
A25: 57 | D25: Lengwiler | E25: Tobias | F25: 2003 | G25: 3 | H25: Sitterdorf | I25: 92 | J25: 95 | O25: 3 | P25: 187 | Q25: =IF(P25=0," ",_xlfn.RANK.EQ(P25,$P$7:$P$206,0)+ COUNTIF(P$7:P25, P25) - 1) -> 19
A26: 8 | D26: Beerle | E26: Nina | F26: 2007 | G26: 2 | H26: Goldach | I26: 95 | J26: 92 | O26: 3 | P26: 187 | Q26: =IF(P26=0," ",_xlfn.RANK.EQ(P26,$P$7:$P$206,0)+ COUNTIF(P$7:P26, P26) - 1) -> 20
A27: 20 | D27: Correia | E27: Jannic | F27: 2009 | G27: 1 | H27: Schönholzerswilen | I27: 92 | J27: 94 | O27: 6 | P27: 186 | Q27: =IF(P27=0," ",_xlfn.RANK.EQ(P27,$P$7:$P$206,0)+ COUNTIF(P$7:P27, P27) - 1) -> 21
A28: 111 | D28: Steuck | E28: Luca | F28: 2009 | G28: 1 | H28: Mosnang | I28: 92 | J28: 94 | O28: 6 | P28: 186 | Q28: =IF(P28=0," ",_xlfn.RANK.EQ(P28,$P$7:$P$206,0)+ COUNTIF(P$7:P28, P28) - 1) -> 22
A29: 131 | D29: Wiederkehr | E29: Yari | F29: 2006 | G29: 2 | H29: Kirchberg | I29: 92 | J29: 94 | O29: 5 | P29: 186 | Q29: =IF(P29=0," ",_xlfn.RANK.EQ(P29,$P$7:$P$206,0)+ COUNTIF(P$7:P29, P29) - 1) -> 23
A30: 14 | D30: Böhi | E30: Marc | F30: 2009 | G30: 1 | H30: Schönholzerswilen | I30: 90 | J30: 96 | O30: 4 | P30: 186 | Q30: =IF(P30=0," ",_xlfn.RANK.EQ(P30,$P$7:$P$206,0)+ COUNTIF(P$7:P30, P30) - 1) -> 24
A31: 114 | D31: Strübi | E31: Manuel | F31: 2008 | G31: 2 | H31: Wildhaus | I31: 92 | J31: 94 | O31: 4 | P31: 186 | Q31: =IF(P31=0," ",_xlfn.RANK.EQ(P31,$P$7:$P$206,0)+ COUNTIF(P$7:P31, P31) - 1) -> 25
A32: 27 | D32: Fritsche | E32: Maurus | F32: 2002 | G32: 3 | H32: Weissbad | I32: 91 | J32: 94 | O32: 6 | P32: 185 | Q32: =IF(P32=0," ",_xlfn.RANK.EQ(P32,$P$7:$P$206,0)+ COUNTIF(P$7:P32, P32) - 1) -> 26
A33: 60 | D33: Locher | E33: Livio | F33: 2002 | G33: 4 | H33: Weissbad | K33: 92 | L33: 93 | O33: 4 | P33: 185 | Q33: =IF(P33=0," ",_xlfn.RANK.EQ(P33,$P$7:$P$206,0)+ COUNTIF(P$7:P33, P33) - 1) -> 27
A34: 48 | D34: Klein | E34: Elias | F34: 2003 | G34: 3 | H34: Kirchberg | I34: 93 | J34: 92 | O34: 4 | P34: 185 | Q34: =IF(P34=0," ",_xlfn.RANK.EQ(P34,$P$7:$P$206,0)+ COUNTIF(P$7:P34, P34) - 1) -> 28
A35: 61 | D35: Lüber | E35: Lara | F35: 2008 | G35: 2 | H35: Kirchberg | I35: 93 | J35: 92 | O35: 3 | P35: 185 | Q35: =IF(P35=0," ",_xlfn.RANK.EQ(P35,$P$7:$P$206,0)+ COUNTIF(P$7:P35, P35) - 1) -> 29
A36: 64 | D36: Mäder | E36: Ramona | F36: 2008 | G36: 1 | H36: Sitterdorf | I36: 93 | J36: 92 | O36: 3 | P36: 185 | Q36: =IF(P36=0," ",_xlfn.RANK.EQ(P36,$P$7:$P$206,0)+ COUNTIF(P$7:P36, P36) - 1) -> 30
A37: 65 | D37: Manser | E37: Jonas | F37: 2006 | G37: 2 | H37: Weissbad | I37: 93 | J37: 91 | O37: 5 | P37: 184 | Q37: =IF(P37=0," ",_xlfn.RANK.EQ(P37,$P$7:$P$206,0)+ COUNTIF(P$7:P37, P37) - 1) -> 31
A38: 46 | D38: Jordi | E38: Lena | F38: 2010 | G38: 1 | H38: Dicken Ebnat-Kappel | I38: 92 | J38: 92 | O38: 4 | P38: 184 | Q38: =IF(P38=0," ",_xlfn.RANK.EQ(P38,$P$7:$P$206,0)+ COUNTIF(P$7:P38, P38) - 1) -> 32
A39: 83 | D39: Pfützner | E39: Philipp | F39: 2006 | G39: 2 | H39: Sargans | I39: 92 | J39: 92 | O39: 4 | P39: =SUM(I39:N39) -> 184 | Q39: =IF(P39=0," ",_xlfn.RANK.EQ(P39,$P$7:$P$206,0)+ COUNTIF(P$7:P39, P39) - 1) -> 33
A40: 54 | D40: Künzli | E40: Ian | F40: 2006 | G40: 2 | H40: Dicken Ebnat-Kappel | I40: 94 | J40: 90 | O40: 4 | P40: 184 | Q40: =IF(P40=0," ",_xlfn.RANK.EQ(P40,$P$7:$P$206,0)+ COUNTIF(P$7:P40, P40) - 1) -> 34
A41: 128 | D41: Weitbrecht | E41: Talitha | F41: 2009 | G41: 2 | H41: Sargans | I41: 91 | J41: 93 | O41: 3 | P41: 184 | Q41: =IF(P41=0," ",_xlfn.RANK.EQ(P41,$P$7:$P$206,0)+ COUNTIF(P$7:P41, P41) - 1) -> 35
A42: 103 | D42: Segmüller | E42: Nando | F42: 2003 | G42: 3 | H42: Altstätten | I42: 88 | J42: 96 | O42: 2 | P42: 184 | Q42: =IF(P42=0," ",_xlfn.RANK.EQ(P42,$P$7:$P$206,0)+ COUNTIF(P$7:P42, P42) - 1) -> 36
A43: 15 | D43: Böhi | E43: Sarina | F43: 2009 | G43: 1 | H43: Schönholzerswilen | I43: 93 | J43: 91 | O43: 1 | P43: 184 | Q43: =IF(P43=0," ",_xlfn.RANK.EQ(P43,$P$7:$P$206,0)+ COUNTIF(P$7:P43, P43) - 1) -> 37
A44: 88 | D44: Schaub | E44: Alyssia | F44: 2009 | G44: 1 | H44: Mosnang | I44: 95 | J44: 88 | O44: 6 | P44: 183 | Q44: =IF(P44=0," ",_xlfn.RANK.EQ(P44,$P$7:$P$206,0)+ COUNTIF(P$7:P44, P44) - 1) -> 38
A45: 33 | D45: Geisser | E45: Roman | F45: 2006 | G45: 2 | H45: Dicken Ebnat-Kappel | I45: 93 | J45: 90 | O45: 5 | P45: 183 | Q45: =IF(P45=0," ",_xlfn.RANK.EQ(P45,$P$7:$P$206,0)+ COUNTIF(P$7:P45, P45) - 1) -> 39
A46: 96 | D46: Schönenberger | E46: Zoé | F46: 2007 | G46: 2 | H46: Sitterdorf | I46: 92 | J46: 91 | O46: 4 | P46: 183 | Q46: =IF(P46=0," ",_xlfn.RANK.EQ(P46,$P$7:$P$206,0)+ COUNTIF(P$7:P46, P46) - 1) -> 40
A47: 22 | D47: Deubelbeiss | E47: Jano | F47: 2010 | G47: 1 | H47: Goldach | I47: 88 | J47: 95 | O47: 2 | P47: 183 | Q47: =IF(P47=0," ",_xlfn.RANK.EQ(P47,$P$7:$P$206,0)+ COUNTIF(P$7:P47, P47) - 1) -> 41
A48: 125 | D48: Ulmann | E48: Jan | F48: 2005 | G48: 3 | H48: Weissbad | I48: 90 | J48: 93 | O48: 2 | P48: 183 | Q48: =IF(P48=0," ",_xlfn.RANK.EQ(P48,$P$7:$P$206,0)+ COUNTIF(P$7:P48, P48) - 1) -> 42
A49: 130 | D49: Wichser | E49: Mia | F49: 2009 | G49: 1 | H49: Grabs | I49: 91 | J49: 92 | O49: 2 | P49: 183 | Q49: =IF(P49=0," ",_xlfn.RANK.EQ(P49,$P$7:$P$206,0)+ COUNTIF(P$7:P49, P49) - 1) -> 43
A50: 67 | D50: Marciello | E50: Chiara | F50: 2008 | G50: 2 | H50: Weinfelden | I50: 91 | J50: 92 | O50: 1 | P50: 183 | Q50: =IF(P50=0," ",_xlfn.RANK.EQ(P50,$P$7:$P$206,0)+ COUNTIF(P$7:P50, P50) - 1) -> 44
A51: 76 | D51: Munskgaard | E51: William | F51: 2007 | G51: 2 | H51: Sargans | I51: 93 | J51: 89 | O51: 6 | P51: 182 | Q51: =IF(P51=0," ",_xlfn.RANK.EQ(P51,$P$7:$P$206,0)+ COUNTIF(P$7:P51, P51) - 1) -> 45
A52: 110 | D52: Steiner | E52: Joshua | F52: 2009 | G52: 1 | H52: Neckertal | I52: 89 | J52: 93 | O52: 4 | P52: 182 | Q52: =IF(P52=0," ",_xlfn.RANK.EQ(P52,$P$7:$P$206,0)+ COUNTIF(P$7:P52, P52) - 1) -> 46
A53: 119 | D53: Sutter | E53: Natascha | F53: 2004 | G53: 3 | H53: Schönholzerswilen | I53: 89 | J53: 93 | O53: 4 | P53: 182 | Q53: =IF(P53=0," ",_xlfn.RANK.EQ(P53,$P$7:$P$206,0)+ COUNTIF(P$7:P53, P53) - 1) -> 47
A54: 133 | D54: Ziegler | E54: Timo | F54: 2010 | G54: 1 | H54: Neckertal | I54: 92 | J54: 90 | O54: 4 | P54: 182 | Q54: =IF(P54=0," ",_xlfn.RANK.EQ(P54,$P$7:$P$206,0)+ COUNTIF(P$7:P54, P54) - 1) -> 48
A55: 39 | D55: Graf | E55: Rahel | F55: 2010 | G55: 1 | H55: Kirchberg | I55: 89 | J55: 93 | O55: 3 | P55: 182 | Q55: =IF(P55=0," ",_xlfn.RANK.EQ(P55,$P$7:$P$206,0)+ COUNTIF(P$7:P55, P55) - 1) -> 49
A56: 74 | D56: Moser | E56: Jan | F56: 2007 | G56: 2 | H56: Wildhaus | I56: 91 | J56: 91 | O56: 3 | P56: 182 | Q56: =IF(P56=0," ",_xlfn.RANK.EQ(P56,$P$7:$P$206,0)+ COUNTIF(P$7:P56, P56) - 1) -> 50
A57: 29 | D57: Fromm | E57: Valentin | F57: 2008 | G57: 2 | H57: Sargans | I57: 94 | J57: 88 | O57: 3 | P57: 182 | Q57: =IF(P57=0," ",_xlfn.RANK.EQ(P57,$P$7:$P$206,0)+ COUNTIF(P$7:P57, P57) - 1) -> 51
A58: 135 | D58: Zumstein | E58: Vincenza | F58: 2005 | G58: 3 | H58: Weissbad | I58: 92 | J58: 90 | O58: 2 | P58: 182 | Q58: =IF(P58=0," ",_xlfn.RANK.EQ(P58,$P$7:$P$206,0)+ COUNTIF(P$7:P58, P58) - 1) -> 52
A59: 32 | D59: Gad | E59: Karim | F59: 2003 | G59: 3 | H59: Munot Schaffhausen | I59: 94 | J59: 88 | O59: 2 | P59: 182 | Q59: =IF(P59=0," ",_xlfn.RANK.EQ(P59,$P$7:$P$206,0)+ COUNTIF(P$7:P59, P59) - 1) -> 53
A60: 35 | D60: Gmünder | E60: Janin | F60: 2005 | G60: 3 | H60: Weissbad | I60: 91 | J60: 91 | O60: 1 | P60: 182 | Q60: =IF(P60=0," ",_xlfn.RANK.EQ(P60,$P$7:$P$206,0)+ COUNTIF(P$7:P60, P60) - 1) -> 54
A61: 59 | D61: Locher | E61: Livio | F61: 2002 | G61: 3 | H61: Weissbad | I61: 92 | J61: 90 | O61: 1 | P61: 182 | Q61: =IF(P61=0," ",_xlfn.RANK.EQ(P61,$P$7:$P$206,0)+ COUNTIF(P$7:P61, P61) - 1) -> 55
A62: 100 | D62: Schumacher | E62: Manuel | F62: 2003 | G62: 3 | H62: Weinfelden | I62: 93 | J62: 88 | O62: 5 | P62: 181 | Q62: =IF(P62=0," ",_xlfn.RANK.EQ(P62,$P$7:$P$206,0)+ COUNTIF(P$7:P62, P62) - 1) -> 56
A63: 70 | D63: Meier | E63: Noah | F63: 2010 | G63: 1 | H63: Goldach | I63: 88 | J63: 93 | O63: 2 | P63: 181 | Q63: =IF(P63=0," ",_xlfn.RANK.EQ(P63,$P$7:$P$206,0)+ COUNTIF(P$7:P63, P63) - 1) -> 57
A64: 12 | D64: Blattner | E64: Mia | F64: 2009 | G64: 1 | H64: Goldach | I64: 92 | J64: 88 | O64: 5 | P64: 180 | Q64: =IF(P64=0," ",_xlfn.RANK.EQ(P64,$P$7:$P$206,0)+ COUNTIF(P$7:P64, P64) - 1) -> 58
A65: 7 | D65: Baumgartner | E65: Michael | F65: 2003 | G65: 3 | H65: Munot Schaffhausen | I65: 87 | J65: 93 | O65: 3 | P65: 180 | Q65: =IF(P65=0," ",_xlfn.RANK.EQ(P65,$P$7:$P$206,0)+ COUNTIF(P$7:P65, P65) - 1) -> 59
A66: 21 | D66: Correia | E66: Sandro | F66: 2006 | G66: 2 | H66: Schönholzerswilen | I66: 90 | J66: 90 | O66: 1 | P66: 180 | Q66: =IF(P66=0," ",_xlfn.RANK.EQ(P66,$P$7:$P$206,0)+ COUNTIF(P$7:P66, P66) - 1) -> 60
A67: 68 | D67: Marciello | E67: Chiara | F67: 2008 | G67: 4 | H67: Weinfelden | K67: 89 | L67: 90 | O67: 4 | P67: 179 | Q67: =IF(P67=0," ",_xlfn.RANK.EQ(P67,$P$7:$P$206,0)+ COUNTIF(P$7:P67, P67) - 1) -> 61
A68: 42 | D68: Hassioui | E68: Elias | F68: 2011 | G68: 1 | H68: Sitterdorf | I68: 86 | J68: 93 | O68: 4 | P68: 179 | Q68: =IF(P68=0," ",_xlfn.RANK.EQ(P68,$P$7:$P$206,0)+ COUNTIF(P$7:P68, P68) - 1) -> 62
A69: 129 | D69: Wenk | E69: Alexander | F69: 2011 | G69: 1 | H69: Goldach | I69: 86 | J69: 93 | O69: 3 | P69: 179 | Q69: =IF(P69=0," ",_xlfn.RANK.EQ(P69,$P$7:$P$206,0)+ COUNTIF(P$7:P69, P69) - 1) -> 63
A70: 127 | D70: Wachsmann | E70: Phillip | F70: 2008 | G70: 1 | H70: Sargans | I70: 89 | J70: 90 | O70: 3 | P70: 179 | Q70: =IF(P70=0," ",_xlfn.RANK.EQ(P70,$P$7:$P$206,0)+ COUNTIF(P$7:P70, P70) - 1) -> 64
A71: 132 | D71: Wildi | E71: Clarissa | F71: 2008 | G71: 1 | H71: Grabs | I71: 92 | J71: 87 | O71: 1 | P71: =SUM(I71:N71) -> 179 | Q71: =IF(P71=0," ",_xlfn.RANK.EQ(P71,$P$7:$P$206,0)+ COUNTIF(P$7:P71, P71) - 1) -> 65
A72: 16 | D72: Brändli | E72: Joya | F72: 2004 | G72: 3 | H72: Schönholzerswilen | I72: 86 | J72: 92 | O72: 5 | P72: 178 | Q72: =IF(P72=0," ",_xlfn.RANK.EQ(P72,$P$7:$P$206,0)+ COUNTIF(P$7:P72, P72) - 1) -> 66
A73: 44 | D73: Huldi | E73: Patrick | F73: 2009 | G73: 1 | H73: Neckertal | I73: 89 | J73: 89 | O73: 4 | P73: 178 | Q73: =IF(P73=0," ",_xlfn.RANK.EQ(P73,$P$7:$P$206,0)+ COUNTIF(P$7:P73, P73) - 1) -> 67
A74: 38 | D74: Graf | E74: Felix | F74: 2011 | G74: 1 | H74: Kirchberg | I74: 86 | J74: 92 | O74: 2 | P74: 178 | Q74: =IF(P74=0," ",_xlfn.RANK.EQ(P74,$P$7:$P$206,0)+ COUNTIF(P$7:P74, P74) - 1) -> 68
A75: 108 | D75: Staub | E75: Kaya | F75: 2008 | G75: 1 | H75: Schönholzerswilen | I75: 87 | J75: 91 | O75: 2 | P75: 178 | Q75: =IF(P75=0," ",_xlfn.RANK.EQ(P75,$P$7:$P$206,0)+ COUNTIF(P$7:P75, P75) - 1) -> 69
A76: 95 | D76: Schönenberger | E76: Fynn | F76: 2010 | G76: 1 | H76: Sitterdorf | I76: 90 | J76: 88 | O76: 1 | P76: 178 | Q76: =IF(P76=0," ",_xlfn.RANK.EQ(P76,$P$7:$P$206,0)+ COUNTIF(P$7:P76, P76) - 1) -> 70
A77: 5 | D77: Auer | E77: Tobias | F77: 2005 | G77: 3 | H77: Sitterdorf | I77: 90 | J77: 88 | O77: 0 | P77: 178 | Q77: =IF(P77=0," ",_xlfn.RANK.EQ(P77,$P$7:$P$206,0)+ COUNTIF(P$7:P77, P77) - 1) -> 71
A78: 17 | D78: Broger | E78: Simon | F78: 2006 | G78: 2 | H78: Weissbad | I78: 87 | J78: 90 | O78: 4 | P78: 177 | Q78: =IF(P78=0," ",_xlfn.RANK.EQ(P78,$P$7:$P$206,0)+ COUNTIF(P$7:P78, P78) - 1) -> 72
A79: 82 | D79: Patt | E79: Andrea | F79: 2006 | G79: 2 | H79: St.Gallen | I79: 89 | J79: 88 | O79: 4 | P79: 177 | Q79: =IF(P79=0," ",_xlfn.RANK.EQ(P79,$P$7:$P$206,0)+ COUNTIF(P$7:P79, P79) - 1) -> 73
A80: 6 | D80: Balgar | E80: Samuel | F80: 2009 | G80: 2 | H80: Goldach | I80: 88 | J80: 89 | O80: 3 | P80: 177 | Q80: =IF(P80=0," ",_xlfn.RANK.EQ(P80,$P$7:$P$206,0)+ COUNTIF(P$7:P80, P80) - 1) -> 74
A81: 26 | D81: Fries | E81: Eliano | F81: 2010 | G81: 1 | H81: Goldach | I81: 87 | J81: 90 | O81: 2 | P81: 177 | Q81: =IF(P81=0," ",_xlfn.RANK.EQ(P81,$P$7:$P$206,0)+ COUNTIF(P$7:P81, P81) - 1) -> 75
A82: 78 | D82: Oberholzer | E82: Raffael | F82: 2005 | G82: 3 | H82: Sitterdorf | I82: 88 | J82: 89 | O82: 1 | P82: 177 | Q82: =IF(P82=0," ",_xlfn.RANK.EQ(P82,$P$7:$P$206,0)+ COUNTIF(P$7:P82, P82) - 1) -> 76
A83: 99 | D83: Schrittwieser | E83: Thomas | F83: 2005 | G83: 3 | H83: Weinfelden | I83: 90 | J83: 87 | O83: 1 | P83: 177 | Q83: =IF(P83=0," ",_xlfn.RANK.EQ(P83,$P$7:$P$206,0)+ COUNTIF(P$7:P83, P83) - 1) -> 77
A84: 91 | D84: Schittenhelm | E84: Dennis | F84: 2003 | G84: 4 | H84: Goldach | K84: 90 | L84: 86 | O84: 3 | P84: 176 | Q84: =IF(P84=0," ",_xlfn.RANK.EQ(P84,$P$7:$P$206,0)+ COUNTIF(P$7:P84, P84) - 1) -> 78
A85: 93 | D85: Schläpfer | E85: Michael | F85: 2009 | G85: 2 | H85: Weinfelden | I85: 90 | J85: 86 | O85: 3 | P85: 176 | Q85: =IF(P85=0," ",_xlfn.RANK.EQ(P85,$P$7:$P$206,0)+ COUNTIF(P$7:P85, P85) - 1) -> 79
A86: 73 | D86: Mettler | E86: Andri | F86: 2010 | G86: 1 | H86: Neckertal | I86: 83 | J86: 92 | O86: 4 | P86: 175 | Q86: =IF(P86=0," ",_xlfn.RANK.EQ(P86,$P$7:$P$206,0)+ COUNTIF(P$7:P86, P86) - 1) -> 80
A87: 75 | D87: Moser | E87: Jan | F87: 2007 | G87: 4 | H87: Wildhaus | K87: 87 | L87: 88 | O87: 2 | P87: 175 | Q87: =IF(P87=0," ",_xlfn.RANK.EQ(P87,$P$7:$P$206,0)+ COUNTIF(P$7:P87, P87) - 1) -> 81
A88: 4 | D88: Ammann | E88: Pirmin | F88: 2007 | G88: 4 | H88: Neckertal | K88: 89 | L88: 86 | O88: 1 | P88: 175 | Q88: =IF(P88=0," ",_xlfn.RANK.EQ(P88,$P$7:$P$206,0)+ COUNTIF(P$7:P88, P88) - 1) -> 82
A89: 134 | D89: Ziltener | E89: Sina | F89: 2007 | G89: 2 | H89: Goldach | I89: 86 | J89: 89 | O89: 1 | P89: 175 | Q89: =IF(P89=0," ",_xlfn.RANK.EQ(P89,$P$7:$P$206,0)+ COUNTIF(P$7:P89, P89) - 1) -> 83
A90: 87 | D90: Sawall | E90: Fabienne | F90: 2007 | G90: 2 | H90: Grabs | I90: 88 | J90: 86 | O90: 5 | P90: 174 | Q90: =IF(P90=0," ",_xlfn.RANK.EQ(P90,$P$7:$P$206,0)+ COUNTIF(P$7:P90, P90) - 1) -> 84
A91: 23 | D91: Dornbierer | E91: Timon | F91: 2007 | G91: 2 | H91: Goldach | I91: 87 | J91: 87 | O91: 2 | P91: 174 | Q91: =IF(P91=0," ",_xlfn.RANK.EQ(P91,$P$7:$P$206,0)+ COUNTIF(P$7:P91, P91) - 1) -> 85
A92: 10 | D92: Bernet | E92: Kevin | F92: 2005 | G92: 3 | H92: Kirchberg | I92: 89 | J92: 85 | O92: 2 | P92: 174 | Q92: =IF(P92=0," ",_xlfn.RANK.EQ(P92,$P$7:$P$206,0)+ COUNTIF(P$7:P92, P92) - 1) -> 86
A93: 13 | D93: Bleiker | E93: Beda | F93: 2009 | G93: 1 | H93: Mosnang | I93: 85 | J93: 89 | O93: 1 | P93: 174 | Q93: =IF(P93=0," ",_xlfn.RANK.EQ(P93,$P$7:$P$206,0)+ COUNTIF(P$7:P93, P93) - 1) -> 87
A94: 79 | D94: Oettli | E94: Philipp | F94: 2006 | G94: 2 | H94: Weinfelden | I94: 86 | J94: 88 | O94: 1 | P94: 174 | Q94: =IF(P94=0," ",_xlfn.RANK.EQ(P94,$P$7:$P$206,0)+ COUNTIF(P$7:P94, P94) - 1) -> 88
A95: 107 | D95: Städler | E95: Sven | F95: 2005 | G95: 3 | H95: Weissbad | I95: 87 | J95: 87 | O95: 1 | P95: 174 | Q95: =IF(P95=0," ",_xlfn.RANK.EQ(P95,$P$7:$P$206,0)+ COUNTIF(P$7:P95, P95) - 1) -> 89
A96: 37 | D96: Good | E96: Cedric | F96: 2009 | G96: 2 | H96: Sargans | I96: 89 | J96: 85 | O96: 1 | P96: 174 | Q96: =IF(P96=0," ",_xlfn.RANK.EQ(P96,$P$7:$P$206,0)+ COUNTIF(P$7:P96, P96) - 1) -> 90
A97: 28 | D97: Fritsche | E97: Maurus | F97: 2002 | G97: 4 | H97: Weissbad | K97: 90 | L97: 83 | O97: 4 | P97: 173 | Q97: =IF(P97=0," ",_xlfn.RANK.EQ(P97,$P$7:$P$206,0)+ COUNTIF(P$7:P97, P97) - 1) -> 91
A98: 136 | D98: Zweifel | E98: Noel | F98: 2010 | G98: 2 | H98: Kirchberg | I98: 85 | J98: 87 | O98: 4 | P98: 172 | Q98: =IF(P98=0," ",_xlfn.RANK.EQ(P98,$P$7:$P$206,0)+ COUNTIF(P$7:P98, P98) - 1) -> 92
A99: 25 | D99: Fässler | E99: Ryan | F99: 2011 | G99: 1 | H99: Goldach | I99: 90 | J99: 82 | O99: 3 | P99: 172 | Q99: =IF(P99=0," ",_xlfn.RANK.EQ(P99,$P$7:$P$206,0)+ COUNTIF(P$7:P99, P99) - 1) -> 93
A100: 123 | D100: Truniger | E100: Nils | F100: 2008 | G100: 1 | H100: Mosnang | I100: 86 | J100: 86 | O100: 2 | P100: 172 | Q100: =IF(P100=0," ",_xlfn.RANK.EQ(P100,$P$7:$P$206,0)+ COUNTIF(P$7:P100, P100) - 1) -> 94
A101: 84 | D101: Rick | E101: Colin | F101: 2009 | G101: 2 | H101: Goldach | I101: 95 | J101: 77 | O101: 2 | P101: 172 | Q101: =IF(P101=0," ",_xlfn.RANK.EQ(P101,$P$7:$P$206,0)+ COUNTIF(P$7:P101, P101) - 1) -> 95
A102: 117 | D102: Studer | E102: Julien | F102: 2010 | G102: 1 | H102: Munot Schaffhausen | I102: 85 | J102: 87 | O102: 1 | P102: 172 | Q102: =IF(P102=0," ",_xlfn.RANK.EQ(P102,$P$7:$P$206,0)+ COUNTIF(P$7:P102, P102) - 1) -> 96
A103: 19 | D103: Brühlmann | E103: David | F103: 2004 | G103: 3 | H103: Munot Schaffhausen | I103: 85 | J103: 87 | O103: 1 | P103: =SUM(I103:N103) -> 172 | Q103: =IF(P103=0," ",_xlfn.RANK.EQ(P103,$P$7:$P$206,0)+ COUNTIF(P$7:P103, P103) - 1) -> 97
A104: 69 | D104: Matanovic | E104: Josipa | F104: 2007 | G104: 2 | H104: Grabs | I104: 85 | J104: 85 | O104: 1 | P104: 170 | Q104: =IF(P104=0," ",_xlfn.RANK.EQ(P104,$P$7:$P$206,0)+ COUNTIF(P$7:P104, P104) - 1) -> 98
A105: 50 | D105: Koller | E105: Bryan | F105: 2009 | G105: 1 | H105: Kirchberg | I105: 86 | J105: 84 | O105: 1 | P105: 170 | Q105: =IF(P105=0," ",_xlfn.RANK.EQ(P105,$P$7:$P$206,0)+ COUNTIF(P$7:P105, P105) - 1) -> 99
A106: 56 | D106: Kutter | E106: Joel | F106: 2010 | G106: 2 | H106: Dettighofen | I106: 83 | J106: 87 | O106: 0 | P106: 170 | Q106: =IF(P106=0," ",_xlfn.RANK.EQ(P106,$P$7:$P$206,0)+ COUNTIF(P$7:P106, P106) - 1) -> 100
A107: 18 | D107: Broger | E107: Simon | F107: 2006 | G107: 4 | H107: Weissbad | K107: 85 | L107: 84 | P107: 169 | Q107: =IF(P107=0," ",_xlfn.RANK.EQ(P107,$P$7:$P$206,0)+ COUNTIF(P$7:P107, P107) - 1) -> 101
A108: 126 | D108: Ulmann | E108: Jan | F108: 2005 | G108: 4 | H108: Weissbad | K108: 83 | L108: 85 | O108: 1 | P108: 168 | Q108: =IF(P108=0," ",_xlfn.RANK.EQ(P108,$P$7:$P$206,0)+ COUNTIF(P$7:P108, P108) - 1) -> 102
A109: 115 | D109: Strübi | E109: Manuel | F109: 2008 | G109: 4 | H109: Wildhaus | K109: 84 | L109: 83 | O109: 2 | P109: 167 | Q109: =IF(P109=0," ",_xlfn.RANK.EQ(P109,$P$7:$P$206,0)+ COUNTIF(P$7:P109, P109) - 1) -> 103
A110: 55 | D110: Küttel | E110: Patrick | F110: 2006 | G110: 2 | H110: Schönholzerswilen | I110: 82 | J110: 82 | O110: 3 | P110: 164 | Q110: =IF(P110=0," ",_xlfn.RANK.EQ(P110,$P$7:$P$206,0)+ COUNTIF(P$7:P110, P110) - 1) -> 104
A111: 24 | D111: Eggenberger | E111: Raffael | F111: 2007 | G111: 2 | H111: Grabs | I111: 80 | J111: 84 | O111: 2 | P111: 164 | Q111: =IF(P111=0," ",_xlfn.RANK.EQ(P111,$P$7:$P$206,0)+ COUNTIF(P$7:P111, P111) - 1) -> 105
A112: 49 | D112: Koch | E112: Leandro | F112: 2011 | G112: 1 | H112: Weissbad | I112: 85 | J112: 79 | O112: 1 | P112: 164 | Q112: =IF(P112=0," ",_xlfn.RANK.EQ(P112,$P$7:$P$206,0)+ COUNTIF(P$7:P112, P112) - 1) -> 106
A113: 102 | D113: Segmüller | E113: Arno | F113: 2006 | G113: 2 | H113: Altstätten | I113: 77 | J113: 87 | O113: 0 | P113: 164 | Q113: =IF(P113=0," ",_xlfn.RANK.EQ(P113,$P$7:$P$206,0)+ COUNTIF(P$7:P113, P113) - 1) -> 107
A114: 113 | D114: Straub | E114: Patrick | F114: 2009 | G114: 2 | H114: Dettighofen | I114: 79 | J114: 84 | O114: 1 | P114: 163 | Q114: =IF(P114=0," ",_xlfn.RANK.EQ(P114,$P$7:$P$206,0)+ COUNTIF(P$7:P114, P114) - 1) -> 108
A115: 120 | D115: Taranto | E115: Arya | F115: 2008 | G115: 2 | H115: Wil | I115: 81 | J115: 82 | O115: 1 | P115: 163 | Q115: =IF(P115=0," ",_xlfn.RANK.EQ(P115,$P$7:$P$206,0)+ COUNTIF(P$7:P115, P115) - 1) -> 109
A116: 66 | D116: Manser | E116: Jonas | F116: 2006 | G116: 4 | H116: Weissbad | K116: 80 | L116: 83 | P116: 163 | Q116: =IF(P116=0," ",_xlfn.RANK.EQ(P116,$P$7:$P$206,0)+ COUNTIF(P$7:P116, P116) - 1) -> 110
A117: 9 | D117: Berger | E117: Marc | F117: 2013 | G117: 1 | H117: Sitterdorf | I117: 81 | J117: 80 | O117: 1 | P117: 161 | Q117: =IF(P117=0," ",_xlfn.RANK.EQ(P117,$P$7:$P$206,0)+ COUNTIF(P$7:P117, P117) - 1) -> 111
A118: 112 | D118: Stieger | E118: Ken | F118: 2006 | G118: 2 | H118: Weinfelden | I118: 82 | J118: 78 | O118: 1 | P118: 160 | Q118: =IF(P118=0," ",_xlfn.RANK.EQ(P118,$P$7:$P$206,0)+ COUNTIF(P$7:P118, P118) - 1) -> 112
A119: 71 | D119: Meier | E119: Jerome | F119: 2012 | G119: 1 | H119: Schönholzerswilen | I119: 81 | J119: 79 | O119: 0 | P119: 160 | Q119: =IF(P119=0," ",_xlfn.RANK.EQ(P119,$P$7:$P$206,0)+ COUNTIF(P$7:P119, P119) - 1) -> 113
A120: 47 | D120: Kalbitz | E120: Andrin | F120: 2008 | G120: 2 | H120: Weinfelden | I120: 81 | J120: 78 | O120: 0 | P120: 159 | Q120: =IF(P120=0," ",_xlfn.RANK.EQ(P120,$P$7:$P$206,0)+ COUNTIF(P$7:P120, P120) - 1) -> 114
A121: 86 | D121: Rohner | E121: Enea | F121: 2012 | G121: 1 | H121: Sitterdorf | I121: 78 | J121: 80 | O121: 0 | P121: 158 | Q121: =IF(P121=0," ",_xlfn.RANK.EQ(P121,$P$7:$P$206,0)+ COUNTIF(P$7:P121, P121) - 1) -> 115
A122: 90 | D122: Scherrer | E122: Benjamin | F122: 2003 | G122: 4 | H122: Weinfelden | K122: 83 | L122: 74 | P122: 157 | Q122: =IF(P122=0," ",_xlfn.RANK.EQ(P122,$P$7:$P$206,0)+ COUNTIF(P$7:P122, P122) - 1) -> 116
A123: 43 | D123: Henke | E123: Quentin | F123: 2009 | G123: 2 | H123: Kirchberg | I123: 81 | J123: 72 | O123: 0 | P123: 153 | Q123: =IF(P123=0," ",_xlfn.RANK.EQ(P123,$P$7:$P$206,0)+ COUNTIF(P$7:P123, P123) - 1) -> 117
A124: 122 | D124: Thalmann | E124: Silas | F124: 2010 | G124: 1 | H124: Weinfelden | I124: 66 | J124: 84 | O124: 1 | P124: 150 | Q124: =IF(P124=0," ",_xlfn.RANK.EQ(P124,$P$7:$P$206,0)+ COUNTIF(P$7:P124, P124) - 1) -> 118
A125: 137 | D125: Münger | E125: Benaja | F125: 2008 | G125: 1 | H125: Neckertal | I125: 75 | J125: 73 | O125: 0 | P125: 148 | Q125: =IF(P125=0," ",_xlfn.RANK.EQ(P125,$P$7:$P$206,0)+ COUNTIF(P$7:P125, P125) - 1) -> 119
A126: 1 | D126: Aeberli | E126: Lionél | F126: 2010 | G126: 1 | H126: Dettighofen | I126: 65 | J126: 75 | O126: 0 | P126: 140 | Q126: =IF(P126=0," ",_xlfn.RANK.EQ(P126,$P$7:$P$206,0)+ COUNTIF(P$7:P126, P126) - 1) -> 120
A127: 97 | D127: Schönenberger | E127: Zoé | F127: 2007 | G127: 4 | H127: Sitterdorf | K127: 62 | L127: 71 | O127: 0 | P127: 133 | Q127: =IF(P127=0," ",_xlfn.RANK.EQ(P127,$P$7:$P$206,0)+ COUNTIF(P$7:P127, P127) - 1) -> 121
A128: 121 | D128: Thalmann | E128: Robin | F128: 2012 | G128: 1 | H128: Weinfelden | I128: 62 | J128: 69 | O128: 1 | P128: 131 | Q128: =IF(P128=0," ",_xlfn.RANK.EQ(P128,$P$7:$P$206,0)+ COUNTIF(P$7:P128, P128) - 1) -> 122
A129: 72 | D129: Meier | E129: Astid | F129: 2002 | G129: 3 | H129: St.Gallen | I129: 100 | J129: 97 | O129: 6 | P129: =SUM(Startliste!K12977) -> 0 | Q129: =IF(P129=0," ",_xlfn.RANK.EQ(P129,$P$7:$P$206,0)+ COUNTIF(P$7:P129, P129) - 1) -> 
A130: 45 | D130: Jenal | E130: Jarik | F130: 2012 | G130: 1 | H130: Sitterdorf | P130: =SUM(I130:N130) -> 0 | Q130: =IF(P130=0," ",_xlfn.RANK.EQ(P130,$P$7:$P$206,0)+ COUNTIF(P$7:P130, P130) - 1) -> 
A131: 98 | D131: Schorta | E131: Moreno | F131: 2012 | G131: 1 | H131: Sitterdorf | P131: 0 | Q131: =IF(P131=0," ",_xlfn.RANK.EQ(P131,$P$7:$P$206,0)+ COUNTIF(P$7:P131, P131) - 1) -> 
A132: 2 | D132: Alder | E132: James | F132: 2009 | G132: 1 | H132: Sitterdorf | P132: 0 | Q132: =IF(P132=0," ",_xlfn.RANK.EQ(P132,$P$7:$P$206,0)+ COUNTIF(P$7:P132, P132) - 1) -> 
A133: 116 | D133: Studer | E133: Lorin | F133: 2009 | G133: 1 | H133: Dettighofen | P133: 0 | Q133: =IF(P133=0," ",_xlfn.RANK.EQ(P133,$P$7:$P$206,0)+ COUNTIF(P$7:P133, P133) - 1) -> 
A134: 41 | D134: Häseli | E134: Max | F134: 2008 | G134: 2 | H134: Kirchberg | P134: 0 | Q134: =IF(P134=0," ",_xlfn.RANK.EQ(P134,$P$7:$P$206,0)+ COUNTIF(P$7:P134, P134) - 1) -> 
A135: 106 | D135: Sprenger | E135: Sven | F135: 2008 | G135: 4 | H135: Altstätten | P135: 0 | Q135: =IF(P135=0," ",_xlfn.RANK.EQ(P135,$P$7:$P$206,0)+ COUNTIF(P$7:P135, P135) - 1) -> 
A136: 62 | D136: Mäder | E136: Alex | F136: 2005 | G136: 3 | H136: Sitterdorf | P136: 0 | Q136: =IF(P136=0," ",_xlfn.RANK.EQ(P136,$P$7:$P$206,0)+ COUNTIF(P$7:P136, P136) - 1) -> 
A137: 63 | D137: Mäder | E137: Alex | F137: 2005 | G137: 4 | H137: Sitterdorf | P137: 0 | Q137: =IF(P137=0," ",_xlfn.RANK.EQ(P137,$P$7:$P$206,0)+ COUNTIF(P$7:P137, P137) - 1) -> 
A138: 80 | D138: Oppliger | E138: Alisa | F138: 2005 | G138: 3 | H138: Dicken Ebnat-Kappel | P138: 0 | Q138: =IF(P138=0," ",_xlfn.RANK.EQ(P138,$P$7:$P$206,0)+ COUNTIF(P$7:P138, P138) - 1) -> 
A139: 11 | D139: Bissegger | E139: Robin | F139: 2004 | G139: 3 | H139: Weinfelden | P139: 0 | Q139: =IF(P139=0," ",_xlfn.RANK.EQ(P139,$P$7:$P$206,0)+ COUNTIF(P$7:P139, P139) - 1) -> 
A140: 31 | D140: Früh | E140: Janis | F140: 2004 | G140: 4 | H140: Kirchberg | P140: 0 | Q140: =IF(P140=0," ",_xlfn.RANK.EQ(P140,$P$7:$P$206,0)+ COUNTIF(P$7:P140, P140) - 1) -> 
A141: 36 | D141: Gmünder | E141: Simon | F141: 2003 | G141: 3 | H141: Weissbad | P141: 0 | Q141: =IF(P141=0," ",_xlfn.RANK.EQ(P141,$P$7:$P$206,0)+ COUNTIF(P$7:P141, P141) - 1) -> 
A142: 94 | D142: Schnetzer | E142: Colin | F142: 2003 | G142: 3 | H142: Sitterdorf | P142: 0 | Q142: =IF(P142=0," ",_xlfn.RANK.EQ(P142,$P$7:$P$206,0)+ COUNTIF(P$7:P142, P142) - 1) -> 
A143: 124 | D143: Tunyogi | E143: Daniel | F143: 2003 | G143: 3 | H143: Sargans | P143: 0 | Q143: =IF(P143=0," ",_xlfn.RANK.EQ(P143,$P$7:$P$206,0)+ COUNTIF(P$7:P143, P143) - 1) -> 
A144: 138 | P144: 0 | Q144: =IF(P144=0," ",_xlfn.RANK.EQ(P144,$P$7:$P$206,0)+ COUNTIF(P$7:P144, P144) - 1) -> 
P145: 0 | Q145: =IF(P145=0," ",_xlfn.RANK.EQ(P145,$P$7:$P$206,0)+ COUNTIF(P$7:P145, P145) - 1) -> 
P146: 0 | Q146: =IF(P146=0," ",_xlfn.RANK.EQ(P146,$P$7:$P$206,0)+ COUNTIF(P$7:P146, P146) - 1) -> 
P147: 0 | Q147: =IF(P147=0," ",_xlfn.RANK.EQ(P147,$P$7:$P$206,0)+ COUNTIF(P$7:P147, P147) - 1) -> 
P148: 0 | Q148: =IF(P148=0," ",_xlfn.RANK.EQ(P148,$P$7:$P$206,0)+ COUNTIF(P$7:P148, P148) - 1) -> 
P149: 0 | Q149: =IF(P149=0," ",_xlfn.RANK.EQ(P149,$P$7:$P$206,0)+ COUNTIF(P$7:P149, P149) - 1) -> 
P150: 0 | Q150: =IF(P150=0," ",_xlfn.RANK.EQ(P150,$P$7:$P$206,0)+ COUNTIF(P$7:P150, P150) - 1) -> 
P151: 0 | Q151: =IF(P151=0," ",_xlfn.RANK.EQ(P151,$P$7:$P$206,0)+ COUNTIF(P$7:P151, P151) - 1) -> 
P152: 0 | Q152: =IF(P152=0," ",_xlfn.RANK.EQ(P152,$P$7:$P$206,0)+ COUNTIF(P$7:P152, P152) - 1) -> 
P153: 0 | Q153: =IF(P153=0," ",_xlfn.RANK.EQ(P153,$P$7:$P$206,0)+ COUNTIF(P$7:P153, P153) - 1) -> 
P154: 0 | Q154: =IF(P154=0," ",_xlfn.RANK.EQ(P154,$P$7:$P$206,0)+ COUNTIF(P$7:P154, P154) - 1) -> 
P155: 0 | Q155: =IF(P155=0," ",_xlfn.RANK.EQ(P155,$P$7:$P$206,0)+ COUNTIF(P$7:P155, P155) - 1) -> 
P156: 0 | Q156: =IF(P156=0," ",_xlfn.RANK.EQ(P156,$P$7:$P$206,0)+ COUNTIF(P$7:P156, P156) - 1) -> 
P157: 0 | Q157: =IF(P157=0," ",_xlfn.RANK.EQ(P157,$P$7:$P$206,0)+ COUNTIF(P$7:P157, P157) - 1) -> 
P158: 0 | Q158: =IF(P158=0," ",_xlfn.RANK.EQ(P158,$P$7:$P$206,0)+ COUNTIF(P$7:P158, P158) - 1) -> 
P159: 0 | Q159: =IF(P159=0," ",_xlfn.RANK.EQ(P159,$P$7:$P$206,0)+ COUNTIF(P$7:P159, P159) - 1) -> 
P160: 0 | Q160: =IF(P160=0," ",_xlfn.RANK.EQ(P160,$P$7:$P$206,0)+ COUNTIF(P$7:P160, P160) - 1) -> 
P161: 0 | Q161: =IF(P161=0," ",_xlfn.RANK.EQ(P161,$P$7:$P$206,0)+ COUNTIF(P$7:P161, P161) - 1) -> 
P162: =SUM(I162:N162) -> 0 | Q162: =IF(P162=0," ",_xlfn.RANK.EQ(P162,$P$7:$P$206,0)+ COUNTIF(P$7:P162, P162) - 1) -> 
P163: 0 | Q163: =IF(P163=0," ",_xlfn.RANK.EQ(P163,$P$7:$P$206,0)+ COUNTIF(P$7:P163, P163) - 1) -> 
P164: 0 | Q164: =IF(P164=0," ",_xlfn.RANK.EQ(P164,$P$7:$P$206,0)+ COUNTIF(P$7:P164, P164) - 1) -> 
P165: 0 | Q165: =IF(P165=0," ",_xlfn.RANK.EQ(P165,$P$7:$P$206,0)+ COUNTIF(P$7:P165, P165) - 1) -> 
P166: 0 | Q166: =IF(P166=0," ",_xlfn.RANK.EQ(P166,$P$7:$P$206,0)+ COUNTIF(P$7:P166, P166) - 1) -> 
P167: 0 | Q167: =IF(P167=0," ",_xlfn.RANK.EQ(P167,$P$7:$P$206,0)+ COUNTIF(P$7:P167, P167) - 1) -> 
P168: 0 | Q168: =IF(P168=0," ",_xlfn.RANK.EQ(P168,$P$7:$P$206,0)+ COUNTIF(P$7:P168, P168) - 1) -> 
P169: 0 | Q169: =IF(P169=0," ",_xlfn.RANK.EQ(P169,$P$7:$P$206,0)+ COUNTIF(P$7:P169, P169) - 1) -> 
P170: 0 | Q170: =IF(P170=0," ",_xlfn.RANK.EQ(P170,$P$7:$P$206,0)+ COUNTIF(P$7:P170, P170) - 1) -> 
P171: 0 | Q171: =IF(P171=0," ",_xlfn.RANK.EQ(P171,$P$7:$P$206,0)+ COUNTIF(P$7:P171, P171) - 1) -> 
P172: 0 | Q172: =IF(P172=0," ",_xlfn.RANK.EQ(P172,$P$7:$P$206,0)+ COUNTIF(P$7:P172, P172) - 1) -> 
P173: 0 | Q173: =IF(P173=0," ",_xlfn.RANK.EQ(P173,$P$7:$P$206,0)+ COUNTIF(P$7:P173, P173) - 1) -> 
P174: 0 | Q174: =IF(P174=0," ",_xlfn.RANK.EQ(P174,$P$7:$P$206,0)+ COUNTIF(P$7:P174, P174) - 1) -> 
P175: 0 | Q175: =IF(P175=0," ",_xlfn.RANK.EQ(P175,$P$7:$P$206,0)+ COUNTIF(P$7:P175, P175) - 1) -> 
P176: 0 | Q176: =IF(P176=0," ",_xlfn.RANK.EQ(P176,$P$7:$P$206,0)+ COUNTIF(P$7:P176, P176) - 1) -> 
P177: 0 | Q177: =IF(P177=0," ",_xlfn.RANK.EQ(P177,$P$7:$P$206,0)+ COUNTIF(P$7:P177, P177) - 1) -> 
P178: 0 | Q178: =IF(P178=0," ",_xlfn.RANK.EQ(P178,$P$7:$P$206,0)+ COUNTIF(P$7:P178, P178) - 1) -> 
P179: 0 | Q179: =IF(P179=0," ",_xlfn.RANK.EQ(P179,$P$7:$P$206,0)+ COUNTIF(P$7:P179, P179) - 1) -> 
P180: 0 | Q180: =IF(P180=0," ",_xlfn.RANK.EQ(P180,$P$7:$P$206,0)+ COUNTIF(P$7:P180, P180) - 1) -> 
P181: 0 | Q181: =IF(P181=0," ",_xlfn.RANK.EQ(P181,$P$7:$P$206,0)+ COUNTIF(P$7:P181, P181) - 1) -> 
P182: 0 | Q182: =IF(P182=0," ",_xlfn.RANK.EQ(P182,$P$7:$P$206,0)+ COUNTIF(P$7:P182, P182) - 1) -> 
P183: 0 | Q183: =IF(P183=0," ",_xlfn.RANK.EQ(P183,$P$7:$P$206,0)+ COUNTIF(P$7:P183, P183) - 1) -> 
P184: 0 | Q184: =IF(P184=0," ",_xlfn.RANK.EQ(P184,$P$7:$P$206,0)+ COUNTIF(P$7:P184, P184) - 1) -> 
P185: 0 | Q185: =IF(P185=0," ",_xlfn.RANK.EQ(P185,$P$7:$P$206,0)+ COUNTIF(P$7:P185, P185) - 1) -> 
P186: 0 | Q186: =IF(P186=0," ",_xlfn.RANK.EQ(P186,$P$7:$P$206,0)+ COUNTIF(P$7:P186, P186) - 1) -> 
P187: 0 | Q187: =IF(P187=0," ",_xlfn.RANK.EQ(P187,$P$7:$P$206,0)+ COUNTIF(P$7:P187, P187) - 1) -> 
P188: 0 | Q188: =IF(P188=0," ",_xlfn.RANK.EQ(P188,$P$7:$P$206,0)+ COUNTIF(P$7:P188, P188) - 1) -> 
P189: 0 | Q189: =IF(P189=0," ",_xlfn.RANK.EQ(P189,$P$7:$P$206,0)+ COUNTIF(P$7:P189, P189) - 1) -> 
P190: 0 | Q190: =IF(P190=0," ",_xlfn.RANK.EQ(P190,$P$7:$P$206,0)+ COUNTIF(P$7:P190, P190) - 1) -> 
P191: 0 | Q191: =IF(P191=0," ",_xlfn.RANK.EQ(P191,$P$7:$P$206,0)+ COUNTIF(P$7:P191, P191) - 1) -> 
P192: 0 | Q192: =IF(P192=0," ",_xlfn.RANK.EQ(P192,$P$7:$P$206,0)+ COUNTIF(P$7:P192, P192) - 1) -> 
P193: 0 | Q193: =IF(P193=0," ",_xlfn.RANK.EQ(P193,$P$7:$P$206,0)+ COUNTIF(P$7:P193, P193) - 1) -> 
P194: =SUM(I194:N194) -> 0 | Q194: =IF(P194=0," ",_xlfn.RANK.EQ(P194,$P$7:$P$206,0)+ COUNTIF(P$7:P194, P194) - 1) -> 
P195: 0 | Q195: =IF(P195=0," ",_xlfn.RANK.EQ(P195,$P$7:$P$206,0)+ COUNTIF(P$7:P195, P195) - 1) -> 
P196: 0 | Q196: =IF(P196=0," ",_xlfn.RANK.EQ(P196,$P$7:$P$206,0)+ COUNTIF(P$7:P196, P196) - 1) -> 
P197: 0 | Q197: =IF(P197=0," ",_xlfn.RANK.EQ(P197,$P$7:$P$206,0)+ COUNTIF(P$7:P197, P197) - 1) -> 
P198: 0 | Q198: =IF(P198=0," ",_xlfn.RANK.EQ(P198,$P$7:$P$206,0)+ COUNTIF(P$7:P198, P198) - 1) -> 
P199: 0 | Q199: =IF(P199=0," ",_xlfn.RANK.EQ(P199,$P$7:$P$206,0)+ COUNTIF(P$7:P199, P199) - 1) -> 
P200: 0 | Q200: =IF(P200=0," ",_xlfn.RANK.EQ(P200,$P$7:$P$206,0)+ COUNTIF(P$7:P200, P200) - 1) -> 
P201: 0 | Q201: =IF(P201=0," ",_xlfn.RANK.EQ(P201,$P$7:$P$206,0)+ COUNTIF(P$7:P201, P201) - 1) -> 
... 5 more rows

Sheet Kategorie 5 Rangliste
A2: =Parameter!C9 -> Jugendtag 2022
A3: =Parameter!C21 -> Kat. 5 Jugend 3 Stellung U19 / U21 eg
B6: Rang | C6: Name | D6: Vorname | E6: JG | F6: Kat | G6: Verein | J6: Total | K6: IZ | L6: KK
B7: ='Kategorie 5'!Q7 -> 1 | C7: ='Kategorie 5'!D7 -> Scherrer | D7: ='Kategorie 5'!E7 -> Benjamin | E7: ='Kategorie 5'!F7 -> 2003 | F7: ='Kategorie 5'!G7 -> 3 | G7: ='Kategorie 5'!H7 -> Weinfelden | J7: ='Kategorie 5'!P7 -> 193 | K7: ='Kategorie 5'!O7 -> 9 | L7: ='Kategorie 5'!S7 -> G | M7: =IF(B7=1,"GOLD","") -> GOLD
G8: P1 / P2 liegend | H8: ='Kategorie 5'!I7 -> 96 | I8: ='Kategorie 5'!J7 -> 97 | J8: =SUM(H8:I8) -> 193
G9: P3 / P4 kniend | H9: ='Kategorie 5'!K7 -> 0 | I9: ='Kategorie 5'!L7 -> 0 | J9: =SUM(H9:I9) -> 0
G10: P5 / P6 stehend | H10: ='Kategorie 5'!M7 -> 0 | I10: ='Kategorie 5'!N7 -> 0 | J10: =SUM(H10:I10) -> 0
B11: ='Kategorie 5'!Q8 -> 2 | C11: ='Kategorie 5'!D8 -> Patt | D11: ='Kategorie 5'!E8 -> Michel | E11: ='Kategorie 5'!F8 -> 2009 | F11: ='Kategorie 5'!G8 -> 1 | G11: ='Kategorie 5'!H8 -> St.Gallen | J11: ='Kategorie 5'!P8 -> 193 | K11: ='Kategorie 5'!Q8 -> 2 | L11: ='Kategorie 5'!S8 -> S | M11: =IF(B11=2,"SILBER","") -> SILBER
G12: P1 / P2 liegend | H12: ='Kategorie 5'!I8 -> 98 | I12: ='Kategorie 5'!J8 -> 95 | J12: =SUM(H12:I12) -> 193
G13: P3 / P4 kniend | H13: ='Kategorie 5'!K8 -> 0 | I13: ='Kategorie 5'!L8 -> 0 | J13: =SUM(H13:I13) -> 0
G14: P5 / P6 stehend | H14: ='Kategorie 5'!M8 -> 0 | I14: ='Kategorie 5'!N8 -> 0 | J14: =SUM(H14:I14) -> 0
B15: ='Kategorie 5'!Q9 -> 3 | C15: ='Kategorie 5'!D9 -> Speck | D15: ='Kategorie 5'!E9 -> Corina | E15: ='Kategorie 5'!F9 -> 2005 | F15: ='Kategorie 5'!G9 -> 3 | G15: ='Kategorie 5'!H9 -> Weissbad | J15: ='Kategorie 5'!P9 -> 193 | K15: ='Kategorie 5'!Q9 -> 3 | L15: ='Kategorie 5'!S9 -> B | M15: =IF(B15=3,"Bronze","") -> Bronze
G16: P1 / P2 liegend | H16: ='Kategorie 5'!I9 -> 97 | I16: ='Kategorie 5'!J9 -> 96 | J16: =SUM(H16:I16) -> 193
G17: P3 / P4 kniend | H17: ='Kategorie 5'!K9 -> 0 | I17: ='Kategorie 5'!L9 -> 0 | J17: =SUM(H17:I17) -> 0
G18: P5 / P6 stehend | H18: ='Kategorie 5'!M9 -> 0 | I18: ='Kategorie 5'!N9 -> 0 | J18: =SUM(H18:I18) -> 0
B19: ='Kategorie 5'!Q10 -> 4 | C19: ='Kategorie 5'!D10 -> Ammann | D19: ='Kategorie 5'!E10 -> Pirmin | E19: ='Kategorie 5'!F10 -> 2007 | F19: ='Kategorie 5'!G10 -> 2 | G19: ='Kategorie 5'!H10 -> Neckertal | J19: ='Kategorie 5'!P10 -> 192 | K19: ='Kategorie 5'!Q10 -> 4 | L19: ='Kategorie 5'!S10 -> 0 | M19: =IF(B19=2,"SILBER","") -> 
G20: P1 / P2 liegend | H20: ='Kategorie 5'!I10 -> 95 | I20: ='Kategorie 5'!J10 -> 97 | J20: =SUM(H20:I20) -> 192
G21: P3 / P4 kniend | H21: ='Kategorie 5'!K10 -> 0 | I21: ='Kategorie 5'!L10 -> 0 | J21: =SUM(H21:I21) -> 0
G22: P5 / P6 stehend | H22: ='Kategorie 5'!M10 -> 0 | I22: ='Kategorie 5'!N10 -> 0 | J22: =SUM(H22:I22) -> 0
B23: ='Kategorie 5'!Q11 -> 5 | C23: ='Kategorie 5'!D11 -> Kressel | D23: ='Kategorie 5'!E11 -> Niclas | E23: ='Kategorie 5'!F11 -> 2006 | F23: ='Kategorie 5'!G11 -> 2 | G23: ='Kategorie 5'!H11 -> Sargans | J23: ='Kategorie 5'!P11 -> 192 | K23: ='Kategorie 5'!Q11 -> 5 | L23: ='Kategorie 5'!S11 -> 0 | M23: =IF(B23=2,"SILBER","") -> 
G24: P1 / P2 liegend | H24: ='Kategorie 5'!I11 -> 96 | I24: ='Kategorie 5'!J11 -> 96 | J24: =SUM(H24:I24) -> 192
G25: P3 / P4 kniend | H25: ='Kategorie 5'!K11 -> 0 | I25: ='Kategorie 5'!L11 -> 0 | J25: =SUM(H25:I25) -> 0
G26: P5 / P6 stehend | H26: ='Kategorie 5'!M11 -> 0 | I26: ='Kategorie 5'!N11 -> 0 | J26: =SUM(H26:I26) -> 0
B27: ='Kategorie 5'!Q12 -> 6 | C27: ='Kategorie 5'!D12 -> Früh | D27: ='Kategorie 5'!E12 -> Janis | E27: ='Kategorie 5'!F12 -> 2004 | F27: ='Kategorie 5'!G12 -> 3 | G27: ='Kategorie 5'!H12 -> Kirchberg | J27: ='Kategorie 5'!P12 -> 191 | K27: ='Kategorie 5'!Q12 -> 6 | L27: ='Kategorie 5'!S12 -> 0 | M27: =IF(B27=2,"SILBER","") -> 
G28: P1 / P2 liegend | H28: ='Kategorie 5'!I12 -> 94 | I28: ='Kategorie 5'!J12 -> 97 | J28: =SUM(H28:I28) -> 191
G29: P3 / P4 kniend | H29: ='Kategorie 5'!K12 -> 0 | I29: ='Kategorie 5'!L12 -> 0 | J29: =SUM(H29:I29) -> 0
G30: P5 / P6 stehend | H30: ='Kategorie 5'!M12 -> 0 | I30: ='Kategorie 5'!N12 -> 0 | J30: =SUM(H30:I30) -> 0
B31: ='Kategorie 5'!Q13 -> 7 | C31: ='Kategorie 5'!D13 -> Hagen | D31: ='Kategorie 5'!E13 -> Linn | E31: ='Kategorie 5'!F13 -> 2009 | F31: ='Kategorie 5'!G13 -> 1 | G31: ='Kategorie 5'!H13 -> Dettighofen | J31: ='Kategorie 5'!P13 -> 190 | K31: ='Kategorie 5'!Q13 -> 7 | L31: ='Kategorie 5'!S13 -> 0 | M31: =IF(B31=2,"SILBER","") -> 
G32: P1 / P2 liegend | H32: ='Kategorie 5'!I13 -> 94 | I32: ='Kategorie 5'!J13 -> 96 | J32: =SUM(H32:I32) -> 190
G33: P3 / P4 kniend | H33: ='Kategorie 5'!K13 -> 0 | I33: ='Kategorie 5'!L13 -> 0 | J33: =SUM(H33:I33) -> 0
G34: P5 / P6 stehend | H34: ='Kategorie 5'!M13 -> 0 | I34: ='Kategorie 5'!N13 -> 0 | J34: =SUM(H34:I34) -> 0
B35: ='Kategorie 5'!Q14 -> 8 | C35: ='Kategorie 5'!D14 -> Staub | D35: ='Kategorie 5'!E14 -> Lea | E35: ='Kategorie 5'!F14 -> 2002 | F35: ='Kategorie 5'!G14 -> 3 | G35: ='Kategorie 5'!H14 -> Schönholzerswilen | J35: ='Kategorie 5'!P14 -> 190 | K35: ='Kategorie 5'!Q14 -> 8 | L35: ='Kategorie 5'!S14 -> 0 | M35: =IF(B35=2,"SILBER","") -> 
G36: P1 / P2 liegend | H36: ='Kategorie 5'!I14 -> 95 | I36: ='Kategorie 5'!J14 -> 95 | J36: =SUM(H36:I36) -> 190
G37: P3 / P4 kniend | H37: ='Kategorie 5'!K14 -> 0 | I37: ='Kategorie 5'!L14 -> 0 | J37: =SUM(H37:I37) -> 0
G38: P5 / P6 stehend | H38: ='Kategorie 5'!M14 -> 0 | I38: ='Kategorie 5'!N14 -> 0 | J38: =SUM(H38:I38) -> 0
B39: ='Kategorie 5'!Q15 -> 9 | C39: ='Kategorie 5'!D15 -> Krähemann | D39: ='Kategorie 5'!E15 -> Levano | E39: ='Kategorie 5'!F15 -> 2006 | F39: ='Kategorie 5'!G15 -> 2 | G39: ='Kategorie 5'!H15 -> Wil | J39: ='Kategorie 5'!P15 -> 189 | K39: ='Kategorie 5'!Q15 -> 9 | L39: ='Kategorie 5'!S15 -> 0 | M39: =IF(B39=2,"SILBER","") -> 
G40: P1 / P2 liegend | H40: ='Kategorie 5'!I15 -> 94 | I40: ='Kategorie 5'!J15 -> 95 | J40: =SUM(H40:I40) -> 189
G41: P3 / P4 kniend | H41: ='Kategorie 5'!K15 -> 0 | I41: ='Kategorie 5'!L15 -> 0 | J41: =SUM(H41:I41) -> 0
G42: P5 / P6 stehend | H42: ='Kategorie 5'!M15 -> 0 | I42: ='Kategorie 5'!N15 -> 0 | J42: =SUM(H42:I42) -> 0
B43: ='Kategorie 5'!Q16 -> 10 | C43: ='Kategorie 5'!D16 -> Schittenhelm | D43: ='Kategorie 5'!E16 -> Dennis | E43: ='Kategorie 5'!F16 -> 2003 | F43: ='Kategorie 5'!G16 -> 3 | G43: ='Kategorie 5'!H16 -> Goldach | J43: ='Kategorie 5'!P16 -> 189 | K43: ='Kategorie 5'!Q16 -> 10 | L43: ='Kategorie 5'!S16 -> 0 | M43: =IF(B43=2,"SILBER","") -> 
G44: P1 / P2 liegend | H44: ='Kategorie 5'!I16 -> 93 | I44: ='Kategorie 5'!J16 -> 96 | J44: =SUM(H44:I44) -> 189
G45: P3 / P4 kniend | H45: ='Kategorie 5'!K16 -> 0 | I45: ='Kategorie 5'!L16 -> 0 | J45: =SUM(H45:I45) -> 0
G46: P5 / P6 stehend | H46: ='Kategorie 5'!M16 -> 0 | I46: ='Kategorie 5'!N16 -> 0 | J46: =SUM(H46:I46) -> 0
B47: ='Kategorie 5'!Q17 -> 11 | C47: ='Kategorie 5'!D17 -> Sprenger | D47: ='Kategorie 5'!E17 -> Sven | E47: ='Kategorie 5'!F17 -> 2008 | F47: ='Kategorie 5'!G17 -> 2 | G47: ='Kategorie 5'!H17 -> Altstätten | J47: ='Kategorie 5'!P17 -> 189 | K47: ='Kategorie 5'!Q17 -> 11 | L47: ='Kategorie 5'!S17 -> 0 | M47: =IF(B47=2,"SILBER","") -> 
G48: P1 / P2 liegend | H48: ='Kategorie 5'!I17 -> 95 | I48: ='Kategorie 5'!J17 -> 94 | J48: =SUM(H48:I48) -> 189
G49: P3 / P4 kniend | H49: ='Kategorie 5'!K17 -> 0 | I49: ='Kategorie 5'!L17 -> 0 | J49: =SUM(H49:I49) -> 0
G50: P5 / P6 stehend | H50: ='Kategorie 5'!M17 -> 0 | I50: ='Kategorie 5'!N17 -> 0 | J50: =SUM(H50:I50) -> 0
B51: ='Kategorie 5'!Q18 -> 12 | C51: ='Kategorie 5'!D18 -> Kummer | D51: ='Kategorie 5'!E18 -> Livio | E51: ='Kategorie 5'!F18 -> 2005 | F51: ='Kategorie 5'!G18 -> 3 | G51: ='Kategorie 5'!H18 -> Munot Schaffhausen | J51: ='Kategorie 5'!P18 -> 188 | K51: ='Kategorie 5'!Q18 -> 12 | L51: ='Kategorie 5'!S18 -> 0 | M51: =IF(B51=2,"SILBER","") -> 
G52: P1 / P2 liegend | H52: ='Kategorie 5'!I18 -> 94 | I52: ='Kategorie 5'!J18 -> 94 | J52: =SUM(H52:I52) -> 188
G53: P3 / P4 kniend | H53: ='Kategorie 5'!K18 -> 0 | I53: ='Kategorie 5'!L18 -> 0 | J53: =SUM(H53:I53) -> 0
G54: P5 / P6 stehend | H54: ='Kategorie 5'!M18 -> 0 | I54: ='Kategorie 5'!N18 -> 0 | J54: =SUM(H54:I54) -> 0
B55: ='Kategorie 5'!Q19 -> 13 | C55: ='Kategorie 5'!D19 -> Lengyel | D55: ='Kategorie 5'!E19 -> Zsombor | E55: ='Kategorie 5'!F19 -> 2006 | F55: ='Kategorie 5'!G19 -> 2 | G55: ='Kategorie 5'!H19 -> Sargans | J55: ='Kategorie 5'!P19 -> 188 | K55: ='Kategorie 5'!Q19 -> 13 | L55: ='Kategorie 5'!S19 -> 0 | M55: =IF(B55=2,"SILBER","") -> 
G56: P1 / P2 liegend | H56: ='Kategorie 5'!I19 -> 94 | I56: ='Kategorie 5'!J19 -> 94 | J56: =SUM(H56:I56) -> 188
G57: P3 / P4 kniend | H57: ='Kategorie 5'!K19 -> 0 | I57: ='Kategorie 5'!L19 -> 0 | J57: =SUM(H57:I57) -> 0
G58: P5 / P6 stehend | H58: ='Kategorie 5'!M19 -> 0 | I58: ='Kategorie 5'!N19 -> 0 | J58: =SUM(H58:I58) -> 0
B59: ='Kategorie 5'!Q20 -> 14 | C59: ='Kategorie 5'!D20 -> Gmünder | D59: ='Kategorie 5'!E20 -> Ralf | E59: ='Kategorie 5'!F20 -> 2005 | F59: ='Kategorie 5'!G20 -> 3 | G59: ='Kategorie 5'!H20 -> Weissbad | J59: ='Kategorie 5'!P20 -> 188 | K59: ='Kategorie 5'!Q20 -> 14 | L59: ='Kategorie 5'!S20 -> 0 | M59: =IF(B59=2,"SILBER","") -> 
G60: P1 / P2 liegend | H60: ='Kategorie 5'!I20 -> 92 | I60: ='Kategorie 5'!J20 -> 96 | J60: =SUM(H60:I60) -> 188
G61: P3 / P4 kniend | H61: ='Kategorie 5'!K20 -> 0 | I61: ='Kategorie 5'!L20 -> 0 | J61: =SUM(H61:I61) -> 0
G62: P5 / P6 stehend | H62: ='Kategorie 5'!M20 -> 0 | I62: ='Kategorie 5'!N20 -> 0 | J62: =SUM(H62:I62) -> 0

Sheet Aktuelle Schützendaten
A2: =Parameter!C9 -> Jugendtag 2022
A3: =Parameter!C7 -> OSPSV
A6: Nr | B6: Abl. | C6: Sch.-Nr | D6: Name | E6: Vorname | F6: JG | G6: Kat | H6: Sektion | I6: P1 | J6: P2 | K6: P3 | L6: P4 | M6: P5 | N6: P6 | O6: IZ | P6: Total
A7: 1 | D7: Aeberli | E7: Lionél | F7: 2010 | G7: 1 | H7: Dettighofen
A8: 2 | D8: Alder | E8: James | F8: 2009 | G8: 1 | H8: Sitterdorf
A9: 3 | D9: Ammann | E9: Pirmin | F9: 2007 | G9: 2 | H9: Neckertal
A10: 4 | D10: Ammann | E10: Pirmin | F10: 2007 | G10: 4 | H10: Neckertal
A11: 5 | D11: Auer | E11: Tobias | F11: 2005 | G11: 3 | H11: Sitterdorf
A12: 6 | D12: Balgar | E12: Samuel | F12: 2009 | G12: 2 | H12: Goldach
A13: 7 | D13: Baumgartner | E13: Michael | F13: 2003 | G13: 3 | H13: Munot Schaffhausen
A14: 8 | D14: Beerle | E14: Nina | F14: 2007 | G14: 2 | H14: Goldach
A15: 9 | D15: Berger | E15: Marc | F15: 2013 | G15: 1 | H15: Sitterdorf
A16: 10 | D16: Bernet | E16: Kevin | F16: 2005 | G16: 3 | H16: Kirchberg
A17: 11 | D17: Bissegger | E17: Robin | F17: 2004 | G17: 3 | H17: Weinfelden
A18: 12 | D18: Blattner | E18: Mia | F18: 2009 | G18: 1 | H18: Goldach
A19: 13 | D19: Bleiker | E19: Beda | F19: 2009 | G19: 1 | H19: Mosnang
A20: 14 | D20: Böhi | E20: Marc | F20: 2009 | G20: 1 | H20: Schönholzerswilen
A21: 15 | D21: Böhi | E21: Sarina | F21: 2009 | G21: 1 | H21: Schönholzerswilen
A22: 16 | D22: Brändli | E22: Joya | F22: 2004 | G22: 3 | H22: Schönholzerswilen
A23: 17 | D23: Broger | E23: Simon | F23: 2006 | G23: 2 | H23: Weissbad
A24: 18 | D24: Broger | E24: Simon | F24: 2006 | G24: 4 | H24: Weissbad
A25: 19 | D25: Brühlmann | E25: David | F25: 2004 | G25: 3 | H25: Munot Schaffhausen
A26: 20 | D26: Correia | E26: Jannic | F26: 2009 | G26: 1 | H26: Schönholzerswilen
A27: 21 | D27: Correia | E27: Sandro | F27: 2006 | G27: 2 | H27: Schönholzerswilen
A28: 22 | D28: Deubelbeiss | E28: Jano | F28: 2010 | G28: 1 | H28: Goldach
A29: 23 | D29: Dornbierer | E29: Timon | F29: 2007 | G29: 2 | H29: Goldach
A30: 24 | D30: Eggenberger | E30: Raffael | F30: 2007 | G30: 2 | H30: Grabs
A31: 25 | D31: Fässler | E31: Ryan | F31: 2011 | G31: 1 | H31: Goldach
A32: 26 | D32: Fries | E32: Eliano | F32: 2010 | G32: 1 | H32: Goldach
A33: 27 | D33: Fritsche | E33: Maurus | F33: 2002 | G33: 3 | H33: Weissbad
A34: 28 | D34: Fritsche | E34: Maurus | F34: 2002 | G34: 4 | H34: Weissbad
A35: 29 | D35: Fromm | E35: Valentin | F35: 2008 | G35: 2 | H35: Sargans
A36: 30 | D36: Früh | E36: Janis | F36: 2004 | G36: 3 | H36: Kirchberg
A37: 31 | D37: Früh | E37: Janis | F37: 2004 | G37: 4 | H37: Kirchberg
A38: 32 | D38: Gad | E38: Karim | F38: 2003 | G38: 3 | H38: Munot Schaffhausen
A39: 33 | D39: Geisser | E39: Roman | F39: 2006 | G39: 2 | H39: Dicken Ebnat-Kappel
A40: 34 | D40: Gmünder | E40: Ralf | F40: 2005 | G40: 3 | H40: Weissbad
A41: 35 | D41: Gmünder | E41: Janin | F41: 2005 | G41: 3 | H41: Weissbad
A42: 36 | D42: Gmünder | E42: Simon | F42: 2003 | G42: 3 | H42: Weissbad
A43: 37 | D43: Good | E43: Cedric | F43: 2009 | G43: 2 | H43: Sargans
A44: 38 | D44: Graf | E44: Felix | F44: 2011 | G44: 1 | H44: Kirchberg
A45: 39 | D45: Graf | E45: Rahel | F45: 2010 | G45: 1 | H45: Kirchberg
A46: 40 | D46: Hagen | E46: Linn | F46: 2009 | G46: 1 | H46: Dettighofen
A47: 41 | D47: Häseli | E47: Max | F47: 2008 | G47: 2 | H47: Kirchberg
A48: 42 | D48: Hassioui | E48: Elias | F48: 2011 | G48: 1 | H48: Sitterdorf
A49: 43 | D49: Henke | E49: Quentin | F49: 2009 | G49: 2 | H49: Kirchberg
A50: 44 | D50: Huldi | E50: Patrick | F50: 2009 | G50: 1 | H50: Neckertal
A51: 45 | D51: Jenal | E51: Jarik | F51: 2012 | G51: 1 | H51: Sitterdorf
A52: 46 | D52: Jordi | E52: Lena | F52: 2010 | G52: 1 | H52: Dicken Ebnat-Kappel
A53: 47 | D53: Kalbiz | E53: Andrin | F53: 2008 | G53: 2 | H53: Weinfelden
A54: 48 | D54: Klein | E54: Elias | F54: 2003 | G54: 3 | H54: Kirchberg
A55: 49 | D55: Koch | E55: Leandro | F55: 2011 | G55: 1 | H55: Weissbad
A56: 50 | D56: Koller | E56: Bryan | F56: 2009 | G56: 1 | H56: Kirchberg
A57: 51 | D57: Krähemann | E57: Levano | F57: 2006 | G57: 2 | H57: Will
A58: 52 | D58: Kressel | E58: Nicolas | F58: 2006 | G58: 2 | H58: Sargans
A59: 53 | D59: Kummer | E59: Livio | F59: 2005 | G59: 3 | H59: Munot Schaffhausen
A60: 54 | D60: Künzli | E60: Ian | F60: 2006 | G60: 2 | H60: Dicken Ebnat-Kappel
A61: 55 | D61: Küttel | E61: Patrick | F61: 2006 | G61: 2 | H61: Schönholzerswilen
A62: 56 | D62: Kutter | E62: Joel | F62: 2010 | G62: 2 | H62: Dettighofen
A63: 57 | D63: Lengwiler | E63: Tobias | F63: 2003 | G63: 3 | H63: Sitterdorf
A64: 58 | D64: Lengyel | E64: Zsombor | F64: 2006 | G64: 2 | H64: Sargans
A65: 59 | D65: Locher | E65: Livio | F65: 2002 | G65: 3 | H65: Weissbad
A66: 60 | D66: Locher | E66: Livio | F66: 2002 | G66: 4 | H66: Weissbad
A67: 61 | D67: Lüber | E67: Lara | F67: 2008 | G67: 2 | H67: Kirchberg
A68: 62 | D68: Mäder | E68: Alex | F68: 2005 | G68: 3 | H68: Sitterdorf
A69: 63 | D69: Mäder | E69: Alex | F69: 2005 | G69: 4 | H69: Sitterdorf
A70: 64 | D70: Mäder | E70: Ramona | F70: 2008 | G70: 1 | H70: Sitterdorf
A71: 65 | D71: Manser | E71: Jonas | F71: 2006 | G71: 2 | H71: Weissbad
A72: 66 | D72: Manser | E72: Jonas | F72: 2006 | G72: 4 | H72: Weissbad
A73: 67 | D73: Marciello | E73: Chiara | F73: 2008 | G73: 2 | H73: Weinfelden
A74: 68 | D74: Marciello | E74: Chiara | F74: 2008 | G74: 4 | H74: Weinfelden
A75: 69 | D75: Matanovic | E75: Josipa | F75: 2007 | G75: 2 | H75: Grabs
A76: 70 | D76: Meier | E76: Noah | F76: 2010 | G76: 1 | H76: Goldach
A77: 71 | D77: Meier | E77: Jerome | F77: 2012 | G77: 1 | H77: Schönholzerswilen
A78: 72 | D78: Meier | E78: Astid | F78: 2002 | G78: 3 | H78: St.Gallen
A79: 73 | D79: Mettler | E79: Andri | F79: 2010 | G79: 1 | H79: Neckertal
A80: 74 | D80: Moser | E80: Jan | F80: 2007 | G80: 2 | H80: Wildhaus
A81: 75 | D81: Moser | E81: Jan | F81: 2007 | G81: 4 | H81: Wildhaus
A82: 76 | D82: Munskgaard | E82: William | F82: 2007 | G82: 2 | H82: Sargans
A83: 77 | D83: Niederer | E83: Remo | F83: 2011 | G83: 1 | H83: Neckertal
A84: 78 | D84: Oberholzer | E84: Raffael | F84: 2005 | G84: 3 | H84: Sitterdorf
A85: 79 | D85: Oetli | E85: Philipp | F85: 2006 | G85: 2 | H85: Weinfelden
A86: 80 | D86: Oppliger | E86: Alisa | F86: 2005 | G86: 3 | H86: Dicken Ebnat-Kappel
A87: 81 | D87: Patt | E87: Michel | F87: 2009 | G87: 1 | H87: St.Gallen
A88: 82 | D88: Patt | E88: Andrea | F88: 2006 | G88: 2 | H88: St.Gallen
A89: 83 | D89: Pfützner | E89: Philipp | F89: 2006 | G89: 2 | H89: Sargans
A90: 84 | D90: Rick | E90: Colin | F90: 2009 | G90: 2 | H90: Goldach
A91: 85 | D91: Rohner | E91: Ciril | F91: 2006 | G91: 2 | H91: Kirchberg
A92: 86 | D92: Rohner | E92: Enea | F92: 2012 | G92: 1 | H92: Sitterdorf
A93: 87 | D93: Sawall | E93: Fabienne | F93: 2007 | G93: 2 | H93: Grabs
A94: 88 | D94: Schaub | E94: Alyssia | F94: 2009 | G94: 1 | H94: Mosnang
A95: 89 | D95: Scherrer | E95: Benjamin | F95: 2003 | G95: 3 | H95: Weinfelden
A96: 90 | D96: Scherrer | E96: Benjamin | F96: 2003 | G96: 4 | H96: Weinfelden
A97: 91 | D97: Schittenhelm | E97: Dennis | F97: 2003 | G97: 4 | H97: Goldach
A98: 92 | D98: Schittenhelm | E98: Dennis | F98: 2003 | G98: 3 | H98: Goldach
A99: 93 | D99: Schläpfer | E99: Michael | F99: 2009 | G99: 2 | H99: Weinfelden
A100: 94 | D100: Schnetzer | E100: Colin | F100: 2003 | G100: 3 | H100: Sitterdorf
A101: 95 | D101: Schönenberger | E101: Fynn | F101: 2010 | G101: 1 | H101: Sitterdorf
A102: 96 | D102: Schönenberger | E102: Zoé | F102: 2007 | G102: 2 | H102: Sitterdorf
A103: 97 | D103: Schönenberger | E103: Zoé | F103: 2007 | G103: 4 | H103: Sitterdorf
A104: 98 | D104: Schorta | E104: Moreno | F104: 2012 | G104: 1 | H104: Sitterdorf
A105: 99 | D105: Schrittwieser | E105: Thomas | F105: 2005 | G105: 3 | H105: Weinfelden
A106: 100 | D106: Schumacher | E106: Manuel | F106: 2003 | G106: 3 | H106: Weinfelden
A107: 101 | D107: Segmüller | E107: Joe | F107: 2010 | G107: 1 | H107: Altstätten
A108: 102 | D108: Segmüller | E108: Arno | F108: 2006 | G108: 2 | H108: Altstätten
A109: 103 | D109: Segmüller | E109: Nando | F109: 2003 | G109: 3 | H109: Altstätten
A110: 104 | D110: Speck | E110: Corina | F110: 2005 | G110: 3 | H110: Weissbad
A111: 105 | D111: Sprenger | E111: Sven | F111: 2008 | G111: 2 | H111: Altstätten
A112: 106 | D112: Sprenger | E112: Sven | F112: 2008 | G112: 4 | H112: Altstätten
A113: 107 | D113: Stadler | E113: Sven | F113: 2005 | G113: 3 | H113: Weissbad
A114: 108 | D114: Staub | E114: Kaya | F114: 2008 | G114: 1 | H114: Schönholzerswilen
A115: 109 | D115: Staub | E115: Lea | F115: 2002 | G115: 3 | H115: Schönholzerswilen
A116: 110 | D116: Steiner | E116: Joshua | F116: 2009 | G116: 1 | H116: Neckertal
A117: 111 | D117: Steuck | E117: Luca | F117: 2009 | G117: 1 | H117: Mosnang
A118: 112 | D118: Stieger | E118: Ken | F118: 2006 | G118: 2 | H118: Weinfelden
A119: 113 | D119: Straub | E119: Patrick | F119: 2009 | G119: 2 | H119: Dettighofen
A120: 114 | D120: Strübi | E120: Manuel | F120: 2008 | G120: 2 | H120: Wildhaus
A121: 115 | D121: Strübi | E121: Manuel | F121: 2008 | G121: 4 | H121: Wildhaus
A122: 116 | D122: Studer | E122: Lorin | F122: 2009 | G122: 1 | H122: Dettighofen
A123: 117 | D123: Studer | E123: Julien | F123: 2010 | G123: 1 | H123: Munot Schaffhausen
A124: 118 | D124: Sutter | E124: Janine | F124: 2010 | G124: 1 | H124: Schönholzerswilen
A125: 119 | D125: Sutter | E125: Natascha | F125: 2004 | G125: 3 | H125: Schönholzerswilen
A126: 120 | D126: Taranto | E126: Arya | F126: 2008 | G126: 2 | H126: Will
A127: 121 | D127: Thalmann | E127: Robin | F127: 2012 | G127: 1 | H127: Weinfelden
A128: 122 | D128: Thalmann | E128: Silas | F128: 2010 | G128: 1 | H128: Weinfelden
A129: 123 | D129: Truniger | E129: Nils | F129: 2008 | G129: 1 | H129: Mosnang
A130: 124 | D130: Tunyogi | E130: Daniel | F130: 2003 | G130: 3 | H130: Sargans
A131: 125 | D131: Ulmann | E131: Jan | F131: 2005 | G131: 3 | H131: Weissbad
A132: 126 | D132: Ulmann | E132: Jan | F132: 2005 | G132: 4 | H132: Weissbad
A133: 127 | D133: Wachsmann | E133: Phillip | F133: 2008 | G133: 1 | H133: Sargans
A134: 128 | D134: Weitbrecht | E134: Talitha | F134: 2009 | G134: 2 | H134: Sargans
A135: 129 | D135: Wenk | E135: Alexander | F135: 2011 | G135: 1 | H135: Goldach
A136: 130 | D136: Wichser | E136: Mia | F136: 2009 | G136: 1 | H136: Grabs
A137: 131 | D137: Wiederkehr | E137: Yari | F137: 2006 | G137: 2 | H137: Kirchberg
A138: 132 | D138: Wildi | E138: Clarissa | F138: 2008 | G138: 1 | H138: Grabs
A139: 133 | D139: Ziegler | E139: Timo | F139: 2010 | G139: 1 | H139: Neckertal
A140: 134 | D140: Ziltener | E140: Sina | F140: 2007 | G140: 2 | H140: Goldach
A141: 135 | D141: Zumstein | E141: Vincenza | F141: 2005 | G141: 3 | H141: Weissbad
A142: 136 | D142: Zweifel | E142: Noel | F142: 2010 | G142: 2 | H142: Kirchberg
A143: 137

Sheet Save (hidden)
A2: =Parameter!C9 -> Jugendtag 2022
A3: =Parameter!C7 -> OSPSV
A6: Nr | B6: Abl. | C6: Sch.-Nr | D6: Name | E6: Vorname | F6: JG | G6: Kat | H6: Sektion | I6: P1 | J6: P2 | K6: P3 | L6: P4 | M6: P5 | N6: P6 | O6: IZ | P6: Total
A7: 2 | D7: Aeberli | E7: Lionél | F7: 2010 | G7: 1 | H7: Dettighofen | I7: 90 | J7: 91 | P7: 181
A8: 130 | D8: Ammann | E8: Pirmin | F8: 2007 | G8: 4 | H8: Neckertal | K8: 93 | L8: 91 | P8: 184
A9: 52 | D9: Balgar | E9: Samuel | F9: 2009 | G9: 2 | H9: Goldach | I9: 88 | J9: 92 | O9: 1 | P9: 181
A10: 99 | D10: Baumgartner | E10: Michael | F10: 2003 | G10: 3 | H10: Munot-Schaffhausen | I10: 93 | J10: 92 | P10: 185
A11: 92 | D11: Beerle | E11: Fabio | F11: 2004 | G11: 3 | H11: Goldach | I11: 98 | J11: 97 | P11: 195
A12: 53 | D12: Beerle | E12: Nina | F12: 2007 | G12: 2 | H12: Goldach | I12: 93 | J12: 93 | O12: 2 | P12: 188
A13: 94 | D13: Bernet | E13: Kevin | F13: 2005 | G13: 3 | H13: Kirchberg | I13: 92 | J13: 93 | O13: 1 | P13: 186
A14: 112 | D14: Bissegger | E14: Robin | F14: 2004 | G14: 2 | H14: Weinfelden | I14: 92 | J14: 94 | K14: 90 | L14: 90 | M14: 89 | N14: 89 | O14: 2 | P14: 546
A15: 6 | D15: Blattner | E15: Mia | F15: 2009 | G15: 1 | H15: Goldach | I15: 94 | J15: 95 | O15: 1 | P15: 190
A16: 7 | D16: Deubelbeiss | E16: Jano | F16: 2010 | G16: 1 | H16: Goldach | I16: 93 | J16: 96 | O16: 2 | P16: 191
A17: 54 | D17: Dornbierer | E17: Timon | F17: 2007 | G17: 2 | H17: Goldach | I17: 88 | J17: 92 | O17: 3 | P17: 183
A18: 58 | D18: Eggenberger | E18: Raffael | F18: 2007 | G18: 2 | H18: Grabs | I18: 97 | J18: 92 | O18: 4 | P18: 193
A19: 8 | D19: Fässler | E19: Ryan | F19: 2011 | G19: 1 | H19: Goldach | I19: 92 | J19: 97 | O19: 2 | P19: 191
A20: 9 | D20: Fries | E20: Eliano | F20: 2010 | G20: 1 | H20: Goldach | I20: 90 | J20: 91 | P20: 181
A21: 116 | D21: Fritsche | E21: Maurus | F21: 2002 | G21: 5 | H21: Weissbad | I21: 92 | J21: 94 | K21: 90 | L21: 90 | M21: 89 | N21: 89 | P21: 544
A22: 95 | D22: Früh | E22: Janis | F22: 2004 | G22: 3 | H22: Kirchberg | I22: 99 | J22: 94 | O22: 5 | P22: 198
A23: 128 | D23: Früh | E23: Janis | F23: 2004 | G23: 4 | H23: Kirchberg | K23: 88 | L23: 89 | P23: 177
A24: 50 | D24: Geisser | E24: Roman | F24: 2006 | G24: 2 | H24: Ebnat-Kappel | I24: 90 | J24: 93 | P24: 183
A25: 3 | D25: Hagen | E25: Linn | F25: 2009 | G25: 1 | H25: Dettighofen | I25: 87 | J25: 93 | O25: 2 | P25: 182
A26: 61 | D26: Häseli | E26: Max | F26: 2008 | G26: 2 | H26: Kirchberg | I26: 93 | J26: 87 | P26: 180
A27: 62 | D27: Henke | E27: Quentin | F27: 2009 | G27: 2 | H27: Kirchberg | I27: 90 | J27: 92 | O27: 1 | P27: 183
A28: 5 | D28: Jordi | E28: Lena | F28: 2010 | G28: 1 | H28: Ebnat-Kappel | I28: 87 | J28: 93 | O28: 4 | P28: 184
A29: 96 | D29: Klein | E29: Elias | F29: 2003 | G29: 3 | H29: Kirchberg | I29: 89 | J29: 92 | P29: 181
A30: 51 | D30: Künzli | E30: Ian | F30: 2006 | G30: 2 | H30: Ebnat-Kappel | I30: 89 | J30: 87 | P30: 176
A31: 63 | D31: Lüber | E31: Lara | F31: 2008 | G31: 2 | H31: Kirchberg | I31: 90 | J31: 92 | O31: 1 | P31: 183
A32: 131 | D32: Mäder | E32: Alex | F32: 2005 | G32: 4 | H32: Sitterdorf | K32: 93 | L32: 91 | O32: 1 | P32: 185
A33: 133 | D33: Marciello | E33: Chiara | F33: 2008 | G33: 4 | H33: Weinfelden | K33: 92 | L33: 92 | P33: 184
A34: 59 | D34: Matanovic | E34: Josipa | F34: 2007 | G34: 2 | H34: Grabs | I34: 85 | J34: 89 | P34: 174
A35: 111 | D35: Meier | E35: Astid | F35: 2002 | G35: 5 | H35: St.Gallen | I35: 93 | J35: 93 | K35: 90 | L35: 90 | M35: 89 | N35: 89 | P35: 544
A36: 91 | D36: Oppliger | E36: Alisa | F36: 2005 | G36: 3 | H36: Ebnat-Kappel | I36: 93 | J36: 94 | P36: 187
A37: 56 | D37: Rick | E37: Colin | F37: 2009 | G37: 2 | H37: Goldach | I37: 93 | J37: 87 | P37: 180
A38: 64 | D38: Rohner | E38: Ciril | F38: 2006 | G38: 2 | H38: Kirchberg | I38: 92 | J38: 88 | P38: 180
A39: 113 | D39: Scherrer | E39: Benjamin | F39: 2003 | G39: 5 | H39: Weinfelden | I39: 93 | J39: 93 | K39: 90 | L39: 90 | M39: 89 | N39: 89 | P39: 544
A40: 93 | D40: Schittenhelm | E40: Dennis | F40: 2003 | G40: 3 | H40: Goldach | I40: 92 | J40: 93 | O40: 1 | P40: 186
A41: 127 | D41: Schittenhelm | E41: Dennis | F41: 2003 | G41: 4 | H41: Goldach | K41: 89 | L41: 87 | P41: 176
A42: 97 | D42: Schnelli | E42: Livia | F42: 2004 | G42: 3 | H42: Kirchberg | I42: 94 | J42: 91 | O42: 2 | P42: 187
A43: 129 | D43: Schnelli | E43: Livia | F43: 2004 | G43: 4 | H43: Kirchberg | K43: 91 | L43: 93 | P43: 184
A44: 132 | D44: Schönenberger | E44: Zoé | F44: 2007 | G44: 4 | H44: Sitterdorf | K44: 92 | L44: 92 | P44: 184
A45: 114 | D45: Schrittwieser | E45: Thomas | F45: 2005 | G45: 5 | H45: Weinfelden | I45: 93 | J45: 93 | K45: 90 | L45: 90 | M45: 89 | N45: 89 | O45: 1 | P45: 545
A46: 115 | D46: Schumacher | E46: Manuel | F46: 2003 | G46: 5 | H46: Weinfelden | I46: 93 | J46: 93 | K46: 89 | L46: 91 | M46: 89 | N46: 89 | P46: 544
A47: 1 | D47: Segmüller | E47: Joe | F47: 2010 | G47: 1 | H47: Altstätten | I47: 93 | J47: 89 | P47: 182
A48: 90 | D48: Segmüller | E48: Nando | F48: 2003 | G48: 3 | H48: Altstätten | I48: 88 | J48: 95 | P48: 183
A49: 126 | D49: Sprenger | E49: Sven | F49: 2008 | G49: 4 | H49: Altstätten | K49: 88 | L49: 89 | P49: 177
A50: 49 | D50: Straub | E50: Patrick | F50: 2009 | G50: 2 | H50: Dettighofen | I50: 95 | J50: 91 | O50: 2 | P50: 188
A51: 4 | D51: Studer | E51: Lorin | F51: 2009 | G51: 1 | H51: Dettighofen | I51: 95 | J51: 94 | O51: 1 | P51: 190
A52: 98 | D52: Tunyogi | E52: Daniel | F52: 2003 | G52: 3 | H52: Sargans | I52: 93 | J52: 92 | P52: 185
A53: 199 | D53: Kreis | E53: Urs | F53: 1948 | G53: 5 | I53: 98 | J53: 89 | K53: 77 | L53: 88 | M53: 99 | N53: 100 | O53: 8 | P53: 0
P54: 0
P55: 0
P56: 0
P57: 0
P58: 0
P59: 0
P60: 0
P61: 0
P62: 0
P63: 0
P64: 0
P65: 0
P66: 0
P67: 0
P68: 0
P69: 0
P70: 0
P71: 0
P72: 0
P73: 0
P74: 0
P75: 0
P76: 0
P77: 0
P78: 0
P79: 0
P80: 0
P81: 0
P82: 0
P83: 0
P84: 0
P85: 0
P86: 0
P87: 0
P88: 0
P89: 0
P90: 0
P91: 0
P92: 0
P93: 0
P94: 0
P95: 0
P96: 0
P97: 0
P98: 0
P99: 0
P100: 0
P101: 0
P102: 0
P103: 0
P104: 0
P105: 0
P106: 0
P107: 0
P108: 0
P109: 0
P110: 0
P111: 0
P112: 0
P113: 0
P114: 0
P115: 0
P116: 0
P117: 0
P118: 0
P119: 0
P120: 0
P121: 0
P122: 0
P123: 0
P124: 0
P125: 0
P126: 0
P127: 0
P128: 0
P129: 0
P130: 0
P131: 0
P132: 0
P133: 0
P134: 0
P135: 0
P136: 0
P137: 0
P138: 0
P139: 0
P140: 0
P141: 0
P142: 0
P143: 0
P144: 0
P145: 0
P146: 0
P147: 0
P148: 0
P149: 0
P150: 0
P151: 0
P152: 0
P153: 0
P154: 0
P155: 0
P156: 0
P157: 0
P158: 0
P159: 0
P160: 0
P161: 0
P162: 0
P163: 0
P164: 0
P165: 0
P166: 0
P167: 0
P168: 0
P169: 0
P170: 0
P171: 0
P172: 0
P173: 0
P174: 0
P175: 0
P176: 0
P177: 0
P178: 0
P179: 0
P180: 0
P181: 0
P182: 0
P183: 0
P184: 0
P185: 0
P186: 0
P187: 0
P188: 0
P189: 0
P190: 0
P191: 0
P192: 0
P193: 0
P194: 0
P195: 0
P196: 0
P197: 0
P198: 0
P199: 0
P200: 0
P201: 0
P202: 0
P203: 0
... 3 more rows
